"Body Name","Body","Service Area Categorisation","Service Division Categorisation","Responsible Unit","Expenses Type","Detailed Expenses Type","Payment Date","Transaction Number","Payment Amount","Supplier Type","Supplier Name","Supplier Id"
"Portsmouth City Council","PCC","Highways and Transport Services","Parking Services","Regeneration","Third Party Payments","Private contractors","16/09/20","6384223","130","VENDOR","BOARHUNT GROUP LTD","103726"
"Portsmouth City Council","PCC","Highways and Transport Services","Parking Services","Regeneration","Third Party Payments","Private contractors","16/09/20","6384223","32","VENDOR","BOARHUNT GROUP LTD","103726"
"Portsmouth City Council","PCC","Highways and Transport Services","Parking Services","Regeneration","Premises-Related Expenditure","Rents","16/09/20","6384223","1600","VENDOR","BOARHUNT GROUP LTD","103726"
"Portsmouth City Council","PCC","Highways and Transport Services","Parking Services","Regeneration","Third Party Payments","Private contractors","23/09/20","6385432","195","VENDOR","BOARHUNT GROUP LTD","103726"
"Portsmouth City Council","PCC","Highways and Transport Services","Parking Services","Regeneration","Third Party Payments","Private contractors","23/09/20","6385432","65","VENDOR","BOARHUNT GROUP LTD","103726"
"Portsmouth City Council","PCC","Highways and Transport Services","Parking Services","Regeneration","Third Party Payments","Private contractors","23/09/20","6385432","52","VENDOR","BOARHUNT GROUP LTD","103726"
"Portsmouth City Council","PCC","Highways and Transport Services","Parking Services","Regeneration","Third Party Payments","Private contractors","23/09/20","6385432","52","VENDOR","BOARHUNT GROUP LTD","103726"
"Portsmouth City Council","PCC","Highways and Transport Services","Parking Services","Regeneration","Third Party Payments","Private contractors","23/09/20","6385432","30","VENDOR","BOARHUNT GROUP LTD","103726"
"Portsmouth City Council","PCC","Children's and Education Services","Other Education and Community Budget","Children's Services and Education","Third Party Payments","Private contractors","11/09/20","6383900","14583.34","VENDOR","SOLENT ACADEMIES TRUST","138071"
"Portsmouth City Council","PCC","Children's and Education Services","Special Schools","Children's Services and Education","Third Party Payments","Other establishments","25/09/20","6386101","2940","VENDOR","KEYS PCE LIMITED","137236"
"Portsmouth City Council","PCC","Children's and Education Services","Children Looked After","Children's Services and Education","Third Party Payments","Other establishments","21/09/20","6385013","23250","VENDOR","KEYS PCE LIMITED","137236"
"Portsmouth City Council","PCC","Children's and Education Services","Children Looked After","Children's Services and Education","Third Party Payments","Other establishments","21/09/20","6385013","18821.43","VENDOR","KEYS PCE LIMITED","137236"
"Portsmouth City Council","PCC","Children's and Education Services","Children Looked After","Children's Services and Education","Third Party Payments","Other establishments","28/09/20","6386557","28785.71","VENDOR","KEYS PCE LIMITED","137236"
"Portsmouth City Council","PCC","Children's and Education Services","Children Looked After","Children's Services and Education","Third Party Payments","Other establishments","28/09/20","6386557","531.43","VENDOR","KEYS PCE LIMITED","137236"
"Portsmouth City Council","PCC","Children's and Education Services","Children Looked After","Children's Services and Education","Third Party Payments","Other establishments","28/09/20","6386557","-1062.86","VENDOR","KEYS PCE LIMITED","137236"
"Portsmouth City Council","PCC","Children's and Education Services","Children Looked After","Children's Services and Education","Third Party Payments","Other establishments","28/09/20","6386557","19352.86","VENDOR","KEYS PCE LIMITED","137236"
"Portsmouth City Council","PCC","Highways and Transport Services","Parking Services","Regeneration","Supplies and Services","Communications and computing","07/09/20","6382893","700","VENDOR","VIDEALERT LTD","140581"
"Portsmouth City Council","PCC","Planning Services","Business support","Regeneration","Supplies and Services","Communications and computing","02/09/20","6382454","2510.46","VENDOR","TECHNOLOGY WITHIN LIMITED","143958"
"Portsmouth City Council","PCC","Planning Services","Business support","Regeneration","Supplies and Services","Communications and computing","02/09/20","6382454","24.94","VENDOR","TECHNOLOGY WITHIN LIMITED","143958"
"Portsmouth City Council","PCC","Planning Services","Business support","Regeneration","Supplies and Services","Communications and computing","28/09/20","6386606","25.35","VENDOR","TECHNOLOGY WITHIN LIMITED","143958"
"Portsmouth City Council","PCC","Planning Services","Business support","Regeneration","Supplies and Services","Communications and computing","28/09/20","6386606","3087.5","VENDOR","TECHNOLOGY WITHIN LIMITED","143958"
"Portsmouth City Council","PCC","Planning Services","Business support","Regeneration","Supplies and Services","Communications and computing","28/09/20","6386606","486","VENDOR","TECHNOLOGY WITHIN LIMITED","143958"
"Portsmouth City Council","PCC","Other","Suspense and Capital Schemes","Capital - Environment & Climate Change","Capital Charges","Capital Expenditure (WIP)","24/09/20","6385960","8624","VENDOR","ONE51 ES PLASTICS (UK) LIMITED","146678"
"Portsmouth City Council","PCC","Other","Suspense and Capital Schemes","Capital - Environment & Climate Change","Capital Charges","Capital Expenditure (WIP)","30/09/20","6386849","14877.72","VENDOR","CORAL PRODUCTS","147071"
"Portsmouth City Council","PCC","Other","Suspense and Capital Schemes","Capital - Environment & Climate Change","Capital Charges","Capital Expenditure (WIP)","30/09/20","6386849","14877.72","VENDOR","CORAL PRODUCTS","147071"
"Portsmouth City Council","PCC","Children's and Education Services","Children Looked After","Children's Services and Education","Third Party Payments","Other establishments","21/09/20","6385002","3407.14","VENDOR","FIVE RIVERS CHILD CARE LIMITED","106901"
"Portsmouth City Council","PCC","Children's and Education Services","Children Looked After","Children's Services and Education","Third Party Payments","Other establishments","07/09/20","6382829","3551.27","VENDOR","FIVE RIVERS CHILD CARE LIMITED","106901"
"Portsmouth City Council","PCC","Children's and Education Services","Children Looked After","Children's Services and Education","Third Party Payments","Other establishments","07/09/20","6382829","3551.27","VENDOR","FIVE RIVERS CHILD CARE LIMITED","106901"
"Portsmouth City Council","PCC","Children's and Education Services","Children Looked After","Children's Services and Education","Third Party Payments","Other establishments","07/09/20","6382829","3520.71","VENDOR","FIVE RIVERS CHILD CARE LIMITED","106901"
"Portsmouth City Council","PCC","Support Service / Transparency Costs Unallocated","AMS","Housing, Neighbourhood and Building Services","Supplies and Services","Equipment, furniture and materials","02/09/20","6382371","559.98","VENDOR","PORTSDOWN OFFICE LTD","100059"
"Portsmouth City Council","PCC","Support Service / Transparency Costs Unallocated","AMS","Housing, Neighbourhood and Building Services","Supplies and Services","Equipment, furniture and materials","02/09/20","6382371","468.24","VENDOR","PORTSDOWN OFFICE LTD","100059"
"Portsmouth City Council","PCC","Support Service / Transparency Costs Unallocated","AMS","Housing, Neighbourhood and Building Services","Supplies and Services","Equipment, furniture and materials","02/09/20","6382371","467.24","VENDOR","PORTSDOWN OFFICE LTD","100059"
"Portsmouth City Council","PCC","Support Service / Transparency Costs Unallocated","AMS","Housing, Neighbourhood and Building Services","Supplies and Services","Equipment, furniture and materials","02/09/20","6382371","3580","VENDOR","PORTSDOWN OFFICE LTD","100059"
"Portsmouth City Council","PCC","Housing Revenue Account","Supervision and Management","Housing, Neighbourhood and Building Services","Supplies and Services","Equipment, furniture and materials","15/09/20","6384134","929.16","VENDOR","PORTSDOWN OFFICE LTD","100059"
"Portsmouth City Council","PCC","Support Service / Transparency Costs Unallocated","AMS","Housing, Neighbourhood and Building Services","Supplies and Services","Equipment, furniture and materials","22/09/20","6385326","684","VENDOR","PORTSDOWN OFFICE LTD","100059"
"Portsmouth City Council","PCC","Other","Suspense and Capital Schemes","Capital - Traffic & Transportation","Capital Charges","Capital Expenditure (WIP)","23/09/20","6385581","1787.5","VENDOR","HYPERION INFRASTRUCTURE CONSULTANCY","144798"
"Portsmouth City Council","PCC","Adult Social Care","Commissioning & service delivery","Adult Services","Supplies and Services","Grants and subscriptions","24/09/20","6385895","2253","VENDOR","ADASS - DIRECTORS OF ADULT SOCIAL SERVICES","143357"
"Portsmouth City Council","PCC","Adult Social Care","Mental Health Support Older People (65 - 74)","Adult Services","Third Party Payments","Other establishments","03/09/20","6382523","132","VENDOR","AGE UK","110748"
"Portsmouth City Council","PCC","Adult Social Care","Physical Support Older People (85+)","Adult Services","Third Party Payments","Other establishments","03/09/20","6382523","148.5","VENDOR","AGE UK","110748"
"Portsmouth City Council","PCC","Housing Revenue Account","Repairs and Maintenance","Housing, Neighbourhood and Building Services","Premises-Related Expenditure","Repairs, alterations and maintenance of buildings","15/09/20","6384124","7033.2","COMPANY","MOUNTJOY LIMITED","129869"
"Portsmouth City Council","PCC","Support Service / Transparency Costs Unallocated","AMS","Regeneration","Supplies and Services","Services","08/09/20","6382943","2745.2","VENDOR","GOSPORT SURVEYING ASSOCIATES LIMITED","147034"
"Portsmouth City Council","PCC","Support Service / Transparency Costs Unallocated","AMS","Regeneration","Supplies and Services","Services","08/09/20","6382943","2345","VENDOR","GOSPORT SURVEYING ASSOCIATES LIMITED","147034"
"Portsmouth City Council","PCC","Highways and Transport Services","Transport Planning, Policy and Strategy","Regeneration","Supplies and Services","Services","11/09/20","6383837","11475","VENDOR","INSTITUTION OF CIVIL ENGINEERS","101457"
"Portsmouth City Council","PCC","Highways and Transport Services","Transport Planning, Policy and Strategy","Regeneration","Third Party Payments","Private contractors","02/09/20","6382472","9300","VENDOR","TURNER & TOWNSEND GROUP LIMITED","132225"
"Portsmouth City Council","PCC","Highways and Transport Services","Transport Planning, Policy and Strategy","Regeneration","Third Party Payments","Private contractors","24/09/20","6385987","4650","VENDOR","TURNER & TOWNSEND GROUP LIMITED","132225"
"Portsmouth City Council","PCC","Support Service / Transparency Costs Unallocated","Financial Services","Finance & Resources","Third Party Payments","Other agencies","21/09/20","6384946","4863.6","VENDOR","CMA FINANCIAL RECRUITMENT LTD","101372"
"Portsmouth City Council","PCC","Cultural and Related Services","Open Spaces","Culture, Leisure & Regulatory Services","Supplies and Services","Communications and computing","09/09/20","6383303","772.54","VENDOR","MCPC SYSTEMS (UK) LTD","100998"
"Portsmouth City Council","PCC","Adult Social Care","Physical Support Older People (85+)","Adult Services","Third Party Payments","Other establishments","09/09/20","6383005","268.24","VENDOR","ABICARE SERVICES LTD","146674"
"Portsmouth City Council","PCC","Adult Social Care","Physical Support Older People (85+)","Adult Services","Third Party Payments","Other establishments","09/09/20","6383005","1456","VENDOR","ABICARE SERVICES LTD","146674"
"Portsmouth City Council","PCC","Adult Social Care","Social Care Activities","Adult Services","Third Party Payments","Other establishments","28/09/20","6386197","10157.36","VENDOR","ACCESS CARE LTD","106309"
"Portsmouth City Council","PCC","Housing Services","Supporting People","Housing, Neighbourhood and Building Services","Third Party Payments","Other establishments","11/09/20","6383932","4166.67","VENDOR","TWO SAINTS LTD","102584"
"Portsmouth City Council","PCC","Adult Social Care","Physical Support Adults (18 - 64)","Adult Services","Third Party Payments","Other establishments","28/09/20","6386197","496.16","VENDOR","ACCESS CARE LTD","106309"
"Portsmouth City Council","PCC","Housing Services","Homelessness","Housing, Neighbourhood and Building Services","Third Party Payments","Other establishments","11/09/20","6383932","12982.51","VENDOR","TWO SAINTS LTD","102584"
"Portsmouth City Council","PCC","Housing Services","Supporting People","Housing, Neighbourhood and Building Services","Third Party Payments","Other establishments","11/09/20","6383932","49983.41","VENDOR","TWO SAINTS LTD","102584"
"Portsmouth City Council","PCC","Housing Services","Supporting People","Housing, Neighbourhood and Building Services","Third Party Payments","Other establishments","11/09/20","6383932","4166.67","VENDOR","TWO SAINTS LTD","102584"
"Portsmouth City Council","PCC","Adult Social Care","Physical Support Adults (18 - 64)","Adult Services","Third Party Payments","Other establishments","28/09/20","6386197","3120.32","VENDOR","ACCESS CARE LTD","106309"
"Portsmouth City Council","PCC","Children's and Education Services","Safeguarding Children and Young Peoples Services","Children's Services and Education","Third Party Payments","Other establishments","09/09/20","6383454","-31.5","VENDOR","STILL WATERS CARE SERVICES LTD","146488"
"Portsmouth City Council","PCC","Children's and Education Services","Safeguarding Children and Young Peoples Services","Children's Services and Education","Third Party Payments","Other establishments","09/09/20","6383454","1056","VENDOR","STILL WATERS CARE SERVICES LTD","146488"
"Portsmouth City Council","PCC","Children's and Education Services","Safeguarding Children and Young Peoples Services","Children's Services and Education","Third Party Payments","Other establishments","09/09/20","6383454","2828.58","VENDOR","STILL WATERS CARE SERVICES LTD","146488"
"Portsmouth City Council","PCC","Children's and Education Services","Safeguarding Children and Young Peoples Services","Children's Services and Education","Third Party Payments","Other establishments","28/09/20","6386602","-0.05","VENDOR","STILL WATERS CARE SERVICES LTD","146488"
"Portsmouth City Council","PCC","Children's and Education Services","Safeguarding Children and Young Peoples Services","Children's Services and Education","Third Party Payments","Other establishments","28/09/20","6386602","2627.15","VENDOR","STILL WATERS CARE SERVICES LTD","146488"
"Portsmouth City Council","PCC","Housing Services","Homelessness","Housing, Neighbourhood and Building Services","Supplies and Services","Grants and subscriptions","10/09/20","6383558","1600","SOLETRADER","Classified as 'personal data' (under the Data Protection Act 2018)","147218"
"Portsmouth City Council","PCC","Housing Revenue Account","Rents, Rates, Taxes and Other Charges","Housing, Neighbourhood and Building Services","Premises-Related Expenditure","Energy costs","16/09/20","6384480","379.99","VENDOR","NPOWER","104871"
"Portsmouth City Council","PCC","Housing Revenue Account","Rents, Rates, Taxes and Other Charges","Housing, Neighbourhood and Building Services","Premises-Related Expenditure","Energy costs","16/09/20","6384480","113","VENDOR","NPOWER","104871"
"Portsmouth City Council","PCC","Other","Suspense and Capital Schemes","Capital - Housing General Fund","Capital Charges","REFCUS","17/09/20","6384751","8393.28","COMPANY","L DEVINE AND CO LIMITED","111002"
"Portsmouth City Council","PCC","Housing Services","Private Sector Housing Renewal","Housing, Neighbourhood and Building Services","Income","Other grants reimbursements and contributions","17/09/20","6384751","-749.4","COMPANY","L DEVINE AND CO LIMITED","111002"
"Portsmouth City Council","PCC","Adult Social Care","Social Care Activities","Adult Services","Third Party Payments","Other establishments","03/09/20","6382522","139.2","VENDOR","ADMIRAL CARE LTD","138025"
"Portsmouth City Council","PCC","Adult Social Care","Social Care Activities","Adult Services","Third Party Payments","Other establishments","03/09/20","6382522","1252.8","VENDOR","ADMIRAL CARE LTD","138025"
"Portsmouth City Council","PCC","Adult Social Care","Social Care Activities","Adult Services","Third Party Payments","Other establishments","03/09/20","6382522","-50.64","VENDOR","ADMIRAL CARE LTD","138025"
"Portsmouth City Council","PCC","Adult Social Care","Social Care Activities","Adult Services","Third Party Payments","Other establishments","03/09/20","6382522","200.1","VENDOR","ADMIRAL CARE LTD","138025"
"Portsmouth City Council","PCC","Adult Social Care","Social Care Activities","Adult Services","Third Party Payments","Other establishments","03/09/20","6382522","974.4","VENDOR","ADMIRAL CARE LTD","138025"
"Portsmouth City Council","PCC","Adult Social Care","Social Care Activities","Adult Services","Third Party Payments","Other establishments","03/09/20","6382522","1096.2","VENDOR","ADMIRAL CARE LTD","138025"
"Portsmouth City Council","PCC","Adult Social Care","Social Care Activities","Adult Services","Third Party Payments","Other establishments","03/09/20","6382522","1096.2","VENDOR","ADMIRAL CARE LTD","138025"
"Portsmouth City Council","PCC","Adult Social Care","Social Care Activities","Adult Services","Third Party Payments","Other establishments","03/09/20","6382522","456.75","VENDOR","ADMIRAL CARE LTD","138025"
"Portsmouth City Council","PCC","Adult Social Care","Social Care Activities","Adult Services","Third Party Payments","Other establishments","03/09/20","6382522","213.15","VENDOR","ADMIRAL CARE LTD","138025"
"Portsmouth City Council","PCC","Adult Social Care","Social Care Activities","Adult Services","Third Party Payments","Other establishments","03/09/20","6382522","213.15","VENDOR","ADMIRAL CARE LTD","138025"
"Portsmouth City Council","PCC","Adult Social Care","Social Care Activities","Adult Services","Third Party Payments","Other establishments","03/09/20","6382522","609","VENDOR","ADMIRAL CARE LTD","138025"
"Portsmouth City Council","PCC","Adult Social Care","Social Care Activities","Adult Services","Third Party Payments","Other establishments","03/09/20","6382522","609","VENDOR","ADMIRAL CARE LTD","138025"
"Portsmouth City Council","PCC","Adult Social Care","Social Care Activities","Adult Services","Third Party Payments","Other establishments","03/09/20","6382522","104.4","VENDOR","ADMIRAL CARE LTD","138025"
"Portsmouth City Council","PCC","Adult Social Care","Social Care Activities","Adult Services","Third Party Payments","Other establishments","03/09/20","6382522","852.6","VENDOR","ADMIRAL CARE LTD","138025"
"Portsmouth City Council","PCC","Adult Social Care","Social Care Activities","Adult Services","Third Party Payments","Other establishments","03/09/20","6382522","852.6","VENDOR","ADMIRAL CARE LTD","138025"
"Portsmouth City Council","PCC","Adult Social Care","Mental Health Support Older People (65 - 74)","Adult Services","Third Party Payments","Other establishments","03/09/20","6382522","556.8","VENDOR","ADMIRAL CARE LTD","138025"
"Portsmouth City Council","PCC","Adult Social Care","Mental Health Support Older People (65 - 74)","Adult Services","Third Party Payments","Other establishments","03/09/20","6382522","34.8","VENDOR","ADMIRAL CARE LTD","138025"
"Portsmouth City Council","PCC","Adult Social Care","Mental Health Support Older People (65 - 74)","Adult Services","Third Party Payments","Other establishments","03/09/20","6382522","139.2","VENDOR","ADMIRAL CARE LTD","138025"
"Portsmouth City Council","PCC","Adult Social Care","Mental Health Support Older People (65 - 74)","Adult Services","Third Party Payments","Other establishments","03/09/20","6382522","121.8","VENDOR","ADMIRAL CARE LTD","138025"
"Portsmouth City Council","PCC","Adult Social Care","Mental Health Support Older People (65 - 74)","Adult Services","Third Party Payments","Other establishments","03/09/20","6382522","69.6","VENDOR","ADMIRAL CARE LTD","138025"
"Portsmouth City Council","PCC","Adult Social Care","Mental Health Support Older People (65 - 74)","Adult Services","Third Party Payments","Other establishments","03/09/20","6382522","69.6","VENDOR","ADMIRAL CARE LTD","138025"
"Portsmouth City Council","PCC","Adult Social Care","Mental Health Support Older People (65 - 74)","Adult Services","Third Party Payments","Other establishments","03/09/20","6382522","139.2","VENDOR","ADMIRAL CARE LTD","138025"
"Portsmouth City Council","PCC","Adult Social Care","Mental Health Support Older People (65 - 74)","Adult Services","Third Party Payments","Other establishments","03/09/20","6382522","139.2","VENDOR","ADMIRAL CARE LTD","138025"
"Portsmouth City Council","PCC","Adult Social Care","Mental Health Support Older People (65 - 74)","Adult Services","Third Party Payments","Other establishments","03/09/20","6382522","487.2","VENDOR","ADMIRAL CARE LTD","138025"
"Portsmouth City Council","PCC","Adult Social Care","Mental Health Support Older People (65 - 74)","Adult Services","Third Party Payments","Other establishments","03/09/20","6382522","487.2","VENDOR","ADMIRAL CARE LTD","138025"
"Portsmouth City Council","PCC","Adult Social Care","Physical Support Older People (85+)","Adult Services","Third Party Payments","Other establishments","03/09/20","6382522","1774.8","VENDOR","ADMIRAL CARE LTD","138025"
"Portsmouth City Council","PCC","Adult Social Care","Physical Support Older People (85+)","Adult Services","Third Party Payments","Other establishments","03/09/20","6382522","252.3","VENDOR","ADMIRAL CARE LTD","138025"
"Portsmouth City Council","PCC","Adult Social Care","Physical Support Older People (85+)","Adult Services","Third Party Payments","Other establishments","03/09/20","6382522","39.15","VENDOR","ADMIRAL CARE LTD","138025"
"Portsmouth City Council","PCC","Adult Social Care","Physical Support Older People (85+)","Adult Services","Third Party Payments","Other establishments","03/09/20","6382522","208.8","VENDOR","ADMIRAL CARE LTD","138025"
"Portsmouth City Council","PCC","Adult Social Care","Physical Support Older People (85+)","Adult Services","Third Party Payments","Other establishments","03/09/20","6382522","469.8","VENDOR","ADMIRAL CARE LTD","138025"
"Portsmouth City Council","PCC","Adult Social Care","Physical Support Older People (85+)","Adult Services","Third Party Payments","Other establishments","03/09/20","6382522","609","VENDOR","ADMIRAL CARE LTD","138025"
"Portsmouth City Council","PCC","Adult Social Care","Physical Support Older People (85+)","Adult Services","Third Party Payments","Other establishments","03/09/20","6382522","835.2","VENDOR","ADMIRAL CARE LTD","138025"
"Portsmouth City Council","PCC","Adult Social Care","Physical Support Older People (85+)","Adult Services","Third Party Payments","Other establishments","03/09/20","6382522","835.2","VENDOR","ADMIRAL CARE LTD","138025"
"Portsmouth City Council","PCC","Adult Social Care","Social Care Activities","Adult Services","Third Party Payments","Other establishments","17/09/20","6384659","121.8","VENDOR","ADMIRAL CARE LTD","138025"
"Portsmouth City Council","PCC","Adult Social Care","Social Care Activities","Adult Services","Third Party Payments","Other establishments","17/09/20","6384659","939.6","VENDOR","ADMIRAL CARE LTD","138025"
"Portsmouth City Council","PCC","Adult Social Care","Social Care Activities","Adult Services","Third Party Payments","Other establishments","17/09/20","6384659","126.15","VENDOR","ADMIRAL CARE LTD","138025"
"Portsmouth City Council","PCC","Adult Social Care","Social Care Activities","Adult Services","Third Party Payments","Other establishments","17/09/20","6384659","126.15","VENDOR","ADMIRAL CARE LTD","138025"
"Portsmouth City Council","PCC","Adult Social Care","Social Care Activities","Adult Services","Third Party Payments","Other establishments","17/09/20","6384659","974.4","VENDOR","ADMIRAL CARE LTD","138025"
"Portsmouth City Council","PCC","Adult Social Care","Social Care Activities","Adult Services","Third Party Payments","Other establishments","17/09/20","6384659","1096.2","VENDOR","ADMIRAL CARE LTD","138025"
"Portsmouth City Council","PCC","Adult Social Care","Social Care Activities","Adult Services","Third Party Payments","Other establishments","17/09/20","6384659","1096.2","VENDOR","ADMIRAL CARE LTD","138025"
"Portsmouth City Council","PCC","Adult Social Care","Social Care Activities","Adult Services","Third Party Payments","Other establishments","17/09/20","6384659","609","VENDOR","ADMIRAL CARE LTD","138025"
"Portsmouth City Council","PCC","Adult Social Care","Social Care Activities","Adult Services","Third Party Payments","Other establishments","17/09/20","6384659","213.15","VENDOR","ADMIRAL CARE LTD","138025"
"Portsmouth City Council","PCC","Adult Social Care","Social Care Activities","Adult Services","Third Party Payments","Other establishments","17/09/20","6384659","213.15","VENDOR","ADMIRAL CARE LTD","138025"
"Portsmouth City Council","PCC","Adult Social Care","Social Care Activities","Adult Services","Third Party Payments","Other establishments","17/09/20","6384659","609","VENDOR","ADMIRAL CARE LTD","138025"
"Portsmouth City Council","PCC","Adult Social Care","Social Care Activities","Adult Services","Third Party Payments","Other establishments","17/09/20","6384659","609","VENDOR","ADMIRAL CARE LTD","138025"
"Portsmouth City Council","PCC","Adult Social Care","Social Care Activities","Adult Services","Third Party Payments","Other establishments","17/09/20","6384659","152.25","VENDOR","ADMIRAL CARE LTD","138025"
"Portsmouth City Council","PCC","Adult Social Care","Social Care Activities","Adult Services","Third Party Payments","Other establishments","17/09/20","6384659","104.4","VENDOR","ADMIRAL CARE LTD","138025"
"Portsmouth City Council","PCC","Adult Social Care","Social Care Activities","Adult Services","Third Party Payments","Other establishments","17/09/20","6384659","852.6","VENDOR","ADMIRAL CARE LTD","138025"
"Portsmouth City Council","PCC","Adult Social Care","Social Care Activities","Adult Services","Third Party Payments","Other establishments","17/09/20","6384659","852.6","VENDOR","ADMIRAL CARE LTD","138025"
"Portsmouth City Council","PCC","Adult Social Care","Physical Support Older People (85+)","Adult Services","Third Party Payments","Other establishments","17/09/20","6384659","30","VENDOR","ADMIRAL CARE LTD","138025"
"Portsmouth City Council","PCC","Adult Social Care","Mental Health Support Older People (65 - 74)","Adult Services","Third Party Payments","Other establishments","17/09/20","6384659","556.8","VENDOR","ADMIRAL CARE LTD","138025"
"Portsmouth City Council","PCC","Adult Social Care","Mental Health Support Older People (65 - 74)","Adult Services","Third Party Payments","Other establishments","17/09/20","6384659","139.2","VENDOR","ADMIRAL CARE LTD","138025"
"Portsmouth City Council","PCC","Adult Social Care","Mental Health Support Older People (65 - 74)","Adult Services","Third Party Payments","Other establishments","17/09/20","6384659","121.8","VENDOR","ADMIRAL CARE LTD","138025"
"Portsmouth City Council","PCC","Adult Social Care","Mental Health Support Older People (65 - 74)","Adult Services","Third Party Payments","Other establishments","17/09/20","6384659","69.6","VENDOR","ADMIRAL CARE LTD","138025"
"Portsmouth City Council","PCC","Adult Social Care","Mental Health Support Older People (65 - 74)","Adult Services","Third Party Payments","Other establishments","17/09/20","6384659","69.6","VENDOR","ADMIRAL CARE LTD","138025"
"Portsmouth City Council","PCC","Adult Social Care","Mental Health Support Older People (65 - 74)","Adult Services","Third Party Payments","Other establishments","17/09/20","6384659","139.2","VENDOR","ADMIRAL CARE LTD","138025"
"Portsmouth City Council","PCC","Adult Social Care","Mental Health Support Older People (65 - 74)","Adult Services","Third Party Payments","Other establishments","17/09/20","6384659","139.2","VENDOR","ADMIRAL CARE LTD","138025"
"Portsmouth City Council","PCC","Adult Social Care","Mental Health Support Older People (65 - 74)","Adult Services","Third Party Payments","Other establishments","17/09/20","6384659","487.2","VENDOR","ADMIRAL CARE LTD","138025"
"Portsmouth City Council","PCC","Adult Social Care","Mental Health Support Older People (65 - 74)","Adult Services","Third Party Payments","Other establishments","17/09/20","6384659","487.2","VENDOR","ADMIRAL CARE LTD","138025"
"Portsmouth City Council","PCC","Adult Social Care","Physical Support Older People (85+)","Adult Services","Third Party Payments","Other establishments","17/09/20","6384659","1774.8","VENDOR","ADMIRAL CARE LTD","138025"
"Portsmouth City Council","PCC","Adult Social Care","Physical Support Older People (85+)","Adult Services","Third Party Payments","Other establishments","17/09/20","6384659","278.4","VENDOR","ADMIRAL CARE LTD","138025"
"Portsmouth City Council","PCC","Adult Social Care","Physical Support Older People (85+)","Adult Services","Third Party Payments","Other establishments","17/09/20","6384659","421.95","VENDOR","ADMIRAL CARE LTD","138025"
"Portsmouth City Council","PCC","Adult Social Care","Physical Support Older People (85+)","Adult Services","Third Party Payments","Other establishments","17/09/20","6384659","587.25","VENDOR","ADMIRAL CARE LTD","138025"
"Portsmouth City Council","PCC","Adult Social Care","Physical Support Older People (85+)","Adult Services","Third Party Payments","Other establishments","17/09/20","6384659","974.4","VENDOR","ADMIRAL CARE LTD","138025"
"Portsmouth City Council","PCC","Adult Social Care","Physical Support Older People (85+)","Adult Services","Third Party Payments","Other establishments","17/09/20","6384659","974.4","VENDOR","ADMIRAL CARE LTD","138025"
"Portsmouth City Council","PCC","Adult Social Care","Learning Disability Support  Adults (18 - 64)","Adult Services","Third Party Payments","Other establishments","11/09/20","6383718","7200.3","VENDOR","AFFINITY TRUST LTD","135643"
"Portsmouth City Council","PCC","Adult Social Care","Learning Disability Support  Adults (18 - 64)","Adult Services","Third Party Payments","Other establishments","11/09/20","6383718","9073.8","VENDOR","AFFINITY TRUST LTD","135643"
"Portsmouth City Council","PCC","Adult Social Care","Learning Disability Support  Adults (18 - 64)","Adult Services","Third Party Payments","Other establishments","11/09/20","6383718","7121.7","VENDOR","AFFINITY TRUST LTD","135643"
"Portsmouth City Council","PCC","Adult Social Care","Learning Disability Support  Adults (18 - 64)","Adult Services","Third Party Payments","Other establishments","11/09/20","6383718","6652.2","VENDOR","AFFINITY TRUST LTD","135643"
"Portsmouth City Council","PCC","Adult Social Care","Learning Disability Support  Adults (18 - 64)","Adult Services","Third Party Payments","Other establishments","11/09/20","6383718","8532.6","VENDOR","AFFINITY TRUST LTD","135643"
"Portsmouth City Council","PCC","Adult Social Care","Learning Disability Support  Adults (18 - 64)","Adult Services","Third Party Payments","Other establishments","11/09/20","6383718","9073.8","VENDOR","AFFINITY TRUST LTD","135643"
"Portsmouth City Council","PCC","Adult Social Care","Learning Disability Support  Adults (18 - 64)","Adult Services","Third Party Payments","Other establishments","11/09/20","6383718","6957.9","VENDOR","AFFINITY TRUST LTD","135643"
"Portsmouth City Council","PCC","Adult Social Care","Learning Disability Support  Adults (18 - 64)","Adult Services","Third Party Payments","Other establishments","11/09/20","6383722","6731.7","VENDOR","ALBANY FARM CARE (HAMPSHIRE) LTD","140215"
"Portsmouth City Council","PCC","Adult Social Care","Mental Health Support Adults (18 - 64)","Adult Services","Third Party Payments","Other establishments","11/09/20","6383722","2650.8","VENDOR","ALBANY FARM CARE (HAMPSHIRE) LTD","140215"
"Portsmouth City Council","PCC","Adult Social Care","Learning Disability Support  Adults (18 - 64)","Adult Services","Third Party Payments","Other establishments","11/09/20","6383725","4262.4","VENDOR","ALLIED CARE LTD","123734"
"Portsmouth City Council","PCC","Adult Social Care","Learning Disability Support  Adults (18 - 64)","Adult Services","Third Party Payments","Other establishments","11/09/20","6383724","4353.6","VENDOR","ALLIED CARE LTD","123734"
"Portsmouth City Council","PCC","Adult Social Care","Learning Disability Support  Adults (18 - 64)","Adult Services","Third Party Payments","Other establishments","11/09/20","6383726","6245.1","VENDOR","ALLIED CARE LTD","123734"
"Portsmouth City Council","PCC","Adult Social Care","Learning Disability Support  Adults (18 - 64)","Adult Services","Third Party Payments","Other establishments","25/09/20","6386004","1267.59","VENDOR","ALLIED CARE LTD","123734"
"Portsmouth City Council","PCC","Adult Social Care","Learning Disability Support  Adults (18 - 64)","Adult Services","Transport-Related Expenditure","Direct transport costs","04/09/20","6382653","40","VENDOR","ALLSTAR BUSINESS SOLUTIONS LTD","135770"
"Portsmouth City Council","PCC","Adult Social Care","Support with Memory and Cognition Older People (85+)","Adult Services","Third Party Payments","Other establishments","11/09/20","6383729","2308.2","VENDOR","ANEXAS CARE LTD","146269"
"Portsmouth City Council","PCC","Adult Social Care","Information and Early Intervention","Adult Services","Third Party Payments","Other establishments","11/09/20","6383730","21917.5","VENDOR","APETITO LTD","100127"
"Portsmouth City Council","PCC","Adult Social Care","Information and Early Intervention","Adult Services","Third Party Payments","Other establishments","11/09/20","6383730","1482","VENDOR","APETITO LTD","100127"
"Portsmouth City Council","PCC","Adult Social Care","Information and Early Intervention","Adult Services","Income","Customer and client receipts","11/09/20","6383730","-21917.5","VENDOR","APETITO LTD","100127"
"Portsmouth City Council","PCC","Adult Social Care","Information and Early Intervention","Adult Services","Income","Customer and client receipts","11/09/20","6383730","-1482","VENDOR","APETITO LTD","100127"
"Portsmouth City Council","PCC","Adult Social Care","Social Care Activities","Adult Services","Third Party Payments","Other establishments","29/09/20","6386626","-8.7","VENDOR","APEX PROPERTY VENTURES LTD","108437"
"Portsmouth City Council","PCC","Adult Social Care","Social Care Activities","Adult Services","Third Party Payments","Other establishments","29/09/20","6386626","69.6","VENDOR","APEX PROPERTY VENTURES LTD","108437"
"Portsmouth City Council","PCC","Adult Social Care","Social Care Activities","Adult Services","Third Party Payments","Other establishments","29/09/20","6386626","591.6","VENDOR","APEX PROPERTY VENTURES LTD","108437"
"Portsmouth City Council","PCC","Adult Social Care","Social Care Activities","Adult Services","Third Party Payments","Other establishments","29/09/20","6386626","382.8","VENDOR","APEX PROPERTY VENTURES LTD","108437"
"Portsmouth City Council","PCC","Adult Social Care","Social Care Activities","Adult Services","Third Party Payments","Other establishments","29/09/20","6386626","382.8","VENDOR","APEX PROPERTY VENTURES LTD","108437"
"Portsmouth City Council","PCC","Adult Social Care","Social Care Activities","Adult Services","Third Party Payments","Other establishments","29/09/20","6386626","626.4","VENDOR","APEX PROPERTY VENTURES LTD","108437"
"Portsmouth City Council","PCC","Adult Social Care","Social Care Activities","Adult Services","Third Party Payments","Other establishments","29/09/20","6386626","417.6","VENDOR","APEX PROPERTY VENTURES LTD","108437"
"Portsmouth City Council","PCC","Adult Social Care","Social Care Activities","Adult Services","Third Party Payments","Other establishments","29/09/20","6386626","730.8","VENDOR","APEX PROPERTY VENTURES LTD","108437"
"Portsmouth City Council","PCC","Adult Social Care","Social Care Activities","Adult Services","Third Party Payments","Other establishments","29/09/20","6386626","174","VENDOR","APEX PROPERTY VENTURES LTD","108437"
"Portsmouth City Council","PCC","Adult Social Care","Social Care Activities","Adult Services","Third Party Payments","Other establishments","29/09/20","6386626","996.15","VENDOR","APEX PROPERTY VENTURES LTD","108437"
"Portsmouth City Council","PCC","Adult Social Care","Social Care Activities","Adult Services","Third Party Payments","Other establishments","29/09/20","6386626","243.6","VENDOR","APEX PROPERTY VENTURES LTD","108437"
"Portsmouth City Council","PCC","Adult Social Care","Social Care Activities","Adult Services","Third Party Payments","Other establishments","29/09/20","6386626","365.4","VENDOR","APEX PROPERTY VENTURES LTD","108437"
"Portsmouth City Council","PCC","Adult Social Care","Social Care Activities","Adult Services","Third Party Payments","Other establishments","29/09/20","6386626","69.6","VENDOR","APEX PROPERTY VENTURES LTD","108437"
"Portsmouth City Council","PCC","Adult Social Care","Social Care Activities","Adult Services","Third Party Payments","Other establishments","29/09/20","6386626","991.8","VENDOR","APEX PROPERTY VENTURES LTD","108437"
"Portsmouth City Council","PCC","Adult Social Care","Social Care Activities","Adult Services","Third Party Payments","Other establishments","29/09/20","6386626","487.2","VENDOR","APEX PROPERTY VENTURES LTD","108437"
"Portsmouth City Council","PCC","Adult Social Care","Social Care Activities","Adult Services","Third Party Payments","Other establishments","29/09/20","6386626","487.2","VENDOR","APEX PROPERTY VENTURES LTD","108437"
"Portsmouth City Council","PCC","Adult Social Care","Social Care Activities","Adult Services","Third Party Payments","Other establishments","29/09/20","6386626","4.35","VENDOR","APEX PROPERTY VENTURES LTD","108437"
"Portsmouth City Council","PCC","Adult Social Care","Social Care Activities","Adult Services","Third Party Payments","Other establishments","29/09/20","6386626","147.9","VENDOR","APEX PROPERTY VENTURES LTD","108437"
"Portsmouth City Council","PCC","Adult Social Care","Social Care Activities","Adult Services","Third Party Payments","Other establishments","29/09/20","6386626","835.2","VENDOR","APEX PROPERTY VENTURES LTD","108437"
"Portsmouth City Council","PCC","Adult Social Care","Social Care Activities","Adult Services","Third Party Payments","Other establishments","29/09/20","6386626","974.4","VENDOR","APEX PROPERTY VENTURES LTD","108437"
"Portsmouth City Council","PCC","Adult Social Care","Social Care Activities","Adult Services","Third Party Payments","Other establishments","29/09/20","6386626","60.9","VENDOR","APEX PROPERTY VENTURES LTD","108437"
"Portsmouth City Council","PCC","Adult Social Care","Social Care Activities","Adult Services","Third Party Payments","Other establishments","29/09/20","6386626","1096.2","VENDOR","APEX PROPERTY VENTURES LTD","108437"
"Portsmouth City Council","PCC","Adult Social Care","Social Care Activities","Adult Services","Third Party Payments","Other establishments","29/09/20","6386626","382.8","VENDOR","APEX PROPERTY VENTURES LTD","108437"
"Portsmouth City Council","PCC","Adult Social Care","Social Care Activities","Adult Services","Third Party Payments","Other establishments","29/09/20","6386626","1096.2","VENDOR","APEX PROPERTY VENTURES LTD","108437"
"Portsmouth City Council","PCC","Adult Social Care","Social Care Activities","Adult Services","Third Party Payments","Other establishments","29/09/20","6386626","1096.2","VENDOR","APEX PROPERTY VENTURES LTD","108437"
"Portsmouth City Council","PCC","Adult Social Care","Social Care Activities","Adult Services","Third Party Payments","Other establishments","29/09/20","6386626","243.6","VENDOR","APEX PROPERTY VENTURES LTD","108437"
"Portsmouth City Council","PCC","Adult Social Care","Social Care Activities","Adult Services","Third Party Payments","Other establishments","29/09/20","6386626","487.2","VENDOR","APEX PROPERTY VENTURES LTD","108437"
"Portsmouth City Council","PCC","Adult Social Care","Social Care Activities","Adult Services","Third Party Payments","Other establishments","29/09/20","6386626","43.5","VENDOR","APEX PROPERTY VENTURES LTD","108437"
"Portsmouth City Council","PCC","Adult Social Care","Social Care Activities","Adult Services","Third Party Payments","Other establishments","29/09/20","6386626","313.2","VENDOR","APEX PROPERTY VENTURES LTD","108437"
"Portsmouth City Council","PCC","Adult Social Care","Social Care Activities","Adult Services","Third Party Payments","Other establishments","29/09/20","6386626","730.8","VENDOR","APEX PROPERTY VENTURES LTD","108437"
"Portsmouth City Council","PCC","Adult Social Care","Social Care Activities","Adult Services","Third Party Payments","Other establishments","29/09/20","6386626","52.2","VENDOR","APEX PROPERTY VENTURES LTD","108437"
"Portsmouth City Council","PCC","Adult Social Care","Social Care Activities","Adult Services","Third Party Payments","Other establishments","29/09/20","6386626","174","VENDOR","APEX PROPERTY VENTURES LTD","108437"
"Portsmouth City Council","PCC","Adult Social Care","Social Care Activities","Adult Services","Third Party Payments","Other establishments","29/09/20","6386626","365.4","VENDOR","APEX PROPERTY VENTURES LTD","108437"
"Portsmouth City Council","PCC","Adult Social Care","Social Care Activities","Adult Services","Third Party Payments","Other establishments","29/09/20","6386626","104.4","VENDOR","APEX PROPERTY VENTURES LTD","108437"
"Portsmouth City Council","PCC","Adult Social Care","Social Care Activities","Adult Services","Third Party Payments","Other establishments","29/09/20","6386626","34.8","VENDOR","APEX PROPERTY VENTURES LTD","108437"
"Portsmouth City Council","PCC","Adult Social Care","Social Care Activities","Adult Services","Third Party Payments","Other establishments","29/09/20","6386626","609","VENDOR","APEX PROPERTY VENTURES LTD","108437"
"Portsmouth City Council","PCC","Adult Social Care","Social Care Activities","Adult Services","Third Party Payments","Other establishments","29/09/20","6386626","52.2","VENDOR","APEX PROPERTY VENTURES LTD","108437"
"Portsmouth City Council","PCC","Adult Social Care","Social Care Activities","Adult Services","Third Party Payments","Other establishments","29/09/20","6386626","139.2","VENDOR","APEX PROPERTY VENTURES LTD","108437"
"Portsmouth City Council","PCC","Adult Social Care","Social Care Activities","Adult Services","Third Party Payments","Other establishments","29/09/20","6386626","400.2","VENDOR","APEX PROPERTY VENTURES LTD","108437"
"Portsmouth City Council","PCC","Adult Social Care","Social Care Activities","Adult Services","Third Party Payments","Other establishments","29/09/20","6386626","609","VENDOR","APEX PROPERTY VENTURES LTD","108437"
"Portsmouth City Council","PCC","Adult Social Care","Social Care Activities","Adult Services","Third Party Payments","Other establishments","29/09/20","6386626","243.6","VENDOR","APEX PROPERTY VENTURES LTD","108437"
"Portsmouth City Council","PCC","Adult Social Care","Social Care Activities","Adult Services","Third Party Payments","Other establishments","29/09/20","6386626","765.6","VENDOR","APEX PROPERTY VENTURES LTD","108437"
"Portsmouth City Council","PCC","Adult Social Care","Social Care Activities","Adult Services","Third Party Payments","Other establishments","29/09/20","6386626","974.4","VENDOR","APEX PROPERTY VENTURES LTD","108437"
"Portsmouth City Council","PCC","Adult Social Care","Social Care Activities","Adult Services","Third Party Payments","Other establishments","29/09/20","6386626","900.45","VENDOR","APEX PROPERTY VENTURES LTD","108437"
"Portsmouth City Council","PCC","Adult Social Care","Social Care Activities","Adult Services","Third Party Payments","Other establishments","29/09/20","6386626","365.4","VENDOR","APEX PROPERTY VENTURES LTD","108437"
"Portsmouth City Council","PCC","Adult Social Care","Social Care Activities","Adult Services","Third Party Payments","Other establishments","29/09/20","6386626","17.4","VENDOR","APEX PROPERTY VENTURES LTD","108437"
"Portsmouth City Council","PCC","Adult Social Care","Social Care Activities","Adult Services","Third Party Payments","Other establishments","29/09/20","6386626","100.05","VENDOR","APEX PROPERTY VENTURES LTD","108437"
"Portsmouth City Council","PCC","Adult Social Care","Social Care Activities","Adult Services","Third Party Payments","Other establishments","29/09/20","6386626","121.8","VENDOR","APEX PROPERTY VENTURES LTD","108437"
"Portsmouth City Council","PCC","Adult Social Care","Social Care Activities","Adult Services","Third Party Payments","Other establishments","29/09/20","6386626","730.8","VENDOR","APEX PROPERTY VENTURES LTD","108437"
"Portsmouth City Council","PCC","Adult Social Care","Social Care Activities","Adult Services","Third Party Payments","Other establishments","29/09/20","6386626","278.4","VENDOR","APEX PROPERTY VENTURES LTD","108437"
"Portsmouth City Council","PCC","Adult Social Care","Social Care Activities","Adult Services","Third Party Payments","Other establishments","29/09/20","6386626","243.6","VENDOR","APEX PROPERTY VENTURES LTD","108437"
"Portsmouth City Council","PCC","Adult Social Care","Social Care Activities","Adult Services","Third Party Payments","Other establishments","29/09/20","6386626","139.2","VENDOR","APEX PROPERTY VENTURES LTD","108437"
"Portsmouth City Council","PCC","Adult Social Care","Social Care Activities","Adult Services","Third Party Payments","Other establishments","29/09/20","6386626","1278.9","VENDOR","APEX PROPERTY VENTURES LTD","108437"
"Portsmouth City Council","PCC","Adult Social Care","Social Care Activities","Adult Services","Third Party Payments","Other establishments","29/09/20","6386626","1278.9","VENDOR","APEX PROPERTY VENTURES LTD","108437"
"Portsmouth City Council","PCC","Adult Social Care","Social Care Activities","Adult Services","Third Party Payments","Other establishments","29/09/20","6386626","113.1","VENDOR","APEX PROPERTY VENTURES LTD","108437"
"Portsmouth City Council","PCC","Adult Social Care","Mental Health Support Older People (65 - 74)","Adult Services","Third Party Payments","Other establishments","29/09/20","6386626","852.6","VENDOR","APEX PROPERTY VENTURES LTD","108437"
"Portsmouth City Council","PCC","Adult Social Care","Mental Health Support Older People (65 - 74)","Adult Services","Third Party Payments","Other establishments","29/09/20","6386626","348","VENDOR","APEX PROPERTY VENTURES LTD","108437"
"Portsmouth City Council","PCC","Adult Social Care","Mental Health Support Older People (65 - 74)","Adult Services","Third Party Payments","Other establishments","29/09/20","6386626","261","VENDOR","APEX PROPERTY VENTURES LTD","108437"
"Portsmouth City Council","PCC","Adult Social Care","Social Care Activities","Adult Services","Third Party Payments","Other establishments","29/09/20","6386626","1096.2","VENDOR","APEX PROPERTY VENTURES LTD","108437"
"Portsmouth City Council","PCC","Adult Social Care","Social Care Activities","Adult Services","Third Party Payments","Other establishments","29/09/20","6386626","1096.2","VENDOR","APEX PROPERTY VENTURES LTD","108437"
"Portsmouth City Council","PCC","Adult Social Care","Social Care Activities","Adult Services","Third Party Payments","Other establishments","29/09/20","6386626","2436","VENDOR","APEX PROPERTY VENTURES LTD","108437"
"Portsmouth City Council","PCC","Adult Social Care","Social Care Activities","Adult Services","Third Party Payments","Other establishments","29/09/20","6386626","1218","VENDOR","APEX PROPERTY VENTURES LTD","108437"
"Portsmouth City Council","PCC","Adult Social Care","Social Care Activities","Adult Services","Third Party Payments","Other establishments","29/09/20","6386626","1218","VENDOR","APEX PROPERTY VENTURES LTD","108437"
"Portsmouth City Council","PCC","Adult Social Care","Physical Support Adults (18 - 64)","Adult Services","Third Party Payments","Other establishments","29/09/20","6386626","191.4","VENDOR","APEX PROPERTY VENTURES LTD","108437"
"Portsmouth City Council","PCC","Adult Social Care","Physical Support Adults (18 - 64)","Adult Services","Third Party Payments","Other establishments","29/09/20","6386626","104.4","VENDOR","APEX PROPERTY VENTURES LTD","108437"
"Portsmouth City Council","PCC","Adult Social Care","Physical Support Adults (18 - 64)","Adult Services","Third Party Payments","Other establishments","29/09/20","6386626","104.4","VENDOR","APEX PROPERTY VENTURES LTD","108437"
"Portsmouth City Council","PCC","Adult Social Care","Physical Support Adults (18 - 64)","Adult Services","Third Party Payments","Other establishments","29/09/20","6386626","661.2","VENDOR","APEX PROPERTY VENTURES LTD","108437"
"Portsmouth City Council","PCC","Adult Social Care","Physical Support Adults (18 - 64)","Adult Services","Third Party Payments","Other establishments","29/09/20","6386626","669.9","VENDOR","APEX PROPERTY VENTURES LTD","108437"
"Portsmouth City Council","PCC","Adult Social Care","Physical Support Adults (18 - 64)","Adult Services","Third Party Payments","Other establishments","29/09/20","6386626","669.9","VENDOR","APEX PROPERTY VENTURES LTD","108437"
"Portsmouth City Council","PCC","Adult Social Care","Physical Support Adults (18 - 64)","Adult Services","Third Party Payments","Other establishments","29/09/20","6386626","487.2","VENDOR","APEX PROPERTY VENTURES LTD","108437"
"Portsmouth City Council","PCC","Adult Social Care","Physical Support Adults (18 - 64)","Adult Services","Third Party Payments","Other establishments","29/09/20","6386626","487.2","VENDOR","APEX PROPERTY VENTURES LTD","108437"
"Portsmouth City Council","PCC","Adult Social Care","Physical Support Adults (18 - 64)","Adult Services","Third Party Payments","Other establishments","29/09/20","6386626","487.2","VENDOR","APEX PROPERTY VENTURES LTD","108437"
"Portsmouth City Council","PCC","Adult Social Care","Physical Support Adults (18 - 64)","Adult Services","Third Party Payments","Other establishments","29/09/20","6386626","435","VENDOR","APEX PROPERTY VENTURES LTD","108437"
"Portsmouth City Council","PCC","Adult Social Care","Physical Support Adults (18 - 64)","Adult Services","Third Party Payments","Other establishments","29/09/20","6386626","174","VENDOR","APEX PROPERTY VENTURES LTD","108437"
"Portsmouth City Council","PCC","Adult Social Care","Physical Support Adults (18 - 64)","Adult Services","Third Party Payments","Other establishments","29/09/20","6386626","261","VENDOR","APEX PROPERTY VENTURES LTD","108437"
"Portsmouth City Council","PCC","Adult Social Care","Physical Support Adults (18 - 64)","Adult Services","Third Party Payments","Other establishments","29/09/20","6386626","487.2","VENDOR","APEX PROPERTY VENTURES LTD","108437"
"Portsmouth City Council","PCC","Adult Social Care","Physical Support Adults (18 - 64)","Adult Services","Third Party Payments","Other establishments","29/09/20","6386626","487.2","VENDOR","APEX PROPERTY VENTURES LTD","108437"
"Portsmouth City Council","PCC","Adult Social Care","Physical Support Older People (85+)","Adult Services","Third Party Payments","Other establishments","29/09/20","6386626","365.4","VENDOR","APEX PROPERTY VENTURES LTD","108437"
"Portsmouth City Council","PCC","Adult Social Care","Physical Support Older People (85+)","Adult Services","Third Party Payments","Other establishments","29/09/20","6386626","208.8","VENDOR","APEX PROPERTY VENTURES LTD","108437"
"Portsmouth City Council","PCC","Adult Social Care","Physical Support Older People (85+)","Adult Services","Third Party Payments","Other establishments","29/09/20","6386626","95.7","VENDOR","APEX PROPERTY VENTURES LTD","108437"
"Portsmouth City Council","PCC","Adult Social Care","Physical Support Older People (85+)","Adult Services","Third Party Payments","Other establishments","29/09/20","6386626","730.8","VENDOR","APEX PROPERTY VENTURES LTD","108437"
"Portsmouth City Council","PCC","Adult Social Care","Physical Support Older People (85+)","Adult Services","Third Party Payments","Other establishments","29/09/20","6386626","365.4","VENDOR","APEX PROPERTY VENTURES LTD","108437"
"Portsmouth City Council","PCC","Adult Social Care","Physical Support Older People (85+)","Adult Services","Third Party Payments","Other establishments","29/09/20","6386626","408.9","VENDOR","APEX PROPERTY VENTURES LTD","108437"
"Portsmouth City Council","PCC","Adult Social Care","Physical Support Older People (85+)","Adult Services","Third Party Payments","Other establishments","29/09/20","6386626","556.8","VENDOR","APEX PROPERTY VENTURES LTD","108437"
"Portsmouth City Council","PCC","Adult Social Care","Physical Support Older People (85+)","Adult Services","Third Party Payments","Other establishments","29/09/20","6386626","487.2","VENDOR","APEX PROPERTY VENTURES LTD","108437"
"Portsmouth City Council","PCC","Adult Social Care","Physical Support Older People (85+)","Adult Services","Third Party Payments","Other establishments","29/09/20","6386626","52.2","VENDOR","APEX PROPERTY VENTURES LTD","108437"
"Portsmouth City Council","PCC","Adult Social Care","Physical Support Older People (85+)","Adult Services","Third Party Payments","Other establishments","29/09/20","6386626","730.8","VENDOR","APEX PROPERTY VENTURES LTD","108437"
"Portsmouth City Council","PCC","Adult Social Care","Physical Support Older People (85+)","Adult Services","Third Party Payments","Other establishments","29/09/20","6386626","609","VENDOR","APEX PROPERTY VENTURES LTD","108437"
"Portsmouth City Council","PCC","Adult Social Care","Physical Support Older People (85+)","Adult Services","Third Party Payments","Other establishments","29/09/20","6386626","609","VENDOR","APEX PROPERTY VENTURES LTD","108437"
"Portsmouth City Council","PCC","Adult Social Care","Physical Support Older People (85+)","Adult Services","Third Party Payments","Other establishments","29/09/20","6386626","1096.2","VENDOR","APEX PROPERTY VENTURES LTD","108437"
"Portsmouth City Council","PCC","Adult Social Care","Physical Support Older People (85+)","Adult Services","Third Party Payments","Other establishments","29/09/20","6386626","1096.2","VENDOR","APEX PROPERTY VENTURES LTD","108437"
"Portsmouth City Council","PCC","Adult Social Care","Physical Support Older People (85+)","Adult Services","Third Party Payments","Other establishments","29/09/20","6386626","478.5","VENDOR","APEX PROPERTY VENTURES LTD","108437"
"Portsmouth City Council","PCC","Adult Social Care","Physical Support Older People (85+)","Adult Services","Third Party Payments","Other establishments","29/09/20","6386626","478.5","VENDOR","APEX PROPERTY VENTURES LTD","108437"
"Portsmouth City Council","PCC","Adult Social Care","Physical Support Older People (85+)","Adult Services","Third Party Payments","Other establishments","29/09/20","6386626","39.15","VENDOR","APEX PROPERTY VENTURES LTD","108437"
"Portsmouth City Council","PCC","Adult Social Care","Physical Support Older People (85+)","Adult Services","Third Party Payments","Other establishments","29/09/20","6386626","352.35","VENDOR","APEX PROPERTY VENTURES LTD","108437"
"Portsmouth City Council","PCC","Adult Social Care","Physical Support Older People (85+)","Adult Services","Third Party Payments","Other establishments","29/09/20","6386626","730.8","VENDOR","APEX PROPERTY VENTURES LTD","108437"
"Portsmouth City Council","PCC","Adult Social Care","Physical Support Older People (85+)","Adult Services","Third Party Payments","Other establishments","29/09/20","6386626","243.6","VENDOR","APEX PROPERTY VENTURES LTD","108437"
"Portsmouth City Council","PCC","Adult Social Care","Physical Support Older People (85+)","Adult Services","Third Party Payments","Other establishments","29/09/20","6386626","174","VENDOR","APEX PROPERTY VENTURES LTD","108437"
"Portsmouth City Council","PCC","Adult Social Care","Physical Support Older People (85+)","Adult Services","Third Party Payments","Other establishments","29/09/20","6386626","17.4","VENDOR","APEX PROPERTY VENTURES LTD","108437"
"Portsmouth City Council","PCC","Adult Social Care","Physical Support Older People (85+)","Adult Services","Third Party Payments","Other establishments","29/09/20","6386626","730.8","VENDOR","APEX PROPERTY VENTURES LTD","108437"
"Portsmouth City Council","PCC","Adult Social Care","Physical Support Older People (85+)","Adult Services","Third Party Payments","Other establishments","29/09/20","6386626","730.8","VENDOR","APEX PROPERTY VENTURES LTD","108437"
"Portsmouth City Council","PCC","Adult Social Care","Physical Support Older People (85+)","Adult Services","Third Party Payments","Other establishments","29/09/20","6386626","139.2","VENDOR","APEX PROPERTY VENTURES LTD","108437"
"Portsmouth City Council","PCC","Adult Social Care","Physical Support Older People (85+)","Adult Services","Third Party Payments","Other establishments","29/09/20","6386626","817.8","VENDOR","APEX PROPERTY VENTURES LTD","108437"
"Portsmouth City Council","PCC","Adult Social Care","Physical Support Older People (85+)","Adult Services","Third Party Payments","Other establishments","29/09/20","6386626","730.8","VENDOR","APEX PROPERTY VENTURES LTD","108437"
"Portsmouth City Council","PCC","Adult Social Care","Physical Support Older People (85+)","Adult Services","Third Party Payments","Other establishments","29/09/20","6386626","243.6","VENDOR","APEX PROPERTY VENTURES LTD","108437"
"Portsmouth City Council","PCC","Adult Social Care","Physical Support Older People (85+)","Adult Services","Third Party Payments","Other establishments","29/09/20","6386626","417.6","VENDOR","APEX PROPERTY VENTURES LTD","108437"
"Portsmouth City Council","PCC","Adult Social Care","Physical Support Older People (85+)","Adult Services","Third Party Payments","Other establishments","29/09/20","6386626","852.6","VENDOR","APEX PROPERTY VENTURES LTD","108437"
"Portsmouth City Council","PCC","Adult Social Care","Physical Support Older People (85+)","Adult Services","Third Party Payments","Other establishments","29/09/20","6386626","852.6","VENDOR","APEX PROPERTY VENTURES LTD","108437"
"Portsmouth City Council","PCC","Adult Social Care","Physical Support Older People (85+)","Adult Services","Third Party Payments","Other establishments","29/09/20","6386626","1218","VENDOR","APEX PROPERTY VENTURES LTD","108437"
"Portsmouth City Council","PCC","Adult Social Care","Physical Support Older People (85+)","Adult Services","Third Party Payments","Other establishments","29/09/20","6386626","1218","VENDOR","APEX PROPERTY VENTURES LTD","108437"
"Portsmouth City Council","PCC","Adult Social Care","Physical Support Older People (85+)","Adult Services","Third Party Payments","Other establishments","29/09/20","6386626","121.8","VENDOR","APEX PROPERTY VENTURES LTD","108437"
"Portsmouth City Council","PCC","Adult Social Care","Physical Support Older People (85+)","Adult Services","Third Party Payments","Other establishments","29/09/20","6386626","165.3","VENDOR","APEX PROPERTY VENTURES LTD","108437"
"Portsmouth City Council","PCC","Adult Social Care","Physical Support Older People (85+)","Adult Services","Third Party Payments","Other establishments","29/09/20","6386626","730.8","VENDOR","APEX PROPERTY VENTURES LTD","108437"
"Portsmouth City Council","PCC","Adult Social Care","Physical Support Older People (85+)","Adult Services","Third Party Payments","Other establishments","29/09/20","6386626","169.65","VENDOR","APEX PROPERTY VENTURES LTD","108437"
"Portsmouth City Council","PCC","Adult Social Care","Physical Support Older People (85+)","Adult Services","Third Party Payments","Other establishments","29/09/20","6386626","261","VENDOR","APEX PROPERTY VENTURES LTD","108437"
"Portsmouth City Council","PCC","Adult Social Care","Physical Support Older People (85+)","Adult Services","Third Party Payments","Other establishments","29/09/20","6386626","609","VENDOR","APEX PROPERTY VENTURES LTD","108437"
"Portsmouth City Council","PCC","Other","Suspense and Capital Schemes","Capital - Traffic & Transportation","Capital Charges","Capital Expenditure (WIP)","21/09/20","6385037","1800","VENDOR","PLEYDELL TECHNOLOGY CONSULTING LTD","144609"
"Portsmouth City Council","PCC","Adult Social Care","Physical Support Older People (85+)","Adult Services","Third Party Payments","Other establishments","29/09/20","6386626","156.6","VENDOR","APEX PROPERTY VENTURES LTD","108437"
"Portsmouth City Council","PCC","Adult Social Care","Physical Support Older People (85+)","Adult Services","Third Party Payments","Other establishments","29/09/20","6386626","852.6","VENDOR","APEX PROPERTY VENTURES LTD","108437"
"Portsmouth City Council","PCC","Adult Social Care","Physical Support Older People (85+)","Adult Services","Third Party Payments","Other establishments","29/09/20","6386626","852.6","VENDOR","APEX PROPERTY VENTURES LTD","108437"
"Portsmouth City Council","PCC","Adult Social Care","Physical Support Older People (85+)","Adult Services","Third Party Payments","Other establishments","29/09/20","6386626","730.8","VENDOR","APEX PROPERTY VENTURES LTD","108437"
"Portsmouth City Council","PCC","Adult Social Care","Physical Support Older People (85+)","Adult Services","Third Party Payments","Other establishments","29/09/20","6386626","865.65","VENDOR","APEX PROPERTY VENTURES LTD","108437"
"Portsmouth City Council","PCC","Adult Social Care","Physical Support Older People (85+)","Adult Services","Third Party Payments","Other establishments","29/09/20","6386626","130.5","VENDOR","APEX PROPERTY VENTURES LTD","108437"
"Portsmouth City Council","PCC","Adult Social Care","Physical Support Older People (85+)","Adult Services","Third Party Payments","Other establishments","29/09/20","6386626","69.6","VENDOR","APEX PROPERTY VENTURES LTD","108437"
"Portsmouth City Council","PCC","Adult Social Care","Physical Support Older People (85+)","Adult Services","Third Party Payments","Other establishments","29/09/20","6386626","778.65","VENDOR","APEX PROPERTY VENTURES LTD","108437"
"Portsmouth City Council","PCC","Adult Social Care","Physical Support Older People (85+)","Adult Services","Third Party Payments","Other establishments","29/09/20","6386626","778.65","VENDOR","APEX PROPERTY VENTURES LTD","108437"
"Portsmouth City Council","PCC","Adult Social Care","Physical Support Older People (85+)","Adult Services","Third Party Payments","Other establishments","29/09/20","6386626","69.6","VENDOR","APEX PROPERTY VENTURES LTD","108437"
"Portsmouth City Council","PCC","Adult Social Care","Physical Support Older People (85+)","Adult Services","Third Party Payments","Other establishments","29/09/20","6386626","243.6","VENDOR","APEX PROPERTY VENTURES LTD","108437"
"Portsmouth City Council","PCC","Adult Social Care","Physical Support Older People (85+)","Adult Services","Third Party Payments","Other establishments","29/09/20","6386626","1209.3","VENDOR","APEX PROPERTY VENTURES LTD","108437"
"Portsmouth City Council","PCC","Other","Suspense and Capital Schemes","Capital - Housing General Fund","Capital Charges","REFCUS","08/09/20","6382964","7545","VENDOR","PORTSMOUTH BATHROOM SPECIALISTS LTD","138960"
"Portsmouth City Council","PCC","Adult Social Care","Support with Memory and Cognition Older People (65 - 74)","Adult Services","Third Party Payments","Private contractors","04/09/20","6382651","526.6","VENDOR","A24 GROUP LIMITED T/A AMBITION 24 HOURS","139614"
"Portsmouth City Council","PCC","Support Service / Transparency Costs Unallocated","AMS","Regeneration","Supplies and Services","Grants and subscriptions","17/09/20","6384774","1035","VENDOR","ROYAL INSTITUTION OF CHARTERED SURVEYORS","100075"
"Portsmouth City Council","PCC","Support Service / Transparency Costs Unallocated","AMS","Regeneration","Supplies and Services","Grants and subscriptions","17/09/20","6384774","1030","VENDOR","ROYAL INSTITUTION OF CHARTERED SURVEYORS","100075"
"Portsmouth City Council","PCC","Other","Suspense and Capital Schemes","Housing, Neighbourhood and Building Services","Supplies and Services","Services","15/09/20","6384160","3638","VENDOR","WICOR BUILDING SERVICES LIMITED","144144"
"Portsmouth City Council","PCC","Other","Suspense and Capital Schemes","Housing, Neighbourhood and Building Services","Supplies and Services","Services","28/09/20","6386620","5985.41","VENDOR","WICOR BUILDING SERVICES LIMITED","144144"
"Portsmouth City Council","PCC","Housing Services","Housing Strategy","Housing, Neighbourhood and Building Services","Income","Customer and client receipts","28/09/20","6386620","-627.84","VENDOR","WICOR BUILDING SERVICES LIMITED","144144"
"Portsmouth City Council","PCC","Other","Suspense and Capital Schemes","Housing, Neighbourhood and Building Services","Premises-Related Expenditure","Repairs, alterations and maintenance of buildings","03/09/20","6382630","6331.26","COMPANY","SSE CONTRACTING LTD","101806"
"Portsmouth City Council","PCC","Other","Suspense and Capital Schemes","Capital - Housing General Fund","Capital Charges","Capital Expenditure (WIP)","11/09/20","6383906","24915.13","COMPANY","SSE CONTRACTING LTD","101806"
"Portsmouth City Council","PCC","Other","Suspense and Capital Schemes","Housing, Neighbourhood and Building Services","Premises-Related Expenditure","Repairs, alterations and maintenance of buildings","16/09/20","6384575","7210.89","COMPANY","SSE CONTRACTING LTD","101806"
"Portsmouth City Council","PCC","Other","Suspense and Capital Schemes","Housing, Neighbourhood and Building Services","Premises-Related Expenditure","Repairs, alterations and maintenance of buildings","16/09/20","6384575","6794.94","COMPANY","SSE CONTRACTING LTD","101806"
"Portsmouth City Council","PCC","Other","Suspense and Capital Schemes","Housing, Neighbourhood and Building Services","Premises-Related Expenditure","Repairs, alterations and maintenance of buildings","16/09/20","6384575","18925.92","COMPANY","SSE CONTRACTING LTD","101806"
"Portsmouth City Council","PCC","Other","Suspense and Capital Schemes","Housing, Neighbourhood and Building Services","Premises-Related Expenditure","Repairs, alterations and maintenance of buildings","22/09/20","6385341","59256.94","COMPANY","SSE CONTRACTING LTD","101806"
"Portsmouth City Council","PCC","Other","Suspense and Capital Schemes","Housing, Neighbourhood and Building Services","Premises-Related Expenditure","Repairs, alterations and maintenance of buildings","22/09/20","6385341","5186.49","COMPANY","SSE CONTRACTING LTD","101806"
"Portsmouth City Council","PCC","Other","Suspense and Capital Schemes","Housing, Neighbourhood and Building Services","Premises-Related Expenditure","Repairs, alterations and maintenance of buildings","24/09/20","6385977","960.38","COMPANY","SSE CONTRACTING LTD","101806"
"Portsmouth City Council","PCC","Other","Suspense and Capital Schemes","Capital - Children, Families and Education","Capital Charges","Capital Expenditure (WIP)","04/09/20","6382761","6678","VENDOR","SMALL ARCHITECTURE LIMITED","140263"
"Portsmouth City Council","PCC","Highways and Transport Services","Parking Services","Regeneration","Supplies and Services","Communications and computing","10/09/20","6383630","1364.26","VENDOR","EASY NETWORKS LTD","100142"
"Portsmouth City Council","PCC","Adult Social Care","Social Care Activities","Adult Services","Third Party Payments","Other establishments","03/09/20","6382523","226.78","VENDOR","AGE UK","110748"
"Portsmouth City Council","PCC","Adult Social Care","Physical Support Older People (85+)","Adult Services","Third Party Payments","Other establishments","03/09/20","6382524","3744.6","VENDOR","AGINCARE UK","134367"
"Portsmouth City Council","PCC","Adult Social Care","Support with Memory and Cognition Older People (85+)","Adult Services","Third Party Payments","Other establishments","24/09/20","6385897","527.4","VENDOR","AGINCARE UK","134367"
"Portsmouth City Council","PCC","Adult Social Care","Physical Support Adults (18 - 64)","Adult Services","Third Party Payments","Other establishments","11/09/20","6383719","3582.9","VENDOR","AGINCARE UK","134367"
"Portsmouth City Council","PCC","Adult Social Care","Physical Support Older People (85+)","Adult Services","Third Party Payments","Other establishments","11/09/20","6383719","2803.2","VENDOR","AGINCARE UK","134367"
"Portsmouth City Council","PCC","Adult Social Care","Social Care Activities","Adult Services","Third Party Payments","Other establishments","03/09/20","6382524","113.39","VENDOR","AGINCARE UK","134367"
"Portsmouth City Council","PCC","Adult Social Care","Support with Memory and Cognition Older People (85+)","Adult Services","Third Party Payments","Other establishments","11/09/20","6383723","-420","VENDOR","ALEXANDRA ROSE RESIDENTIAL CARE HOME","101952"
"Portsmouth City Council","PCC","Adult Social Care","Support with Memory and Cognition Older People (85+)","Adult Services","Third Party Payments","Other establishments","11/09/20","6383723","3985.8","VENDOR","ALEXANDRA ROSE RESIDENTIAL CARE HOME","101952"
"Portsmouth City Council","PCC","Adult Social Care","Support with Memory and Cognition Older People (85+)","Adult Services","Third Party Payments","Other establishments","11/09/20","6383723","1230.3","VENDOR","ALEXANDRA ROSE RESIDENTIAL CARE HOME","101952"
"Portsmouth City Council","PCC","Adult Social Care","Support with Memory and Cognition Older People (85+)","Adult Services","Third Party Payments","Other establishments","11/09/20","6383727","2769","VENDOR","ALTON HOUSE PARTNERSHIP","119112"
"Portsmouth City Council","PCC","Adult Social Care","Support with Memory and Cognition Older People (85+)","Adult Services","Third Party Payments","Other establishments","11/09/20","6383727","2769","VENDOR","ALTON HOUSE PARTNERSHIP","119112"
"Portsmouth City Council","PCC","Adult Social Care","Support with Memory and Cognition Older People (85+)","Adult Services","Third Party Payments","Other establishments","11/09/20","6383727","2769","VENDOR","ALTON HOUSE PARTNERSHIP","119112"
"Portsmouth City Council","PCC","Adult Social Care","Social Care Activities","Adult Services","Third Party Payments","Other establishments","11/09/20","6383728","-891","VENDOR","ALTON MANOR CARE HOME","130289"
"Portsmouth City Council","PCC","Planning Services","Business support","Regeneration","Premises-Related Expenditure","Repairs, alterations and maintenance of buildings","17/09/20","6384757","600","SOLETRADER","M J RITCHIE DECOR AND GUTTERING SERVICES","126505"
"Portsmouth City Council","PCC","Planning Services","Business support","Regeneration","Premises-Related Expenditure","Repairs, alterations and maintenance of buildings","17/09/20","6384757","120","SOLETRADER","M J RITCHIE DECOR AND GUTTERING SERVICES","126505"
"Portsmouth City Council","PCC","Other","Suspense and Capital Schemes","Capital - Housing RA","Capital Charges","Capital Expenditure (WIP)","11/09/20","6383715","10007.96","COMPANY","A PURKISS BUILDING AND DECORATING LTD","100338"
"Portsmouth City Council","PCC","Housing Services","Homelessness","Housing, Neighbourhood and Building Services","Supplies and Services","Grants and subscriptions","01/09/20","6381995","900","SOLETRADER","Classified as 'personal data' (under the Data Protection Act 2018)","147191"
"Portsmouth City Council","PCC","Housing Services","Homelessness","Housing, Neighbourhood and Building Services","Supplies and Services","Grants and subscriptions","21/09/20","6385010","1650","SOLETRADER","Classified as 'personal data' (under the Data Protection Act 2018)","147231"
"Portsmouth City Council","PCC","Children's and Education Services","Safeguarding Children and Young Peoples Services","Children's Services and Education","Third Party Payments","Private contractors","28/09/20","6386568","34396","VENDOR","MIND OF MY OWN","147199"
"Portsmouth City Council","PCC","Adult Social Care","Physical Support Older People (85+)","Adult Services","Third Party Payments","Other establishments","29/09/20","6386626","147.9","VENDOR","APEX PROPERTY VENTURES LTD","108437"
"Portsmouth City Council","PCC","Adult Social Care","Physical Support Older People (85+)","Adult Services","Third Party Payments","Other establishments","29/09/20","6386626","548.1","VENDOR","APEX PROPERTY VENTURES LTD","108437"
"Portsmouth City Council","PCC","Adult Social Care","Physical Support Older People (85+)","Adult Services","Third Party Payments","Other establishments","29/09/20","6386626","478.5","VENDOR","APEX PROPERTY VENTURES LTD","108437"
"Portsmouth City Council","PCC","Adult Social Care","Physical Support Older People (85+)","Adult Services","Third Party Payments","Other establishments","29/09/20","6386626","1061.4","VENDOR","APEX PROPERTY VENTURES LTD","108437"
"Portsmouth City Council","PCC","Other","Suspense and Capital Schemes","Capital - Housing General Fund","Capital Charges","REFCUS","07/09/20","6382841","2039.52","COMPANY","L DEVINE AND CO LIMITED","111002"
"Portsmouth City Council","PCC","Housing Services","Private Sector Housing Renewal","Housing, Neighbourhood and Building Services","Income","Other grants reimbursements and contributions","07/09/20","6382841","-182.1","COMPANY","L DEVINE AND CO LIMITED","111002"
"Portsmouth City Council","PCC","Housing Revenue Account","Special Services","Housing, Neighbourhood and Building Services","Third Party Payments","Private contractors","02/09/20","6382333","540.33","VENDOR","NETWORK SECURITY & ALARMS LTD","129167"
"Portsmouth City Council","PCC","Children's and Education Services","Safeguarding Children and Young Peoples Services","Children's Services and Education","Third Party Payments","Other establishments","08/09/20","6382979","487.14","VENDOR","SAKURA CARE LIMITED","144940"
"Portsmouth City Council","PCC","Children's and Education Services","Safeguarding Children and Young Peoples Services","Children's Services and Education","Third Party Payments","Other establishments","08/09/20","6382979","-44.19","VENDOR","SAKURA CARE LIMITED","144940"
"Portsmouth City Council","PCC","Children's and Education Services","Safeguarding Children and Young Peoples Services","Children's Services and Education","Third Party Payments","Other establishments","08/09/20","6382979","3830.71","VENDOR","SAKURA CARE LIMITED","144940"
"Portsmouth City Council","PCC","Children's and Education Services","Asylum seekers","Children's Services and Education","Third Party Payments","Other establishments","10/09/20","6383677","487.14","VENDOR","SAKURA CARE LIMITED","144940"
"Portsmouth City Council","PCC","Children's and Education Services","Asylum seekers","Children's Services and Education","Third Party Payments","Other establishments","10/09/20","6383677","212.18","VENDOR","SAKURA CARE LIMITED","144940"
"Portsmouth City Council","PCC","Children's and Education Services","Asylum seekers","Children's Services and Education","Third Party Payments","Other establishments","10/09/20","6383677","3830.71","VENDOR","SAKURA CARE LIMITED","144940"
"Portsmouth City Council","PCC","Children's and Education Services","Safeguarding Children and Young Peoples Services","Children's Services and Education","Third Party Payments","Other establishments","21/09/20","6385041","248.15","VENDOR","SAKURA CARE LIMITED","144940"
"Portsmouth City Council","PCC","Children's and Education Services","Safeguarding Children and Young Peoples Services","Children's Services and Education","Third Party Payments","Other establishments","21/09/20","6385041","471.43","VENDOR","SAKURA CARE LIMITED","144940"
"Portsmouth City Council","PCC","Children's and Education Services","Safeguarding Children and Young Peoples Services","Children's Services and Education","Third Party Payments","Other establishments","21/09/20","6385041","-42.83","VENDOR","SAKURA CARE LIMITED","144940"
"Portsmouth City Council","PCC","Children's and Education Services","Safeguarding Children and Young Peoples Services","Children's Services and Education","Third Party Payments","Other establishments","21/09/20","6385041","3707.15","VENDOR","SAKURA CARE LIMITED","144940"
"Portsmouth City Council","PCC","Children's and Education Services","Asylum seekers","Children's Services and Education","Third Party Payments","Other establishments","21/09/20","6385041","248.15","VENDOR","SAKURA CARE LIMITED","144940"
"Portsmouth City Council","PCC","Children's and Education Services","Asylum seekers","Children's Services and Education","Third Party Payments","Other establishments","21/09/20","6385041","471.43","VENDOR","SAKURA CARE LIMITED","144940"
"Portsmouth City Council","PCC","Children's and Education Services","Asylum seekers","Children's Services and Education","Third Party Payments","Other establishments","21/09/20","6385041","-42.83","VENDOR","SAKURA CARE LIMITED","144940"
"Portsmouth City Council","PCC","Children's and Education Services","Asylum seekers","Children's Services and Education","Third Party Payments","Other establishments","21/09/20","6385041","3707.15","VENDOR","SAKURA CARE LIMITED","144940"
"Portsmouth City Council","PCC","Children's and Education Services","Safeguarding Children and Young Peoples Services","Children's Services and Education","Third Party Payments","Other establishments","21/09/20","6385041","471.43","VENDOR","SAKURA CARE LIMITED","144940"
"Portsmouth City Council","PCC","Children's and Education Services","Safeguarding Children and Young Peoples Services","Children's Services and Education","Third Party Payments","Other establishments","21/09/20","6385041","-42.78","VENDOR","SAKURA CARE LIMITED","144940"
"Portsmouth City Council","PCC","Children's and Education Services","Safeguarding Children and Young Peoples Services","Children's Services and Education","Third Party Payments","Other establishments","21/09/20","6385041","3707.15","VENDOR","SAKURA CARE LIMITED","144940"
"Portsmouth City Council","PCC","Children's and Education Services","Asylum seekers","Children's Services and Education","Third Party Payments","Other establishments","21/09/20","6385041","248.15","VENDOR","SAKURA CARE LIMITED","144940"
"Portsmouth City Council","PCC","Children's and Education Services","Asylum seekers","Children's Services and Education","Third Party Payments","Other establishments","21/09/20","6385041","471.43","VENDOR","SAKURA CARE LIMITED","144940"
"Portsmouth City Council","PCC","Children's and Education Services","Asylum seekers","Children's Services and Education","Third Party Payments","Other establishments","21/09/20","6385041","-42.83","VENDOR","SAKURA CARE LIMITED","144940"
"Portsmouth City Council","PCC","Children's and Education Services","Asylum seekers","Children's Services and Education","Third Party Payments","Other establishments","21/09/20","6385041","3707.15","VENDOR","SAKURA CARE LIMITED","144940"
"Portsmouth City Council","PCC","Children's and Education Services","Safeguarding Children and Young Peoples Services","Children's Services and Education","Third Party Payments","Other establishments","21/09/20","6385041","471.43","VENDOR","SAKURA CARE LIMITED","144940"
"Portsmouth City Council","PCC","Children's and Education Services","Safeguarding Children and Young Peoples Services","Children's Services and Education","Third Party Payments","Other establishments","21/09/20","6385041","-42.78","VENDOR","SAKURA CARE LIMITED","144940"
"Portsmouth City Council","PCC","Children's and Education Services","Safeguarding Children and Young Peoples Services","Children's Services and Education","Third Party Payments","Other establishments","21/09/20","6385041","3707.15","VENDOR","SAKURA CARE LIMITED","144940"
"Portsmouth City Council","PCC","Children's and Education Services","Asylum seekers","Children's Services and Education","Third Party Payments","Other establishments","21/09/20","6385041","471.43","VENDOR","SAKURA CARE LIMITED","144940"
"Portsmouth City Council","PCC","Children's and Education Services","Asylum seekers","Children's Services and Education","Third Party Payments","Other establishments","21/09/20","6385041","-42.78","VENDOR","SAKURA CARE LIMITED","144940"
"Portsmouth City Council","PCC","Children's and Education Services","Asylum seekers","Children's Services and Education","Third Party Payments","Other establishments","21/09/20","6385041","3707.15","VENDOR","SAKURA CARE LIMITED","144940"
"Portsmouth City Council","PCC","Housing Revenue Account","Special Services","Housing, Neighbourhood and Building Services","Premises-Related Expenditure","Water Services","04/09/20","6382756","371.44","VENDOR","PORTSMOUTH WATER LTD","100253"
"Portsmouth City Council","PCC","Housing Revenue Account","Special Services","Housing, Neighbourhood and Building Services","Premises-Related Expenditure","Water Services","04/09/20","6382756","139.29","VENDOR","PORTSMOUTH WATER LTD","100253"
"Portsmouth City Council","PCC","Support Service / Transparency Costs Unallocated","Personnel","Corporate Services","Employees","Direct employee expenses","04/09/20","6382668","109412.45","VENDOR","COMENSURA LTD","140265"
"Portsmouth City Council","PCC","Housing Services","Homelessness","Housing, Neighbourhood and Building Services","Premises-Related Expenditure","Rents","25/09/20","6386068","2490","VENDOR","DOLPHIN PROPERTY RENTAL","107182"
"Portsmouth City Council","PCC","Support Service / Transparency Costs Unallocated","Personnel","Corporate Services","Employees","Direct employee expenses","11/09/20","6383765","76832.61","VENDOR","COMENSURA LTD","140265"
"Portsmouth City Council","PCC","Support Service / Transparency Costs Unallocated","Personnel","Corporate Services","Employees","Direct employee expenses","18/09/20","6384823","138755.92","VENDOR","COMENSURA LTD","140265"
"Portsmouth City Council","PCC","Support Service / Transparency Costs Unallocated","Personnel","Corporate Services","Employees","Direct employee expenses","25/09/20","6386040","88029.74","VENDOR","COMENSURA LTD","140265"
"Portsmouth City Council","PCC","Support Service / Transparency Costs Unallocated","AMS","Housing, Neighbourhood and Building Services","Supplies and Services","Communications and computing","10/09/20","6383569","432.86","VENDOR","CIVICA UK LTD","104001"
"Portsmouth City Council","PCC","Children's and Education Services","Family Support Services","Children's Services and Education","Third Party Payments","Private contractors","02/09/20","6382388","1222.8","VENDOR","RESTORE - RECORD STORAGE MANAGEMENT LIMITED","142168"
"Portsmouth City Council","PCC","Other","Suspense and Capital Schemes","Capital - Housing General Fund","Capital Charges","REFCUS","17/09/20","6384734","6007.2","COMPANY","DOLPHIN MOBILITY LTD","135682"
"Portsmouth City Council","PCC","Housing Services","Private Sector Housing Renewal","Housing, Neighbourhood and Building Services","Income","Other grants reimbursements and contributions","17/09/20","6384734","-956","COMPANY","DOLPHIN MOBILITY LTD","135682"
"Portsmouth City Council","PCC","Other","Suspense and Capital Schemes","Capital - Environment & Climate Change","Capital Charges","Capital Expenditure (WIP)","18/09/20","6384873","3103.4","VENDOR","HASKONINGDHV UK LIMITED","109400"
"Portsmouth City Council","PCC","Other","Suspense and Capital Schemes","Capital - Environment & Climate Change","Capital Charges","Capital Expenditure (WIP)","16/09/20","6384353","2344.5","VENDOR","HASKONINGDHV UK LIMITED","109400"
"Portsmouth City Council","PCC","Other","Suspense and Capital Schemes","Capital - Environment & Climate Change","Capital Charges","Capital Expenditure (WIP)","16/09/20","6384353","6119.82","VENDOR","HASKONINGDHV UK LIMITED","109400"
"Portsmouth City Council","PCC","Other","Suspense and Capital Schemes","Capital - Environment & Climate Change","Capital Charges","Capital Expenditure (WIP)","16/09/20","6384353","1988.25","VENDOR","HASKONINGDHV UK LIMITED","109400"
"Portsmouth City Council","PCC","Other","Suspense and Capital Schemes","Capital - Planning Policy & City Development","Capital Charges","Capital Expenditure (WIP)","23/09/20","6385559","95225.33","VENDOR","HASKONINGDHV UK LIMITED","109400"
"Portsmouth City Council","PCC","Costs below Net Cost of Services","Trading","Regeneration","Supplies and Services","Services","15/09/20","6384150","1508.91","VENDOR","THE OYSTER PARTNERSHIP","120530"
"Portsmouth City Council","PCC","Costs below Net Cost of Services","Trading","Regeneration","Supplies and Services","Services","22/09/20","6385353","2111.16","VENDOR","THE OYSTER PARTNERSHIP","120530"
"Portsmouth City Council","PCC","Costs below Net Cost of Services","Trading","Regeneration","Supplies and Services","Services","30/09/20","6387203","2117","VENDOR","THE OYSTER PARTNERSHIP","120530"
"Portsmouth City Council","PCC","Children's and Education Services","Safeguarding Children and Young Peoples Services","Children's Services and Education","Third Party Payments","Other establishments","02/09/20","6382058","-2266.94","VENDOR","BLUE SKY FOSTERING","119870"
"Portsmouth City Council","PCC","Children's and Education Services","Safeguarding Children and Young Peoples Services","Children's Services and Education","Third Party Payments","Other establishments","02/09/20","6382058","3467.57","VENDOR","BLUE SKY FOSTERING","119870"
"Portsmouth City Council","PCC","Children's and Education Services","Children Looked After","Children's Services and Education","Third Party Payments","Other establishments","02/09/20","6382058","-0.27","VENDOR","BLUE SKY FOSTERING","119870"
"Portsmouth City Council","PCC","Children's and Education Services","Children Looked After","Children's Services and Education","Third Party Payments","Other establishments","02/09/20","6382058","3423.29","VENDOR","BLUE SKY FOSTERING","119870"
"Portsmouth City Council","PCC","Children's and Education Services","Children Looked After","Children's Services and Education","Third Party Payments","Other establishments","02/09/20","6382058","0.04","VENDOR","BLUE SKY FOSTERING","119870"
"Portsmouth City Council","PCC","Children's and Education Services","Children Looked After","Children's Services and Education","Third Party Payments","Other establishments","02/09/20","6382058","3423.29","VENDOR","BLUE SKY FOSTERING","119870"
"Portsmouth City Council","PCC","Highways and Transport Services","Parking Services","Regeneration","Supplies and Services","Services","15/09/20","6384130","561","VENDOR","PATROL","128656"
"Portsmouth City Council","PCC","Costs below Net Cost of Services","Trading","Regeneration","Supplies and Services","Services","01/09/20","6381942","5778.4","VENDOR","CLYDE AND CO","134667"
"Portsmouth City Council","PCC","Costs below Net Cost of Services","Trading","Regeneration","Supplies and Services","Services","14/09/20","6383964","1391","VENDOR","CLYDE AND CO","134667"
"Portsmouth City Council","PCC","Cultural and Related Services","Open Spaces","Culture, Leisure & Regulatory Services","Premises-Related Expenditure","Grounds maintenance costs","28/09/20","6386545","1209.3","VENDOR","GEDNEY BULB COMPANY LTD","146071"
"Portsmouth City Council","PCC","Other","Suspense and Capital Schemes","Capital - Culture, Leisure and Economic Development","Capital Charges","Capital Expenditure (WIP)","22/09/20","6385299","1961.51","VENDOR","J SUTTLE TRANSPORT LTD T/A SUTTLE STONE QUARRIES","147043"
"Portsmouth City Council","PCC","Other","Suspense and Capital Schemes","Capital - Culture, Leisure and Economic Development","Capital Charges","Capital Expenditure (WIP)","22/09/20","6385299","1965.91","VENDOR","J SUTTLE TRANSPORT LTD T/A SUTTLE STONE QUARRIES","147043"
"Portsmouth City Council","PCC","Other","Suspense and Capital Schemes","Capital - Culture, Leisure and Economic Development","Capital Charges","Capital Expenditure (WIP)","22/09/20","6385299","1961.51","VENDOR","J SUTTLE TRANSPORT LTD T/A SUTTLE STONE QUARRIES","147043"
"Portsmouth City Council","PCC","Support Service / Transparency Costs Unallocated","AMS","Housing, Neighbourhood and Building Services","Third Party Payments","Private contractors","18/09/20","6384925","649.6","VENDOR","THE INSTITUTION OF ENGINEERING AND TECHNOLOGY","144401"
"Portsmouth City Council","PCC","Costs below Net Cost of Services","Trading","Regeneration","Third Party Payments","Private contractors","07/09/20","6382888","1616","VENDOR","THE MINISTRY OF DEFENCE","114001"
"Portsmouth City Council","PCC","Housing Revenue Account","Rents, Rates, Taxes and Other Charges","Housing, Neighbourhood and Building Services","Premises-Related Expenditure","Energy costs","16/09/20","6384480","26.76","VENDOR","NPOWER","104871"
"Portsmouth City Council","PCC","Children's and Education Services","Safeguarding Children and Young Peoples Services","Children's Services and Education","Third Party Payments","Other establishments","22/09/20","6385335","256.41","VENDOR","SILVER BIRCH CARE LIMITED","146315"
"Portsmouth City Council","PCC","Children's and Education Services","Safeguarding Children and Young Peoples Services","Children's Services and Education","Third Party Payments","Other establishments","22/09/20","6385335","24783.17","VENDOR","SILVER BIRCH CARE LIMITED","146315"
"Portsmouth City Council","PCC","Children's and Education Services","Safeguarding Children and Young Peoples Services","Children's Services and Education","Third Party Payments","Other establishments","22/09/20","6385335","-42.96","VENDOR","SILVER BIRCH CARE LIMITED","146315"
"Portsmouth City Council","PCC","Children's and Education Services","Safeguarding Children and Young Peoples Services","Children's Services and Education","Third Party Payments","Other establishments","22/09/20","6385335","3875","VENDOR","SILVER BIRCH CARE LIMITED","146315"
"Portsmouth City Council","PCC","Children's and Education Services","Safeguarding Children and Young Peoples Services","Children's Services and Education","Third Party Payments","Other establishments","15/09/20","6384142","256.41","VENDOR","SILVER BIRCH CARE LIMITED","146315"
"Portsmouth City Council","PCC","Children's and Education Services","Children Looked After","Children's Services and Education","Third Party Payments","Other establishments","14/09/20","6384045","-300.71","VENDOR","SILVER BIRCH CARE LIMITED","146315"
"Portsmouth City Council","PCC","Children's and Education Services","Children Looked After","Children's Services and Education","Third Party Payments","Other establishments","14/09/20","6384045","3909.99","VENDOR","SILVER BIRCH CARE LIMITED","146315"
"Portsmouth City Council","PCC","Children's and Education Services","Children Looked After","Children's Services and Education","Third Party Payments","Other establishments","15/09/20","6384142","256.41","VENDOR","SILVER BIRCH CARE LIMITED","146315"
"Portsmouth City Council","PCC","Children's and Education Services","Asylum seekers","Children's Services and Education","Third Party Payments","Other establishments","28/09/20","6386596","90.99","VENDOR","SILVER BIRCH CARE LIMITED","146315"
"Portsmouth City Council","PCC","Children's and Education Services","Asylum seekers","Children's Services and Education","Third Party Payments","Other establishments","28/09/20","6386596","59","VENDOR","SILVER BIRCH CARE LIMITED","146315"
"Portsmouth City Council","PCC","Children's and Education Services","Asylum seekers","Children's Services and Education","Third Party Payments","Other establishments","28/09/20","6386596","-60","VENDOR","SILVER BIRCH CARE LIMITED","146315"
"Portsmouth City Council","PCC","Children's and Education Services","Asylum seekers","Children's Services and Education","Third Party Payments","Other establishments","28/09/20","6386596","60","VENDOR","SILVER BIRCH CARE LIMITED","146315"
"Portsmouth City Council","PCC","Children's and Education Services","Asylum seekers","Children's Services and Education","Third Party Payments","Other establishments","28/09/20","6386596","90.98","VENDOR","SILVER BIRCH CARE LIMITED","146315"
"Portsmouth City Council","PCC","Children's and Education Services","Asylum seekers","Children's Services and Education","Third Party Payments","Other establishments","28/09/20","6386596","-90.98","VENDOR","SILVER BIRCH CARE LIMITED","146315"
"Portsmouth City Council","PCC","Children's and Education Services","Asylum seekers","Children's Services and Education","Third Party Payments","Other establishments","28/09/20","6386596","1375","VENDOR","SILVER BIRCH CARE LIMITED","146315"
"Portsmouth City Council","PCC","Children's and Education Services","Other Education and Community Budget","Children's Services and Education","Supplies and Services","Miscellaneous expenses","11/09/20","6383936","4000","VENDOR","UNLOC LEARNING LIMITED","137515"
"Portsmouth City Council","PCC","Central Services","Elections","Corporate Services","Supplies and Services","Printing, stationery and general office expenses","04/09/20","6382713","465.28","VENDOR","FINANCIAL DATA MANANGEMENT PLC","102246"
"Portsmouth City Council","PCC","Other","Suspense and Capital Schemes","Housing, Neighbourhood and Building Services","Third Party Payments","Private contractors","28/09/20","6386551","450000","OTHER LOCAL AUTHORITY","HAMPSHIRE COUNTY COUNCIL","100030"
"Portsmouth City Council","PCC","Support Service / Transparency Costs Unallocated","Personnel","Corporate Services","Employees","Indirect employee expenses","04/09/20","6382749","1166","VENDOR","MG CARE EXECUTIVE LTD","145566"
"Portsmouth City Council","PCC","Support Service / Transparency Costs Unallocated","Personnel","Corporate Services","Employees","Indirect employee expenses","04/09/20","6382749","125","VENDOR","MG CARE EXECUTIVE LTD","145566"
"Portsmouth City Council","PCC","Adult Social Care","Learning Disability Support  Adults (18 - 64)","Adult Services","Premises-Related Expenditure","Water Services","03/09/20","6382649","-2323.48","VENDOR","ADVANCED DEMAND SIDE MANAGEMENT LIMITED","143817"
"Portsmouth City Council","PCC","Adult Social Care","Support with Memory and Cognition Older People (65 - 74)","Adult Services","Premises-Related Expenditure","Water Services","03/09/20","6382649","-1975.74","VENDOR","ADVANCED DEMAND SIDE MANAGEMENT LIMITED","143817"
"Portsmouth City Council","PCC","Adult Social Care","Support with Memory and Cognition Older People (65 - 74)","Adult Services","Premises-Related Expenditure","Water Services","03/09/20","6382649","-1.49","VENDOR","ADVANCED DEMAND SIDE MANAGEMENT LIMITED","143817"
"Portsmouth City Council","PCC","Children's and Education Services","Special Schools","Children's Services and Education","Third Party Payments","Other establishments","04/09/20","6382722","4938.79","VENDOR","HILLCREST CHILDRENS SERVICES LIMITED","117913"
"Portsmouth City Council","PCC","Support Service / Transparency Costs Unallocated","Personnel","Corporate Services","Employees","Indirect employee expenses","11/09/20","6383863","846","VENDOR","MG CARE EXECUTIVE LTD","145566"
"Portsmouth City Council","PCC","Support Service / Transparency Costs Unallocated","Personnel","Corporate Services","Employees","Indirect employee expenses","11/09/20","6383863","88","VENDOR","MG CARE EXECUTIVE LTD","145566"
"Portsmouth City Council","PCC","Housing Services","Homelessness","Housing, Neighbourhood and Building Services","Supplies and Services","Grants and subscriptions","15/09/20","6384064","575","VENDOR","BARRAKAV PROPERTIES","146896"
"Portsmouth City Council","PCC","Housing Services","Homelessness","Housing, Neighbourhood and Building Services","Premises-Related Expenditure","Rents","25/09/20","6386039","1830","SOLETRADER","Classified as 'personal data' (under the Data Protection Act 2018)","139708"
"Portsmouth City Council","PCC","Support Service / Transparency Costs Unallocated","Personnel","Corporate Services","Employees","Indirect employee expenses","18/09/20","6384890","646","VENDOR","MG CARE EXECUTIVE LTD","145566"
"Portsmouth City Council","PCC","Support Service / Transparency Costs Unallocated","Personnel","Corporate Services","Employees","Indirect employee expenses","18/09/20","6384890","68","VENDOR","MG CARE EXECUTIVE LTD","145566"
"Portsmouth City Council","PCC","Adult Social Care","Physical Support Adults (18 - 64)","Adult Services","Third Party Payments","Other establishments","11/09/20","6383728","3342.9","VENDOR","ALTON MANOR CARE HOME","130289"
"Portsmouth City Council","PCC","Other","Suspense and Capital Schemes","Capital - Resources","Capital Charges","Capital Expenditure (WIP)","10/09/20","6383643","10490","VENDOR","IN-TEND LTD","121323"
"Portsmouth City Council","PCC","Support Service / Transparency Costs Unallocated","Personnel","Corporate Services","Employees","Indirect employee expenses","25/09/20","6386121","1526","VENDOR","MG CARE EXECUTIVE LTD","145566"
"Portsmouth City Council","PCC","Support Service / Transparency Costs Unallocated","Personnel","Corporate Services","Employees","Indirect employee expenses","25/09/20","6386121","156","VENDOR","MG CARE EXECUTIVE LTD","145566"
"Portsmouth City Council","PCC","Environmental and Regulatory Services","Cemetery, Cremation and Mortuary Services","Culture, Leisure & Regulatory Services","Third Party Payments","Private contractors","30/09/20","6386908","680.68","VENDOR","F G MARSHALL LTD","100786"
"Portsmouth City Council","PCC","Environmental and Regulatory Services","Cemetery, Cremation and Mortuary Services","Culture, Leisure & Regulatory Services","Third Party Payments","Private contractors","30/09/20","6386908","500.09","VENDOR","F G MARSHALL LTD","100786"
"Portsmouth City Council","PCC","Planning Services","Business support","Regeneration","Premises-Related Expenditure","Repairs, alterations and maintenance of buildings","10/09/20","6383683","20.16","VENDOR","SIX DEGREES TECHNOLOGY GROUP LTD","137034"
"Portsmouth City Council","PCC","Planning Services","Business support","Regeneration","Premises-Related Expenditure","Repairs, alterations and maintenance of buildings","10/09/20","6383683","37.32","VENDOR","SIX DEGREES TECHNOLOGY GROUP LTD","137034"
"Portsmouth City Council","PCC","Cultural and Related Services","Recreation and Sport","Culture, Leisure & Regulatory Services","Premises-Related Expenditure","Repairs, alterations and maintenance of buildings","10/09/20","6383683","37.32","VENDOR","SIX DEGREES TECHNOLOGY GROUP LTD","137034"
"Portsmouth City Council","PCC","Support Service / Transparency Costs Unallocated","LLM","Housing, Neighbourhood and Building Services","Premises-Related Expenditure","Repairs, alterations and maintenance of buildings","10/09/20","6383683","57.48","VENDOR","SIX DEGREES TECHNOLOGY GROUP LTD","137034"
"Portsmouth City Council","PCC","Support Service / Transparency Costs Unallocated","LLM","Housing, Neighbourhood and Building Services","Premises-Related Expenditure","Repairs, alterations and maintenance of buildings","10/09/20","6383683","18.66","VENDOR","SIX DEGREES TECHNOLOGY GROUP LTD","137034"
"Portsmouth City Council","PCC","Support Service / Transparency Costs Unallocated","LLM","Housing, Neighbourhood and Building Services","Premises-Related Expenditure","Repairs, alterations and maintenance of buildings","10/09/20","6383683","18.66","VENDOR","SIX DEGREES TECHNOLOGY GROUP LTD","137034"
"Portsmouth City Council","PCC","Support Service / Transparency Costs Unallocated","LLM","Housing, Neighbourhood and Building Services","Premises-Related Expenditure","Repairs, alterations and maintenance of buildings","10/09/20","6383683","18.66","VENDOR","SIX DEGREES TECHNOLOGY GROUP LTD","137034"
"Portsmouth City Council","PCC","Support Service / Transparency Costs Unallocated","LLM","Housing, Neighbourhood and Building Services","Premises-Related Expenditure","Repairs, alterations and maintenance of buildings","10/09/20","6383683","40.32","VENDOR","SIX DEGREES TECHNOLOGY GROUP LTD","137034"
"Portsmouth City Council","PCC","Support Service / Transparency Costs Unallocated","LLM","Housing, Neighbourhood and Building Services","Premises-Related Expenditure","Repairs, alterations and maintenance of buildings","10/09/20","6383683","40.32","VENDOR","SIX DEGREES TECHNOLOGY GROUP LTD","137034"
"Portsmouth City Council","PCC","Support Service / Transparency Costs Unallocated","LLM","Housing, Neighbourhood and Building Services","Premises-Related Expenditure","Repairs, alterations and maintenance of buildings","10/09/20","6383683","20.16","VENDOR","SIX DEGREES TECHNOLOGY GROUP LTD","137034"
"Portsmouth City Council","PCC","Support Service / Transparency Costs Unallocated","LLM","Housing, Neighbourhood and Building Services","Premises-Related Expenditure","Repairs, alterations and maintenance of buildings","10/09/20","6383683","20.16","VENDOR","SIX DEGREES TECHNOLOGY GROUP LTD","137034"
"Portsmouth City Council","PCC","Support Service / Transparency Costs Unallocated","LLM","Housing, Neighbourhood and Building Services","Premises-Related Expenditure","Repairs, alterations and maintenance of buildings","10/09/20","6383683","20.16","VENDOR","SIX DEGREES TECHNOLOGY GROUP LTD","137034"
"Portsmouth City Council","PCC","Support Service / Transparency Costs Unallocated","LLM","Housing, Neighbourhood and Building Services","Premises-Related Expenditure","Repairs, alterations and maintenance of buildings","10/09/20","6383683","18.66","VENDOR","SIX DEGREES TECHNOLOGY GROUP LTD","137034"
"Portsmouth City Council","PCC","Support Service / Transparency Costs Unallocated","LLM","Housing, Neighbourhood and Building Services","Premises-Related Expenditure","Repairs, alterations and maintenance of buildings","10/09/20","6383683","18.66","VENDOR","SIX DEGREES TECHNOLOGY GROUP LTD","137034"
"Portsmouth City Council","PCC","Housing Revenue Account","Repairs and Maintenance","Housing, Neighbourhood and Building Services","Premises-Related Expenditure","Repairs, alterations and maintenance of buildings","10/09/20","6383683","1507.21","VENDOR","SIX DEGREES TECHNOLOGY GROUP LTD","137034"
"Portsmouth City Council","PCC","Highways and Transport Services","Airports, Harbours and Toll Facilities","Portsmouth International Port","Supplies and Services","Equipment, furniture and materials","17/09/20","6384771","805","VENDOR","RAPISCAN SYSTEMS LIMITED","108247"
"Portsmouth City Council","PCC","Highways and Transport Services","Structural Maintenance","Regeneration","Supplies and Services","Communications and computing","02/09/20","6382161","3725.36","VENDOR","ELGIN","137378"
"Portsmouth City Council","PCC","Children's and Education Services","Children Looked After","Children's Services and Education","Supplies and Services","Services","04/09/20","6382785","733.5","VENDOR","WRITE TRAK LTD","118543"
"Portsmouth City Council","PCC","Housing Services","Homelessness","Housing, Neighbourhood and Building Services","Supplies and Services","Miscellaneous expenses","28/09/20","6386554","25363.64","VENDOR","HELLO STUDENT MANAGEMENT LIMITED","147251"
"Portsmouth City Council","PCC","Housing Services","Homelessness","Housing, Neighbourhood and Building Services","Supplies and Services","Miscellaneous expenses","28/09/20","6386554","8181.82","VENDOR","HELLO STUDENT MANAGEMENT LIMITED","147251"
"Portsmouth City Council","PCC","Housing Services","Homelessness","Housing, Neighbourhood and Building Services","Supplies and Services","Miscellaneous expenses","28/09/20","6386554","9090.91","VENDOR","HELLO STUDENT MANAGEMENT LIMITED","147251"
"Portsmouth City Council","PCC","Housing Services","Homelessness","Housing, Neighbourhood and Building Services","Supplies and Services","Miscellaneous expenses","28/09/20","6386554","28181.82","VENDOR","HELLO STUDENT MANAGEMENT LIMITED","147251"
"Portsmouth City Council","PCC","Children's and Education Services","Children Looked After","Children's Services and Education","Supplies and Services","Services","04/09/20","6382785","733.5","VENDOR","WRITE TRAK LTD","118543"
"Portsmouth City Council","PCC","Other","Suspense and Capital Schemes","Housing, Neighbourhood and Building Services","Supplies and Services","Services","02/09/20","6382249","8128.6","VENDOR","KEMP BUILDERS","135362"
"Portsmouth City Council","PCC","Environmental and Regulatory Services","Cemetery, Cremation and Mortuary Services","Culture, Leisure & Regulatory Services","Third Party Payments","Private contractors","30/09/20","6386908","714.72","VENDOR","F G MARSHALL LTD","100786"
"Portsmouth City Council","PCC","Costs below Net Cost of Services","Trading","Housing, Neighbourhood and Building Services","Premises-Related Expenditure","Repairs, alterations and maintenance of buildings","02/09/20","6382177","1200","VENDOR","FOREMOST TREESURGEONS LIMITED","128311"
"Portsmouth City Council","PCC","Highways and Transport Services","Parking Services","Regeneration","Supplies and Services","Printing, stationery and general office expenses","04/09/20","6382748","439.2","VENDOR","MCAARP HOLDINGS T/A INTEGRITY PRINT LTD","144547"
"Portsmouth City Council","PCC","Support Service / Transparency Costs Unallocated","Personnel","Corporate Services","Employees","Indirect employee expenses","24/09/20","6385970","240","VENDOR","RMC EMEA LIMITED","122070"
"Portsmouth City Council","PCC","Support Service / Transparency Costs Unallocated","Personnel","Corporate Services","Employees","Indirect employee expenses","24/09/20","6385970","180","VENDOR","RMC EMEA LIMITED","122070"
"Portsmouth City Council","PCC","Support Service / Transparency Costs Unallocated","Personnel","Corporate Services","Employees","Indirect employee expenses","24/09/20","6385970","120","VENDOR","RMC EMEA LIMITED","122070"
"Portsmouth City Council","PCC","Support Service / Transparency Costs Unallocated","Personnel","Corporate Services","Employees","Indirect employee expenses","24/09/20","6385970","60","VENDOR","RMC EMEA LIMITED","122070"
"Portsmouth City Council","PCC","Support Service / Transparency Costs Unallocated","Personnel","Corporate Services","Employees","Indirect employee expenses","24/09/20","6385970","120","VENDOR","RMC EMEA LIMITED","122070"
"Portsmouth City Council","PCC","Support Service / Transparency Costs Unallocated","Personnel","Corporate Services","Employees","Indirect employee expenses","24/09/20","6385970","180","VENDOR","RMC EMEA LIMITED","122070"
"Portsmouth City Council","PCC","Support Service / Transparency Costs Unallocated","Personnel","Corporate Services","Employees","Indirect employee expenses","24/09/20","6385970","48","VENDOR","RMC EMEA LIMITED","122070"
"Portsmouth City Council","PCC","Support Service / Transparency Costs Unallocated","Personnel","Corporate Services","Employees","Indirect employee expenses","24/09/20","6385970","144","VENDOR","RMC EMEA LIMITED","122070"
"Portsmouth City Council","PCC","Support Service / Transparency Costs Unallocated","Personnel","Corporate Services","Employees","Indirect employee expenses","24/09/20","6385970","60","VENDOR","RMC EMEA LIMITED","122070"
"Portsmouth City Council","PCC","Support Service / Transparency Costs Unallocated","Personnel","Corporate Services","Employees","Indirect employee expenses","24/09/20","6385970","60","VENDOR","RMC EMEA LIMITED","122070"
"Portsmouth City Council","PCC","Support Service / Transparency Costs Unallocated","Personnel","Corporate Services","Employees","Indirect employee expenses","24/09/20","6385970","120","VENDOR","RMC EMEA LIMITED","122070"
"Portsmouth City Council","PCC","Adult Social Care","Support with Memory and Cognition Older People (65 - 74)","Adult Services","Premises-Related Expenditure","Water Services","03/09/20","6382649","-763.04","VENDOR","ADVANCED DEMAND SIDE MANAGEMENT LIMITED","143817"
"Portsmouth City Council","PCC","Housing Services","Homelessness","Housing, Neighbourhood and Building Services","Premises-Related Expenditure","Rents","29/09/20","6386703","1560","SOLETRADER","Classified as 'personal data' (under the Data Protection Act 2018)","138874"
"Portsmouth City Council","PCC","Housing Services","Homelessness","Housing, Neighbourhood and Building Services","Premises-Related Expenditure","Rents","25/09/20","6386093","2490","SOLETRADER","Classified as 'personal data' (under the Data Protection Act 2018)","135979"
"Portsmouth City Council","PCC","Other","Suspense and Capital Schemes","Capital - Housing RA","Capital Charges","REFCUS","17/09/20","6384758","94","VENDOR","MACKS & SONS","102366"
"Portsmouth City Council","PCC","Adult Social Care","Physical Support Older People (85+)","Adult Services","Third Party Payments","Other establishments","29/09/20","6386626","365.4","VENDOR","APEX PROPERTY VENTURES LTD","108437"
"Portsmouth City Council","PCC","Adult Social Care","Physical Support Older People (85+)","Adult Services","Third Party Payments","Other establishments","29/09/20","6386626","104.4","VENDOR","APEX PROPERTY VENTURES LTD","108437"
"Portsmouth City Council","PCC","Adult Social Care","Physical Support Older People (85+)","Adult Services","Third Party Payments","Other establishments","29/09/20","6386626","104.4","VENDOR","APEX PROPERTY VENTURES LTD","108437"
"Portsmouth City Council","PCC","Adult Social Care","Physical Support Older People (85+)","Adult Services","Third Party Payments","Other establishments","29/09/20","6386626","852.6","VENDOR","APEX PROPERTY VENTURES LTD","108437"
"Portsmouth City Council","PCC","Adult Social Care","Physical Support Older People (85+)","Adult Services","Third Party Payments","Other establishments","29/09/20","6386626","487.2","VENDOR","APEX PROPERTY VENTURES LTD","108437"
"Portsmouth City Council","PCC","Adult Social Care","Physical Support Older People (85+)","Adult Services","Third Party Payments","Other establishments","29/09/20","6386626","365.4","VENDOR","APEX PROPERTY VENTURES LTD","108437"
"Portsmouth City Council","PCC","Adult Social Care","Physical Support Older People (85+)","Adult Services","Third Party Payments","Other establishments","29/09/20","6386626","139.2","VENDOR","APEX PROPERTY VENTURES LTD","108437"
"Portsmouth City Council","PCC","Adult Social Care","Physical Support Older People (85+)","Adult Services","Third Party Payments","Other establishments","29/09/20","6386626","887.4","VENDOR","APEX PROPERTY VENTURES LTD","108437"
"Portsmouth City Council","PCC","Adult Social Care","Physical Support Older People (85+)","Adult Services","Third Party Payments","Other establishments","29/09/20","6386626","69.6","VENDOR","APEX PROPERTY VENTURES LTD","108437"
"Portsmouth City Council","PCC","Adult Social Care","Physical Support Older People (85+)","Adult Services","Third Party Payments","Other establishments","29/09/20","6386626","452.4","VENDOR","APEX PROPERTY VENTURES LTD","108437"
"Portsmouth City Council","PCC","Adult Social Care","Physical Support Older People (85+)","Adult Services","Third Party Payments","Other establishments","29/09/20","6386626","1096.2","VENDOR","APEX PROPERTY VENTURES LTD","108437"
"Portsmouth City Council","PCC","Adult Social Care","Physical Support Older People (85+)","Adult Services","Third Party Payments","Other establishments","29/09/20","6386626","1096.2","VENDOR","APEX PROPERTY VENTURES LTD","108437"
"Portsmouth City Council","PCC","Adult Social Care","Physical Support Older People (85+)","Adult Services","Third Party Payments","Other establishments","29/09/20","6386626","487.2","VENDOR","APEX PROPERTY VENTURES LTD","108437"
"Portsmouth City Council","PCC","Adult Social Care","Physical Support Older People (85+)","Adult Services","Third Party Payments","Other establishments","29/09/20","6386626","852.6","VENDOR","APEX PROPERTY VENTURES LTD","108437"
"Portsmouth City Council","PCC","Adult Social Care","Physical Support Older People (85+)","Adult Services","Third Party Payments","Other establishments","29/09/20","6386626","974.4","VENDOR","APEX PROPERTY VENTURES LTD","108437"
"Portsmouth City Council","PCC","Adult Social Care","Physical Support Older People (85+)","Adult Services","Third Party Payments","Other establishments","29/09/20","6386626","974.4","VENDOR","APEX PROPERTY VENTURES LTD","108437"
"Portsmouth City Council","PCC","Adult Social Care","Physical Support Older People (85+)","Adult Services","Third Party Payments","Other establishments","29/09/20","6386626","730.8","VENDOR","APEX PROPERTY VENTURES LTD","108437"
"Portsmouth City Council","PCC","Adult Social Care","Physical Support Older People (85+)","Adult Services","Third Party Payments","Other establishments","29/09/20","6386626","730.8","VENDOR","APEX PROPERTY VENTURES LTD","108437"
"Portsmouth City Council","PCC","Adult Social Care","Physical Support Older People (85+)","Adult Services","Third Party Payments","Other establishments","29/09/20","6386626","278.4","VENDOR","APEX PROPERTY VENTURES LTD","108437"
"Portsmouth City Council","PCC","Adult Social Care","Physical Support Older People (85+)","Adult Services","Third Party Payments","Other establishments","29/09/20","6386626","208.8","VENDOR","APEX PROPERTY VENTURES LTD","108437"
"Portsmouth City Council","PCC","Adult Social Care","Physical Support Older People (85+)","Adult Services","Third Party Payments","Other establishments","29/09/20","6386626","974.4","VENDOR","APEX PROPERTY VENTURES LTD","108437"
"Portsmouth City Council","PCC","Adult Social Care","Physical Support Older People (85+)","Adult Services","Third Party Payments","Other establishments","29/09/20","6386626","974.4","VENDOR","APEX PROPERTY VENTURES LTD","108437"
"Portsmouth City Council","PCC","Adult Social Care","Physical Support Older People (85+)","Adult Services","Third Party Payments","Other establishments","29/09/20","6386626","243.6","VENDOR","APEX PROPERTY VENTURES LTD","108437"
"Portsmouth City Council","PCC","Adult Social Care","Physical Support Older People (85+)","Adult Services","Third Party Payments","Other establishments","29/09/20","6386626","139.2","VENDOR","APEX PROPERTY VENTURES LTD","108437"
"Portsmouth City Council","PCC","Adult Social Care","Physical Support Older People (85+)","Adult Services","Third Party Payments","Other establishments","29/09/20","6386626","656.85","VENDOR","APEX PROPERTY VENTURES LTD","108437"
"Portsmouth City Council","PCC","Adult Social Care","Physical Support Older People (85+)","Adult Services","Third Party Payments","Other establishments","29/09/20","6386626","656.85","VENDOR","APEX PROPERTY VENTURES LTD","108437"
"Portsmouth City Council","PCC","Adult Social Care","Physical Support Older People (85+)","Adult Services","Third Party Payments","Other establishments","29/09/20","6386626","400.2","VENDOR","APEX PROPERTY VENTURES LTD","108437"
"Portsmouth City Council","PCC","Adult Social Care","Physical Support Older People (85+)","Adult Services","Third Party Payments","Other establishments","29/09/20","6386626","522","VENDOR","APEX PROPERTY VENTURES LTD","108437"
"Portsmouth City Council","PCC","Adult Social Care","Physical Support Older People (85+)","Adult Services","Third Party Payments","Other establishments","29/09/20","6386626","730.8","VENDOR","APEX PROPERTY VENTURES LTD","108437"
"Portsmouth City Council","PCC","Adult Social Care","Physical Support Older People (85+)","Adult Services","Third Party Payments","Other establishments","29/09/20","6386626","361.05","VENDOR","APEX PROPERTY VENTURES LTD","108437"
"Portsmouth City Council","PCC","Adult Social Care","Physical Support Older People (85+)","Adult Services","Third Party Payments","Other establishments","29/09/20","6386626","609","VENDOR","APEX PROPERTY VENTURES LTD","108437"
"Portsmouth City Council","PCC","Adult Social Care","Physical Support Older People (85+)","Adult Services","Third Party Payments","Other establishments","29/09/20","6386626","1218","VENDOR","APEX PROPERTY VENTURES LTD","108437"
"Portsmouth City Council","PCC","Adult Social Care","Physical Support Older People (85+)","Adult Services","Third Party Payments","Other establishments","29/09/20","6386626","1218","VENDOR","APEX PROPERTY VENTURES LTD","108437"
"Portsmouth City Council","PCC","Adult Social Care","Physical Support Older People (85+)","Adult Services","Third Party Payments","Other establishments","29/09/20","6386626","852.6","VENDOR","APEX PROPERTY VENTURES LTD","108437"
"Portsmouth City Council","PCC","Adult Social Care","Physical Support Older People (85+)","Adult Services","Third Party Payments","Other establishments","29/09/20","6386626","852.6","VENDOR","APEX PROPERTY VENTURES LTD","108437"
"Portsmouth City Council","PCC","Adult Social Care","Physical Support Older People (85+)","Adult Services","Third Party Payments","Other establishments","29/09/20","6386626","356.7","VENDOR","APEX PROPERTY VENTURES LTD","108437"
"Portsmouth City Council","PCC","Adult Social Care","Physical Support Older People (85+)","Adult Services","Third Party Payments","Other establishments","29/09/20","6386626","643.8","VENDOR","APEX PROPERTY VENTURES LTD","108437"
"Portsmouth City Council","PCC","Adult Social Care","Physical Support Older People (85+)","Adult Services","Third Party Payments","Other establishments","29/09/20","6386626","39.15","VENDOR","APEX PROPERTY VENTURES LTD","108437"
"Portsmouth City Council","PCC","Adult Social Care","Physical Support Older People (85+)","Adult Services","Third Party Payments","Other establishments","29/09/20","6386626","365.4","VENDOR","APEX PROPERTY VENTURES LTD","108437"
"Portsmouth City Council","PCC","Adult Social Care","Physical Support Older People (85+)","Adult Services","Third Party Payments","Other establishments","29/09/20","6386626","243.6","VENDOR","APEX PROPERTY VENTURES LTD","108437"
"Portsmouth City Council","PCC","Adult Social Care","Physical Support Older People (85+)","Adult Services","Third Party Payments","Other establishments","29/09/20","6386626","609","VENDOR","APEX PROPERTY VENTURES LTD","108437"
"Portsmouth City Council","PCC","Adult Social Care","Physical Support Older People (85+)","Adult Services","Third Party Payments","Other establishments","29/09/20","6386626","609","VENDOR","APEX PROPERTY VENTURES LTD","108437"
"Portsmouth City Council","PCC","Adult Social Care","Physical Support Older People (85+)","Adult Services","Third Party Payments","Other establishments","29/09/20","6386626","69.6","VENDOR","APEX PROPERTY VENTURES LTD","108437"
"Portsmouth City Council","PCC","Adult Social Care","Physical Support Older People (85+)","Adult Services","Third Party Payments","Other establishments","29/09/20","6386626","217.5","VENDOR","APEX PROPERTY VENTURES LTD","108437"
"Portsmouth City Council","PCC","Adult Social Care","Physical Support Older People (85+)","Adult Services","Third Party Payments","Other establishments","29/09/20","6386626","17.4","VENDOR","APEX PROPERTY VENTURES LTD","108437"
"Portsmouth City Council","PCC","Adult Social Care","Physical Support Older People (85+)","Adult Services","Third Party Payments","Other establishments","29/09/20","6386626","243.6","VENDOR","APEX PROPERTY VENTURES LTD","108437"
"Portsmouth City Council","PCC","Adult Social Care","Physical Support Older People (85+)","Adult Services","Third Party Payments","Other establishments","29/09/20","6386626","1096.2","VENDOR","APEX PROPERTY VENTURES LTD","108437"
"Portsmouth City Council","PCC","Adult Social Care","Physical Support Older People (85+)","Adult Services","Third Party Payments","Other establishments","29/09/20","6386626","1096.2","VENDOR","APEX PROPERTY VENTURES LTD","108437"
"Portsmouth City Council","PCC","Adult Social Care","Physical Support Older People (85+)","Adult Services","Third Party Payments","Other establishments","29/09/20","6386626","69.6","VENDOR","APEX PROPERTY VENTURES LTD","108437"
"Portsmouth City Council","PCC","Adult Social Care","Physical Support Older People (85+)","Adult Services","Third Party Payments","Other establishments","29/09/20","6386626","891.75","VENDOR","APEX PROPERTY VENTURES LTD","108437"
"Portsmouth City Council","PCC","Adult Social Care","Physical Support Older People (85+)","Adult Services","Third Party Payments","Other establishments","29/09/20","6386626","39.15","VENDOR","APEX PROPERTY VENTURES LTD","108437"
"Portsmouth City Council","PCC","Adult Social Care","Physical Support Older People (85+)","Adult Services","Third Party Payments","Other establishments","29/09/20","6386626","243.6","VENDOR","APEX PROPERTY VENTURES LTD","108437"
"Portsmouth City Council","PCC","Adult Social Care","Physical Support Older People (85+)","Adult Services","Third Party Payments","Other establishments","29/09/20","6386626","487.2","VENDOR","APEX PROPERTY VENTURES LTD","108437"
"Portsmouth City Council","PCC","Adult Social Care","Physical Support Older People (85+)","Adult Services","Third Party Payments","Other establishments","29/09/20","6386626","52.2","VENDOR","APEX PROPERTY VENTURES LTD","108437"
"Portsmouth City Council","PCC","Adult Social Care","Physical Support Older People (85+)","Adult Services","Third Party Payments","Other establishments","29/09/20","6386626","730.8","VENDOR","APEX PROPERTY VENTURES LTD","108437"
"Portsmouth City Council","PCC","Adult Social Care","Physical Support Older People (85+)","Adult Services","Third Party Payments","Other establishments","29/09/20","6386626","1096.2","VENDOR","APEX PROPERTY VENTURES LTD","108437"
"Portsmouth City Council","PCC","Adult Social Care","Physical Support Older People (85+)","Adult Services","Third Party Payments","Other establishments","29/09/20","6386626","1096.2","VENDOR","APEX PROPERTY VENTURES LTD","108437"
"Portsmouth City Council","PCC","Adult Social Care","Learning Disability Support  Adults (18 - 64)","Adult Services","Third Party Payments","Other establishments","29/09/20","6386626","365.4","VENDOR","APEX PROPERTY VENTURES LTD","108437"
"Portsmouth City Council","PCC","Adult Social Care","Learning Disability Support  Adults (18 - 64)","Adult Services","Third Party Payments","Other establishments","29/09/20","6386626","313.2","VENDOR","APEX PROPERTY VENTURES LTD","108437"
"Portsmouth City Council","PCC","Adult Social Care","Learning Disability Support  Adults (18 - 64)","Adult Services","Third Party Payments","Other establishments","29/09/20","6386626","417.6","VENDOR","APEX PROPERTY VENTURES LTD","108437"
"Portsmouth City Council","PCC","Adult Social Care","Learning Disability Support  Adults (18 - 64)","Adult Services","Third Party Payments","Other establishments","29/09/20","6386626","417.6","VENDOR","APEX PROPERTY VENTURES LTD","108437"
"Portsmouth City Council","PCC","Adult Social Care","Learning Disability Support  Adults (18 - 64)","Adult Services","Third Party Payments","Other establishments","29/09/20","6386626","243.6","VENDOR","APEX PROPERTY VENTURES LTD","108437"
"Portsmouth City Council","PCC","Adult Social Care","Learning Disability Support  Adults (18 - 64)","Adult Services","Third Party Payments","Other establishments","29/09/20","6386626","904.8","VENDOR","APEX PROPERTY VENTURES LTD","108437"
"Portsmouth City Council","PCC","Adult Social Care","Learning Disability Support  Adults (18 - 64)","Adult Services","Third Party Payments","Other establishments","29/09/20","6386626","904.8","VENDOR","APEX PROPERTY VENTURES LTD","108437"
"Portsmouth City Council","PCC","Adult Social Care","Learning Disability Support  Adults (18 - 64)","Adult Services","Third Party Payments","Other establishments","29/09/20","6386626","313.2","VENDOR","APEX PROPERTY VENTURES LTD","108437"
"Portsmouth City Council","PCC","Adult Social Care","Learning Disability Support  Adults (18 - 64)","Adult Services","Third Party Payments","Other establishments","29/09/20","6386626","174","VENDOR","APEX PROPERTY VENTURES LTD","108437"
"Portsmouth City Council","PCC","Adult Social Care","Social Support - Support for Carer","Adult Services","Third Party Payments","Other establishments","29/09/20","6386626","224.4","VENDOR","APEX PROPERTY VENTURES LTD","108437"
"Portsmouth City Council","PCC","Adult Social Care","Social Support - Support for Carer","Adult Services","Third Party Payments","Other establishments","29/09/20","6386626","89.76","VENDOR","APEX PROPERTY VENTURES LTD","108437"
"Portsmouth City Council","PCC","Adult Social Care","Social Support - Support for Carer","Adult Services","Third Party Payments","Other establishments","29/09/20","6386626","209.44","VENDOR","APEX PROPERTY VENTURES LTD","108437"
"Portsmouth City Council","PCC","Adult Social Care","Social Support - Support for Carer","Adult Services","Third Party Payments","Other establishments","29/09/20","6386626","246.84","VENDOR","APEX PROPERTY VENTURES LTD","108437"
"Portsmouth City Council","PCC","Adult Social Care","Social Support - Support for Carer","Adult Services","Third Party Payments","Other establishments","29/09/20","6386626","179.52","VENDOR","APEX PROPERTY VENTURES LTD","108437"
"Portsmouth City Council","PCC","Adult Social Care","Social Support - Support for Carer","Adult Services","Third Party Payments","Other establishments","29/09/20","6386626","119.68","VENDOR","APEX PROPERTY VENTURES LTD","108437"
"Portsmouth City Council","PCC","Adult Social Care","Social Support - Support for Carer","Adult Services","Third Party Payments","Other establishments","29/09/20","6386626","359.04","VENDOR","APEX PROPERTY VENTURES LTD","108437"
"Portsmouth City Council","PCC","Adult Social Care","Social Support - Support for Carer","Adult Services","Third Party Payments","Other establishments","29/09/20","6386626","325.38","VENDOR","APEX PROPERTY VENTURES LTD","108437"
"Portsmouth City Council","PCC","Adult Social Care","Social Support - Support for Carer","Adult Services","Third Party Payments","Other establishments","29/09/20","6386626","388.32","VENDOR","APEX PROPERTY VENTURES LTD","108437"
"Portsmouth City Council","PCC","Adult Social Care","Social Support - Support for Carer","Adult Services","Third Party Payments","Other establishments","29/09/20","6386626","239.36","VENDOR","APEX PROPERTY VENTURES LTD","108437"
"Portsmouth City Council","PCC","Adult Social Care","Social Support - Support for Carer","Adult Services","Third Party Payments","Other establishments","29/09/20","6386626","351.56","VENDOR","APEX PROPERTY VENTURES LTD","108437"
"Portsmouth City Council","PCC","Adult Social Care","Social Support - Support for Carer","Adult Services","Third Party Payments","Other establishments","29/09/20","6386626","329.12","VENDOR","APEX PROPERTY VENTURES LTD","108437"
"Portsmouth City Council","PCC","Adult Social Care","Social Support - Support for Carer","Adult Services","Third Party Payments","Other establishments","29/09/20","6386626","179.52","VENDOR","APEX PROPERTY VENTURES LTD","108437"
"Portsmouth City Council","PCC","Adult Social Care","Social Care Activities","Adult Services","Third Party Payments","Other establishments","28/09/20","6386207","11692.8","VENDOR","ASTER CARE LTD","130238"
"Portsmouth City Council","PCC","Adult Social Care","Social Care Activities","Adult Services","Third Party Payments","Other establishments","28/09/20","6386207","11692.8","VENDOR","ASTER CARE LTD","130238"
"Portsmouth City Council","PCC","Adult Social Care","Social Care Activities","Adult Services","Third Party Payments","Other establishments","11/09/20","6383735","-204.7","VENDOR","AUCKLAND CARE LTD","100984"
"Portsmouth City Council","PCC","Adult Social Care","Learning Disability Support  Adults (18 - 64)","Adult Services","Third Party Payments","Other establishments","11/09/20","6383735","4917.3","VENDOR","AUCKLAND CARE LTD","100984"
"Portsmouth City Council","PCC","Adult Social Care","Mental Health Support Adults (18 - 64)","Adult Services","Third Party Payments","Other establishments","25/09/20","6386010","3649.67","VENDOR","AUCKLAND CARE LTD","100984"
"Portsmouth City Council","PCC","Adult Social Care","Social Care Activities","Adult Services","Third Party Payments","Other establishments","11/09/20","6383740","722.1","VENDOR","B S CARE LTD","100114"
"Portsmouth City Council","PCC","Adult Social Care","Social Care Activities","Adult Services","Third Party Payments","Other establishments","11/09/20","6383740","60.9","VENDOR","B S CARE LTD","100114"
"Portsmouth City Council","PCC","Adult Social Care","Social Care Activities","Adult Services","Third Party Payments","Other establishments","11/09/20","6383740","78.3","VENDOR","B S CARE LTD","100114"
"Portsmouth City Council","PCC","Adult Social Care","Social Care Activities","Adult Services","Third Party Payments","Other establishments","11/09/20","6383740","487.2","VENDOR","B S CARE LTD","100114"
"Portsmouth City Council","PCC","Adult Social Care","Social Care Activities","Adult Services","Third Party Payments","Other establishments","11/09/20","6383740","817.8","VENDOR","B S CARE LTD","100114"
"Portsmouth City Council","PCC","Adult Social Care","Social Care Activities","Adult Services","Third Party Payments","Other establishments","11/09/20","6383740","469.8","VENDOR","B S CARE LTD","100114"
"Portsmouth City Council","PCC","Adult Social Care","Social Care Activities","Adult Services","Third Party Payments","Other establishments","11/09/20","6383740","722.1","VENDOR","B S CARE LTD","100114"
"Portsmouth City Council","PCC","Adult Social Care","Social Care Activities","Adult Services","Third Party Payments","Other establishments","11/09/20","6383740","604.65","VENDOR","B S CARE LTD","100114"
"Portsmouth City Council","PCC","Adult Social Care","Social Care Activities","Adult Services","Third Party Payments","Other establishments","11/09/20","6383740","561.15","VENDOR","B S CARE LTD","100114"
"Portsmouth City Council","PCC","Adult Social Care","Social Care Activities","Adult Services","Third Party Payments","Other establishments","11/09/20","6383740","182.7","VENDOR","B S CARE LTD","100114"
"Portsmouth City Council","PCC","Adult Social Care","Social Care Activities","Adult Services","Third Party Payments","Other establishments","11/09/20","6383740","1087.5","VENDOR","B S CARE LTD","100114"
"Portsmouth City Council","PCC","Adult Social Care","Social Care Activities","Adult Services","Third Party Payments","Other establishments","11/09/20","6383740","1087.5","VENDOR","B S CARE LTD","100114"
"Portsmouth City Council","PCC","Adult Social Care","Social Care Activities","Adult Services","Third Party Payments","Other establishments","11/09/20","6383740","556.8","VENDOR","B S CARE LTD","100114"
"Portsmouth City Council","PCC","Adult Social Care","Social Care Activities","Adult Services","Third Party Payments","Other establishments","11/09/20","6383740","104.4","VENDOR","B S CARE LTD","100114"
"Portsmouth City Council","PCC","Adult Social Care","Social Care Activities","Adult Services","Third Party Payments","Other establishments","11/09/20","6383740","261","VENDOR","B S CARE LTD","100114"
"Portsmouth City Council","PCC","Adult Social Care","Social Care Activities","Adult Services","Third Party Payments","Other establishments","11/09/20","6383740","243.6","VENDOR","B S CARE LTD","100114"
"Portsmouth City Council","PCC","Adult Social Care","Social Care Activities","Adult Services","Third Party Payments","Other establishments","11/09/20","6383740","974.4","VENDOR","B S CARE LTD","100114"
"Portsmouth City Council","PCC","Adult Social Care","Social Care Activities","Adult Services","Third Party Payments","Other establishments","11/09/20","6383740","974.4","VENDOR","B S CARE LTD","100114"
"Portsmouth City Council","PCC","Adult Social Care","Social Care Activities","Adult Services","Third Party Payments","Other establishments","11/09/20","6383740","426.3","VENDOR","B S CARE LTD","100114"
"Portsmouth City Council","PCC","Adult Social Care","Social Care Activities","Adult Services","Third Party Payments","Other establishments","11/09/20","6383740","121.8","VENDOR","B S CARE LTD","100114"
"Portsmouth City Council","PCC","Adult Social Care","Social Care Activities","Adult Services","Third Party Payments","Other establishments","11/09/20","6383740","852.6","VENDOR","B S CARE LTD","100114"
"Portsmouth City Council","PCC","Adult Social Care","Social Care Activities","Adult Services","Third Party Payments","Other establishments","11/09/20","6383740","152.25","VENDOR","B S CARE LTD","100114"
"Portsmouth City Council","PCC","Adult Social Care","Social Care Activities","Adult Services","Third Party Payments","Other establishments","11/09/20","6383740","313.2","VENDOR","B S CARE LTD","100114"
"Portsmouth City Council","PCC","Children's and Education Services","Safeguarding Children and Young Peoples Services","Children's Services and Education","Supplies and Services","Grants and subscriptions","24/09/20","6385943","9138.84","VENDOR","FIRMSTEP LTD","113245"
"Portsmouth City Council","PCC","Highways and Transport Services","Airports, Harbours and Toll Facilities","Portsmouth International Port","Supplies and Services","Equipment, furniture and materials","24/09/20","6385968","880","VENDOR","RAPISCAN SYSTEMS LIMITED","108247"
"Portsmouth City Council","PCC","Highways and Transport Services","Airports, Harbours and Toll Facilities","Portsmouth International Port","Supplies and Services","Equipment, furniture and materials","24/09/20","6385968","12300","VENDOR","RAPISCAN SYSTEMS LIMITED","108247"
"Portsmouth City Council","PCC","Highways and Transport Services","Airports, Harbours and Toll Facilities","Portsmouth International Port","Supplies and Services","Equipment, furniture and materials","17/09/20","6384771","290","VENDOR","RAPISCAN SYSTEMS LIMITED","108247"
"Portsmouth City Council","PCC","Housing Services","Homelessness","Housing, Neighbourhood and Building Services","Premises-Related Expenditure","Rents","25/09/20","6386076","2220","SOLETRADER","Classified as 'personal data' (under the Data Protection Act 2018)","146056"
"Portsmouth City Council","PCC","Support Service / Transparency Costs Unallocated","AMS","Regeneration","Third Party Payments","Private contractors","23/09/20","6385513","2000","VENDOR","ECD ARCHITECTS LTD","136285"
"Portsmouth City Council","PCC","Support Service / Transparency Costs Unallocated","AMS","Regeneration","Third Party Payments","Private contractors","23/09/20","6385513","4000","VENDOR","ECD ARCHITECTS LTD","136285"
"Portsmouth City Council","PCC","Support Service / Transparency Costs Unallocated","AMS","Regeneration","Third Party Payments","Private contractors","23/09/20","6385513","6000","VENDOR","ECD ARCHITECTS LTD","136285"
"Portsmouth City Council","PCC","Support Service / Transparency Costs Unallocated","AMS","Regeneration","Third Party Payments","Private contractors","23/09/20","6385513","6000","VENDOR","ECD ARCHITECTS LTD","136285"
"Portsmouth City Council","PCC","Support Service / Transparency Costs Unallocated","AMS","Regeneration","Third Party Payments","Private contractors","23/09/20","6385513","6000","VENDOR","ECD ARCHITECTS LTD","136285"
"Portsmouth City Council","PCC","Adult Social Care","Social Care Activities","Adult Services","Third Party Payments","Other establishments","11/09/20","6383740","43.5","VENDOR","B S CARE LTD","100114"
"Portsmouth City Council","PCC","Adult Social Care","Social Care Activities","Adult Services","Third Party Payments","Other establishments","11/09/20","6383740","313.2","VENDOR","B S CARE LTD","100114"
"Portsmouth City Council","PCC","Adult Social Care","Social Care Activities","Adult Services","Third Party Payments","Other establishments","11/09/20","6383740","339.3","VENDOR","B S CARE LTD","100114"
"Portsmouth City Council","PCC","Adult Social Care","Social Care Activities","Adult Services","Third Party Payments","Other establishments","11/09/20","6383740","504.6","VENDOR","B S CARE LTD","100114"
"Portsmouth City Council","PCC","Housing Revenue Account","Special Services","Housing, Neighbourhood and Building Services","Employees","Direct employee expenses","28/09/20","6386594","3777.2","VENDOR","SEVACARE (UK) LTD","136163"
"Portsmouth City Council","PCC","Other","Suspense and Capital Schemes","Capital - Housing RA","Capital Charges","REFCUS","17/09/20","6384758","233","VENDOR","MACKS & SONS","102366"
"Portsmouth City Council","PCC","Adult Social Care","Support with Memory and Cognition Older People (85+)","Adult Services","Third Party Payments","Other establishments","11/09/20","6383728","2263.2","VENDOR","ALTON MANOR CARE HOME","130289"
"Portsmouth City Council","PCC","Adult Social Care","Support with Memory and Cognition Older People (85+)","Adult Services","Third Party Payments","Other establishments","11/09/20","6383728","2263.2","VENDOR","ALTON MANOR CARE HOME","130289"
"Portsmouth City Council","PCC","Adult Social Care","Support with Memory and Cognition Older People (85+)","Adult Services","Third Party Payments","Other establishments","11/09/20","6383728","2263.2","VENDOR","ALTON MANOR CARE HOME","130289"
"Portsmouth City Council","PCC","Adult Social Care","Support with Memory and Cognition Older People (85+)","Adult Services","Third Party Payments","Other establishments","11/09/20","6383728","2491.8","VENDOR","ALTON MANOR CARE HOME","130289"
"Portsmouth City Council","PCC","Environmental and Regulatory Services","Regulatory Services","Culture, Leisure & Regulatory Services","Third Party Payments","Private contractors","04/09/20","6382652","2360","VENDOR","ADAMS MOREY LTD","100446"
"Portsmouth City Council","PCC","Environmental and Regulatory Services","Regulatory Services","Culture, Leisure & Regulatory Services","Third Party Payments","Private contractors","04/09/20","6382652","-1664","VENDOR","ADAMS MOREY LTD","100446"
"Portsmouth City Council","PCC","Environmental and Regulatory Services","Regulatory Services","Culture, Leisure & Regulatory Services","Third Party Payments","Private contractors","04/09/20","6382652","1664","VENDOR","ADAMS MOREY LTD","100446"
"Portsmouth City Council","PCC","Environmental and Regulatory Services","Regulatory Services","Culture, Leisure & Regulatory Services","Third Party Payments","Private contractors","11/09/20","6383716","780","VENDOR","ADAMS MOREY LTD","100446"
"Portsmouth City Council","PCC","Environmental and Regulatory Services","Regulatory Services","Culture, Leisure & Regulatory Services","Third Party Payments","Private contractors","11/09/20","6383716","1612","VENDOR","ADAMS MOREY LTD","100446"
"Portsmouth City Council","PCC","Environmental and Regulatory Services","Regulatory Services","Culture, Leisure & Regulatory Services","Third Party Payments","Private contractors","18/09/20","6384802","624","VENDOR","ADAMS MOREY LTD","100446"
"Portsmouth City Council","PCC","Environmental and Regulatory Services","Regulatory Services","Culture, Leisure & Regulatory Services","Third Party Payments","Private contractors","18/09/20","6384802","1768","VENDOR","ADAMS MOREY LTD","100446"
"Portsmouth City Council","PCC","Children's and Education Services","Other Children and Family Services","Children's Services and Education","Supplies and Services","Services","08/09/20","327038","975","SOLETRADER","Classified as 'personal data' (under the Data Protection Act 2018)","107906"
"Portsmouth City Council","PCC","Environmental and Regulatory Services","Regulatory Services","Culture, Leisure & Regulatory Services","Third Party Payments","Private contractors","24/09/20","6385894","364","VENDOR","ADAMS MOREY LTD","100446"
"Portsmouth City Council","PCC","Environmental and Regulatory Services","Regulatory Services","Culture, Leisure & Regulatory Services","Third Party Payments","Private contractors","24/09/20","6385894","1716","VENDOR","ADAMS MOREY LTD","100446"
"Portsmouth City Council","PCC","Children's and Education Services","Other Children and Family Services","Children's Services and Education","Supplies and Services","Services","16/09/20","6384486","425","SOLETRADER","Classified as 'personal data' (under the Data Protection Act 2018)","144178"
"Portsmouth City Council","PCC","Children's and Education Services","Other Children and Family Services","Children's Services and Education","Supplies and Services","Services","16/09/20","327115","425","SOLETRADER","Classified as 'personal data' (under the Data Protection Act 2018)","146089"
"Portsmouth City Council","PCC","Children's and Education Services","Other Children and Family Services","Children's Services and Education","Supplies and Services","Services","28/09/20","6386573","675","SOLETRADER","Classified as 'personal data' (under the Data Protection Act 2018)","118150"
"Portsmouth City Council","PCC","Housing Services","Homelessness","Housing, Neighbourhood and Building Services","Premises-Related Expenditure","Rents","25/09/20","6386145","1980","SOLETRADER","Classified as 'personal data' (under the Data Protection Act 2018)","139696"
"Portsmouth City Council","PCC","Adult Social Care","Support with Memory and Cognition Older People (85+)","Adult Services","Third Party Payments","Other establishments","11/09/20","6383728","2263.2","VENDOR","ALTON MANOR CARE HOME","130289"
"Portsmouth City Council","PCC","Adult Social Care","Support with Memory and Cognition Older People (85+)","Adult Services","Third Party Payments","Other establishments","11/09/20","6383728","2404.2","VENDOR","ALTON MANOR CARE HOME","130289"
"Portsmouth City Council","PCC","Adult Social Care","Support with Memory and Cognition Older People (85+)","Adult Services","Third Party Payments","Other establishments","11/09/20","6383728","2263.2","VENDOR","ALTON MANOR CARE HOME","130289"
"Portsmouth City Council","PCC","Adult Social Care","Support with Memory and Cognition Older People (85+)","Adult Services","Third Party Payments","Other establishments","11/09/20","6383728","2263.2","VENDOR","ALTON MANOR CARE HOME","130289"
"Portsmouth City Council","PCC","Adult Social Care","Support with Memory and Cognition Older People (85+)","Adult Services","Third Party Payments","Other establishments","11/09/20","6383728","2263.2","VENDOR","ALTON MANOR CARE HOME","130289"
"Portsmouth City Council","PCC","Adult Social Care","Support with Memory and Cognition Older People (85+)","Adult Services","Third Party Payments","Other establishments","11/09/20","6383728","2785.8","VENDOR","ALTON MANOR CARE HOME","130289"
"Portsmouth City Council","PCC","Other","Suspense and Capital Schemes","Capital - Leader","Capital Charges","Capital Expenditure (WIP)","17/09/20","6384739","850","VENDOR","ENVIRONMENT AGENCY","110963"
"Portsmouth City Council","PCC","Other","Suspense and Capital Schemes","Capital - Housing RA","Capital Charges","REFCUS","17/09/20","6384758","94","VENDOR","MACKS & SONS","102366"
"Portsmouth City Council","PCC","Highways and Transport Services","Airports, Harbours and Toll Facilities","Portsmouth International Port","Third Party Payments","Private contractors","10/09/20","6383684","2500","VENDOR","SMS TOWAGE LTD","144084"
"Portsmouth City Council","PCC","Other","Suspense and Capital Schemes","Capital - Children, Families and Education","Capital Charges","REFCUS","18/09/20","6384901","27019","COMPANY","REDS BUILDERS LTD","108228"
"Portsmouth City Council","PCC","Other","Suspense and Capital Schemes","Capital - Children, Families and Education","Capital Charges","REFCUS","21/09/20","6385039","17315.37","COMPANY","REDS BUILDERS LTD","108228"
"Portsmouth City Council","PCC","Other","Suspense and Capital Schemes","Capital - Children, Families and Education","Capital Charges","REFCUS","21/09/20","6385039","31267.63","COMPANY","REDS BUILDERS LTD","108228"
"Portsmouth City Council","PCC","Highways and Transport Services","Airports, Harbours and Toll Facilities","Portsmouth International Port","Third Party Payments","Private contractors","17/09/20","6384778","2500","VENDOR","SMS TOWAGE LTD","144084"
"Portsmouth City Council","PCC","Highways and Transport Services","Airports, Harbours and Toll Facilities","Portsmouth International Port","Third Party Payments","Private contractors","17/09/20","6384778","2500","VENDOR","SMS TOWAGE LTD","144084"
"Portsmouth City Council","PCC","Cultural and Related Services","Allocation of Management & Admin","Corporate Services","Supplies and Services","Printing, stationery and general office expenses","18/09/20","6384875","2691","VENDOR","HOLBROOKS PRINTERS LTD","100893"
"Portsmouth City Council","PCC","Housing Revenue Account","Special Services","Housing, Neighbourhood and Building Services","Supplies and Services","Catering","11/09/20","6383745","510.24","VENDOR","BFS GROUP LTD T/A BIDFOOD","100106"
"Portsmouth City Council","PCC","Housing Revenue Account","Special Services","Housing, Neighbourhood and Building Services","Employees","Direct employee expenses","23/09/20","6385826","3868.4","VENDOR","THE PORTSMOUTH SITTING SERVICE AND COMMUNITY CARE SERVICES LTD T/A ASSURED CARE","100201"
"Portsmouth City Council","PCC","Adult Social Care","Social Care Activities","Adult Services","Third Party Payments","Other establishments","11/09/20","6383740","73.95","VENDOR","B S CARE LTD","100114"
"Portsmouth City Council","PCC","Adult Social Care","Social Care Activities","Adult Services","Third Party Payments","Other establishments","11/09/20","6383740","352.35","VENDOR","B S CARE LTD","100114"
"Portsmouth City Council","PCC","Adult Social Care","Social Care Activities","Adult Services","Third Party Payments","Other establishments","11/09/20","6383740","487.2","VENDOR","B S CARE LTD","100114"
"Portsmouth City Council","PCC","Adult Social Care","Social Care Activities","Adult Services","Third Party Payments","Other establishments","11/09/20","6383740","52.2","VENDOR","B S CARE LTD","100114"
"Portsmouth City Council","PCC","Adult Social Care","Social Care Activities","Adult Services","Third Party Payments","Other establishments","11/09/20","6383740","430.65","VENDOR","B S CARE LTD","100114"
"Portsmouth City Council","PCC","Adult Social Care","Social Care Activities","Adult Services","Third Party Payments","Other establishments","11/09/20","6383740","1583.4","VENDOR","B S CARE LTD","100114"
"Portsmouth City Council","PCC","Adult Social Care","Social Care Activities","Adult Services","Third Party Payments","Other establishments","11/09/20","6383740","1570.35","VENDOR","B S CARE LTD","100114"
"Portsmouth City Council","PCC","Adult Social Care","Social Care Activities","Adult Services","Third Party Payments","Other establishments","11/09/20","6383740","243.6","VENDOR","B S CARE LTD","100114"
"Portsmouth City Council","PCC","Adult Social Care","Social Care Activities","Adult Services","Third Party Payments","Other establishments","11/09/20","6383740","243.6","VENDOR","B S CARE LTD","100114"
"Portsmouth City Council","PCC","Adult Social Care","Social Care Activities","Adult Services","Third Party Payments","Other establishments","11/09/20","6383740","9411.57","VENDOR","B S CARE LTD","100114"
"Portsmouth City Council","PCC","Adult Social Care","Mental Health Support Older People (65 - 74)","Adult Services","Third Party Payments","Other establishments","11/09/20","6383740","600.3","VENDOR","B S CARE LTD","100114"
"Portsmouth City Council","PCC","Adult Social Care","Social Care Activities","Adult Services","Third Party Payments","Other establishments","11/09/20","6383740","1096.2","VENDOR","B S CARE LTD","100114"
"Portsmouth City Council","PCC","Adult Social Care","Social Care Activities","Adult Services","Third Party Payments","Other establishments","11/09/20","6383740","104.72","VENDOR","B S CARE LTD","100114"
"Portsmouth City Council","PCC","Adult Social Care","Social Care Activities","Adult Services","Third Party Payments","Other establishments","11/09/20","6383740","730.8","VENDOR","B S CARE LTD","100114"
"Portsmouth City Council","PCC","Adult Social Care","Social Care Activities","Adult Services","Third Party Payments","Other establishments","11/09/20","6383740","359.04","VENDOR","B S CARE LTD","100114"
"Portsmouth City Council","PCC","Adult Social Care","Social Care Activities","Adult Services","Third Party Payments","Other establishments","11/09/20","6383740","1096.2","VENDOR","B S CARE LTD","100114"
"Portsmouth City Council","PCC","Adult Social Care","Social Care Activities","Adult Services","Third Party Payments","Other establishments","11/09/20","6383740","1096.2","VENDOR","B S CARE LTD","100114"
"Portsmouth City Council","PCC","Adult Social Care","Physical Support Adults (18 - 64)","Adult Services","Third Party Payments","Other establishments","11/09/20","6383740","247.95","VENDOR","B S CARE LTD","100114"
"Portsmouth City Council","PCC","Adult Social Care","Physical Support Adults (18 - 64)","Adult Services","Third Party Payments","Other establishments","11/09/20","6383740","247.95","VENDOR","B S CARE LTD","100114"
"Portsmouth City Council","PCC","Adult Social Care","Physical Support Adults (18 - 64)","Adult Services","Third Party Payments","Other establishments","11/09/20","6383740","26.1","VENDOR","B S CARE LTD","100114"
"Portsmouth City Council","PCC","Adult Social Care","Physical Support Adults (18 - 64)","Adult Services","Third Party Payments","Other establishments","11/09/20","6383740","130.5","VENDOR","B S CARE LTD","100114"
"Portsmouth City Council","PCC","Adult Social Care","Physical Support Adults (18 - 64)","Adult Services","Third Party Payments","Other establishments","11/09/20","6383740","174","VENDOR","B S CARE LTD","100114"
"Portsmouth City Council","PCC","Adult Social Care","Physical Support Adults (18 - 64)","Adult Services","Third Party Payments","Other establishments","11/09/20","6383740","783","VENDOR","B S CARE LTD","100114"
"Portsmouth City Council","PCC","Adult Social Care","Physical Support Adults (18 - 64)","Adult Services","Third Party Payments","Other establishments","11/09/20","6383740","783","VENDOR","B S CARE LTD","100114"
"Portsmouth City Council","PCC","Adult Social Care","Physical Support Adults (18 - 64)","Adult Services","Third Party Payments","Other establishments","11/09/20","6383740","104.4","VENDOR","B S CARE LTD","100114"
"Portsmouth City Council","PCC","Adult Social Care","Physical Support Adults (18 - 64)","Adult Services","Third Party Payments","Other establishments","11/09/20","6383740","365.4","VENDOR","B S CARE LTD","100114"
"Portsmouth City Council","PCC","Adult Social Care","Physical Support Adults (18 - 64)","Adult Services","Third Party Payments","Other establishments","11/09/20","6383740","765.6","VENDOR","B S CARE LTD","100114"
"Portsmouth City Council","PCC","Adult Social Care","Physical Support Adults (18 - 64)","Adult Services","Third Party Payments","Other establishments","11/09/20","6383740","765.6","VENDOR","B S CARE LTD","100114"
"Portsmouth City Council","PCC","Adult Social Care","Physical Support Adults (18 - 64)","Adult Services","Third Party Payments","Other establishments","11/09/20","6383740","243.6","VENDOR","B S CARE LTD","100114"
"Portsmouth City Council","PCC","Adult Social Care","Physical Support Older People (85+)","Adult Services","Third Party Payments","Other establishments","11/09/20","6383740","1096.2","VENDOR","B S CARE LTD","100114"
"Portsmouth City Council","PCC","Adult Social Care","Physical Support Older People (85+)","Adult Services","Third Party Payments","Other establishments","11/09/20","6383740","1096.2","VENDOR","B S CARE LTD","100114"
"Portsmouth City Council","PCC","Adult Social Care","Physical Support Older People (85+)","Adult Services","Third Party Payments","Other establishments","11/09/20","6383740","243.6","VENDOR","B S CARE LTD","100114"
"Portsmouth City Council","PCC","Adult Social Care","Physical Support Older People (85+)","Adult Services","Third Party Payments","Other establishments","11/09/20","6383740","609","VENDOR","B S CARE LTD","100114"
"Portsmouth City Council","PCC","Adult Social Care","Physical Support Older People (85+)","Adult Services","Third Party Payments","Other establishments","11/09/20","6383740","243.6","VENDOR","B S CARE LTD","100114"
"Portsmouth City Council","PCC","Adult Social Care","Physical Support Older People (85+)","Adult Services","Third Party Payments","Other establishments","11/09/20","6383740","1157.1","VENDOR","B S CARE LTD","100114"
"Portsmouth City Council","PCC","Adult Social Care","Physical Support Older People (85+)","Adult Services","Third Party Payments","Other establishments","11/09/20","6383740","1148.4","VENDOR","B S CARE LTD","100114"
"Portsmouth City Council","PCC","Adult Social Care","Physical Support Older People (85+)","Adult Services","Third Party Payments","Other establishments","11/09/20","6383740","852.6","VENDOR","B S CARE LTD","100114"
"Portsmouth City Council","PCC","Adult Social Care","Physical Support Older People (85+)","Adult Services","Third Party Payments","Other establishments","11/09/20","6383740","234.9","VENDOR","B S CARE LTD","100114"
"Portsmouth City Council","PCC","Adult Social Care","Physical Support Older People (85+)","Adult Services","Third Party Payments","Other establishments","11/09/20","6383740","1087.5","VENDOR","B S CARE LTD","100114"
"Portsmouth City Council","PCC","Housing Services","Homelessness","Housing, Neighbourhood and Building Services","Supplies and Services","Catering","11/09/20","6383745","601.85","VENDOR","BFS GROUP LTD T/A BIDFOOD","100106"
"Portsmouth City Council","PCC","Costs below Net Cost of Services","Trading","Finance & Resources","Supplies and Services","Miscellaneous expenses","07/09/20","6382823","1062","VENDOR","DWF LLP","138783"
"Portsmouth City Council","PCC","Highways and Transport Services","Parking Services","Regeneration","Supplies and Services","Communications and computing","21/09/20","6384947","3875","VENDOR","CONDUENT PARKING ENFORCEMENT SOLUTIONS LIMITED","113838"
"Portsmouth City Council","PCC","Highways and Transport Services","Parking Services","Regeneration","Supplies and Services","Communications and computing","21/09/20","6384947","1187.5","VENDOR","CONDUENT PARKING ENFORCEMENT SOLUTIONS LIMITED","113838"
"Portsmouth City Council","PCC","Highways and Transport Services","Parking Services","Regeneration","Supplies and Services","Communications and computing","21/09/20","6384947","900","VENDOR","CONDUENT PARKING ENFORCEMENT SOLUTIONS LIMITED","113838"
"Portsmouth City Council","PCC","Cultural and Related Services","Allocation of Management & Admin","Housing, Neighbourhood and Building Services","Supplies and Services","Catering","08/09/20","6382902","703.93","VENDOR","BFS GROUP LTD T/A BIDFOOD","100106"
"Portsmouth City Council","PCC","Cultural and Related Services","Allocation of Management & Admin","Housing, Neighbourhood and Building Services","Supplies and Services","Catering","08/09/20","6382902","-703.93","VENDOR","BFS GROUP LTD T/A BIDFOOD","100106"
"Portsmouth City Council","PCC","Housing Revenue Account","Special Services","Housing, Neighbourhood and Building Services","Supplies and Services","Catering","08/09/20","6382902","703.93","VENDOR","BFS GROUP LTD T/A BIDFOOD","100106"
"Portsmouth City Council","PCC","Cultural and Related Services","Open Spaces","Culture, Leisure & Regulatory Services","Third Party Payments","Private contractors","28/09/20","6386209","169.5","COMPANY","BARHILL PLANT LTD","100355"
"Portsmouth City Council","PCC","Other","Suspense and Capital Schemes","Capital - Leader","Capital Charges","Capital Expenditure (WIP)","28/09/20","6386209","689","COMPANY","BARHILL PLANT LTD","100355"
"Portsmouth City Council","PCC","Cultural and Related Services","Open Spaces","Culture, Leisure & Regulatory Services","Premises-Related Expenditure","Grounds maintenance costs","28/09/20","6386209","4540.73","COMPANY","BARHILL PLANT LTD","100355"
"Portsmouth City Council","PCC","Environmental and Regulatory Services","Cemetery, Cremation and Mortuary Services","Culture, Leisure & Regulatory Services","Third Party Payments","Private contractors","28/09/20","6386209","295.67","COMPANY","BARHILL PLANT LTD","100355"
"Portsmouth City Council","PCC","Cultural and Related Services","Open Spaces","Culture, Leisure & Regulatory Services","Third Party Payments","Private contractors","25/09/20","6386014","897.5","COMPANY","BARHILL PLANT LTD","100355"
"Portsmouth City Council","PCC","Cultural and Related Services","Open Spaces","Culture, Leisure & Regulatory Services","Third Party Payments","Private contractors","25/09/20","6386014","100","COMPANY","BARHILL PLANT LTD","100355"
"Portsmouth City Council","PCC","Cultural and Related Services","Open Spaces","Culture, Leisure & Regulatory Services","Third Party Payments","Private contractors","25/09/20","6386014","39.5","COMPANY","BARHILL PLANT LTD","100355"
"Portsmouth City Council","PCC","Cultural and Related Services","Open Spaces","Culture, Leisure & Regulatory Services","Third Party Payments","Private contractors","25/09/20","6386014","92.5","COMPANY","BARHILL PLANT LTD","100355"
"Portsmouth City Council","PCC","Environmental and Regulatory Services","Cemetery, Cremation and Mortuary Services","Culture, Leisure & Regulatory Services","Premises-Related Expenditure","Repairs, alterations and maintenance of buildings","25/09/20","6386014","1990.9","COMPANY","BARHILL PLANT LTD","100355"
"Portsmouth City Council","PCC","Housing Services","Homelessness","Housing, Neighbourhood and Building Services","Premises-Related Expenditure","Rents","25/09/20","6386103","2400","SOLETRADER","Classified as 'personal data' (under the Data Protection Act 2018)","137146"
"Portsmouth City Council","PCC","Housing Services","Homelessness","Housing, Neighbourhood and Building Services","Premises-Related Expenditure","Rents","25/09/20","6386078","5130","SOLETRADER","Classified as 'personal data' (under the Data Protection Act 2018)","114064"
"Portsmouth City Council","PCC","Adult Social Care","Support with Memory and Cognition Older People (85+)","Adult Services","Third Party Payments","Other establishments","11/09/20","6383728","3060","VENDOR","ALTON MANOR CARE HOME","130289"
"Portsmouth City Council","PCC","Adult Social Care","Support with Memory and Cognition Older People (85+)","Adult Services","Third Party Payments","Other establishments","11/09/20","6383728","2263.2","VENDOR","ALTON MANOR CARE HOME","130289"
"Portsmouth City Council","PCC","Adult Social Care","Support with Memory and Cognition Older People (85+)","Adult Services","Third Party Payments","Other establishments","11/09/20","6383728","2263.2","VENDOR","ALTON MANOR CARE HOME","130289"
"Portsmouth City Council","PCC","Adult Social Care","Mental Health Support Adults (18 - 64)","Adult Services","Third Party Payments","Other establishments","11/09/20","6383728","2130.3","VENDOR","ALTON MANOR CARE HOME","130289"
"Portsmouth City Council","PCC","Adult Social Care","Learning Disability Support  Adults (18 - 64)","Adult Services","Third Party Payments","Other establishments","11/09/20","6383733","9902.1","VENDOR","ASPENS CHARITIES","119343"
"Portsmouth City Council","PCC","Public Health","Public Health - Split Costing","Public Health","Supplies and Services","Printing, stationery and general office expenses","17/09/20","6384669","3250","VENDOR","ASSOCIATION OF DIRECTORS OF PUBLIC HEALTH","141443"
"Portsmouth City Council","PCC","Adult Social Care","Mental Health Support Adults (18 - 64)","Adult Services","Third Party Payments","Other establishments","11/09/20","6383734","5225.22","VENDOR","ASSURE HEALTH CARE GROUP","140779"
"Portsmouth City Council","PCC","Adult Social Care","Learning Disability Support  Adults (18 - 64)","Adult Services","Third Party Payments","Other establishments","25/09/20","6386008","9177.3","VENDOR","ASSURE HEALTH CARE GROUP","140779"
"Portsmouth City Council","PCC","Adult Social Care","Learning Disability Support  Adults (18 - 64)","Adult Services","Third Party Payments","Other establishments","25/09/20","6386008","7239.9","VENDOR","ASSURE HEALTH CARE GROUP","140779"
"Portsmouth City Council","PCC","Adult Social Care","Mental Health Support Adults (18 - 64)","Adult Services","Third Party Payments","Other establishments","24/09/20","6385904","4750.2","VENDOR","ASSURE HEALTH CARE GROUP","140779"
"Portsmouth City Council","PCC","Adult Social Care","Social Care Activities","Adult Services","Third Party Payments","Other establishments","11/09/20","6383736","15655.8","VENDOR","AUTISM HAMPSHIRE","139112"
"Portsmouth City Council","PCC","Adult Social Care","Learning Disability Support  Adults (18 - 64)","Adult Services","Third Party Payments","Other establishments","11/09/20","6383736","5887.8","VENDOR","AUTISM HAMPSHIRE","139112"
"Portsmouth City Council","PCC","Adult Social Care","Learning Disability Support  Adults (18 - 64)","Adult Services","Third Party Payments","Other establishments","11/09/20","6383736","6128.4","VENDOR","AUTISM HAMPSHIRE","139112"
"Portsmouth City Council","PCC","Adult Social Care","Learning Disability Support  Adults (18 - 64)","Adult Services","Third Party Payments","Other establishments","11/09/20","6383736","3738.6","VENDOR","AUTISM HAMPSHIRE","139112"
"Portsmouth City Council","PCC","Adult Social Care","Learning Disability Support  Adults (18 - 64)","Adult Services","Third Party Payments","Other establishments","11/09/20","6383736","8802","VENDOR","AUTISM HAMPSHIRE","139112"
"Portsmouth City Council","PCC","Adult Social Care","Support with Memory and Cognition Older People (85+)","Adult Services","Third Party Payments","Other establishments","11/09/20","6383737","1500","VENDOR","AUTUMN VALE REST HOME","100551"
"Portsmouth City Council","PCC","Adult Social Care","Support with Memory and Cognition Older People (85+)","Adult Services","Third Party Payments","Other establishments","11/09/20","6383737","2349.9","VENDOR","AUTUMN VALE REST HOME","100551"
"Portsmouth City Council","PCC","Adult Social Care","Mental Health Support Adults (18 - 64)","Adult Services","Third Party Payments","Other establishments","11/09/20","6383737","2097.9","VENDOR","AUTUMN VALE REST HOME","100551"
"Portsmouth City Council","PCC","Adult Social Care","Mental Health Support Adults (18 - 64)","Adult Services","Third Party Payments","Other establishments","11/09/20","6383737","1383.9","VENDOR","AUTUMN VALE REST HOME","100551"
"Portsmouth City Council","PCC","Adult Social Care","Mental Health Support Adults (18 - 64)","Adult Services","Third Party Payments","Other establishments","11/09/20","6383737","3443.4","VENDOR","AUTUMN VALE REST HOME","100551"
"Portsmouth City Council","PCC","Adult Social Care","Mental Health Support Adults (18 - 64)","Adult Services","Third Party Payments","Other establishments","11/09/20","6383737","2275.5","VENDOR","AUTUMN VALE REST HOME","100551"
"Portsmouth City Council","PCC","Adult Social Care","Mental Health Support Adults (18 - 64)","Adult Services","Third Party Payments","Other establishments","11/09/20","6383737","3309.3","VENDOR","AUTUMN VALE REST HOME","100551"
"Portsmouth City Council","PCC","Adult Social Care","Mental Health Support Adults (18 - 64)","Adult Services","Third Party Payments","Other establishments","11/09/20","6383737","-1178.76","VENDOR","AUTUMN VALE REST HOME","100551"
"Portsmouth City Council","PCC","Adult Social Care","Mental Health Support Adults (18 - 64)","Adult Services","Third Party Payments","Other establishments","11/09/20","6383737","2437.8","VENDOR","AUTUMN VALE REST HOME","100551"
"Portsmouth City Council","PCC","Adult Social Care","Physical Support Older People (85+)","Adult Services","Third Party Payments","Other establishments","28/09/20","6386208","265.71","SOLETRADER","RED SQUIRREL","145135"
"Portsmouth City Council","PCC","Adult Social Care","Physical Support Older People (85+)","Adult Services","Third Party Payments","Other establishments","28/09/20","6386208","208.29","SOLETRADER","RED SQUIRREL","145135"
"Portsmouth City Council","PCC","Adult Social Care","Physical Support Older People (85+)","Adult Services","Third Party Payments","Other establishments","28/09/20","6386208","36","SOLETRADER","RED SQUIRREL","145135"
"Portsmouth City Council","PCC","Adult Social Care","Social Care Activities","Adult Services","Third Party Payments","Other establishments","11/09/20","6383741","3284.4","VENDOR","BEACONSFIELD RESIDENTIAL CARE HOME","100568"
"Portsmouth City Council","PCC","Adult Social Care","Learning Disability Support  Adults (18 - 64)","Adult Services","Third Party Payments","Other establishments","11/09/20","6383741","3376.8","VENDOR","BEACONSFIELD RESIDENTIAL CARE HOME","100568"
"Portsmouth City Council","PCC","Adult Social Care","Learning Disability Support  Adults (18 - 64)","Adult Services","Third Party Payments","Other establishments","11/09/20","6383741","2476.8","VENDOR","BEACONSFIELD RESIDENTIAL CARE HOME","100568"
"Portsmouth City Council","PCC","Adult Social Care","Mental Health Support Adults (18 - 64)","Adult Services","Third Party Payments","Other establishments","11/09/20","6383741","1801.5","VENDOR","BEACONSFIELD RESIDENTIAL CARE HOME","100568"
"Portsmouth City Council","PCC","Adult Social Care","Mental Health Support Adults (18 - 64)","Adult Services","Third Party Payments","Other establishments","11/09/20","6383741","1872","VENDOR","BEACONSFIELD RESIDENTIAL CARE HOME","100568"
"Portsmouth City Council","PCC","Adult Social Care","Mental Health Support Adults (18 - 64)","Adult Services","Third Party Payments","Other establishments","11/09/20","6383741","1748.1","VENDOR","BEACONSFIELD RESIDENTIAL CARE HOME","100568"
"Portsmouth City Council","PCC","Adult Social Care","Mental Health Support Adults (18 - 64)","Adult Services","Third Party Payments","Other establishments","11/09/20","6383741","2404.5","VENDOR","BEACONSFIELD RESIDENTIAL CARE HOME","100568"
"Portsmouth City Council","PCC","Adult Social Care","Mental Health Support Adults (18 - 64)","Adult Services","Third Party Payments","Other establishments","11/09/20","6383741","1836.9","VENDOR","BEACONSFIELD RESIDENTIAL CARE HOME","100568"
"Portsmouth City Council","PCC","Adult Social Care","Mental Health Support Adults (18 - 64)","Adult Services","Third Party Payments","Other establishments","11/09/20","6383741","2352","VENDOR","BEACONSFIELD RESIDENTIAL CARE HOME","100568"
"Portsmouth City Council","PCC","Adult Social Care","Mental Health Support Adults (18 - 64)","Adult Services","Third Party Payments","Other establishments","11/09/20","6383741","1836.9","VENDOR","BEACONSFIELD RESIDENTIAL CARE HOME","100568"
"Portsmouth City Council","PCC","Adult Social Care","Mental Health Support Adults (18 - 64)","Adult Services","Third Party Payments","Other establishments","11/09/20","6383741","1836.9","VENDOR","BEACONSFIELD RESIDENTIAL CARE HOME","100568"
"Portsmouth City Council","PCC","Adult Social Care","Mental Health Support Adults (18 - 64)","Adult Services","Third Party Payments","Other establishments","11/09/20","6383741","1766.1","VENDOR","BEACONSFIELD RESIDENTIAL CARE HOME","100568"
"Portsmouth City Council","PCC","Adult Social Care","Mental Health Support Adults (18 - 64)","Adult Services","Third Party Payments","Other establishments","11/09/20","6383741","2571.9","VENDOR","BEACONSFIELD RESIDENTIAL CARE HOME","100568"
"Portsmouth City Council","PCC","Adult Social Care","Mental Health Support Adults (18 - 64)","Adult Services","Third Party Payments","Other establishments","11/09/20","6383741","1801.5","VENDOR","BEACONSFIELD RESIDENTIAL CARE HOME","100568"
"Portsmouth City Council","PCC","Adult Social Care","Mental Health Support Adults (18 - 64)","Adult Services","Third Party Payments","Other establishments","11/09/20","6383741","1836.9","VENDOR","BEACONSFIELD RESIDENTIAL CARE HOME","100568"
"Portsmouth City Council","PCC","Adult Social Care","Mental Health Support Adults (18 - 64)","Adult Services","Third Party Payments","Other establishments","11/09/20","6383741","1801.5","VENDOR","BEACONSFIELD RESIDENTIAL CARE HOME","100568"
"Portsmouth City Council","PCC","Adult Social Care","Mental Health Support Adults (18 - 64)","Adult Services","Third Party Payments","Other establishments","11/09/20","6383741","1942.5","VENDOR","BEACONSFIELD RESIDENTIAL CARE HOME","100568"
"Portsmouth City Council","PCC","Adult Social Care","Mental Health Support Adults (18 - 64)","Adult Services","Third Party Payments","Other establishments","11/09/20","6383741","1997.4","VENDOR","BEACONSFIELD RESIDENTIAL CARE HOME","100568"
"Portsmouth City Council","PCC","Adult Social Care","Mental Health Support Adults (18 - 64)","Adult Services","Third Party Payments","Other establishments","11/09/20","6383741","1907.4","VENDOR","BEACONSFIELD RESIDENTIAL CARE HOME","100568"
"Portsmouth City Council","PCC","Adult Social Care","Physical Support Adults (18 - 64)","Adult Services","Third Party Payments","Other establishments","11/09/20","6383743","5571.6","VENDOR","BEDHAMPTON NURSING HOME","100569"
"Portsmouth City Council","PCC","Adult Social Care","Physical Support Adults (18 - 64)","Adult Services","Third Party Payments","Other establishments","11/09/20","6383743","-6518.68","VENDOR","BEDHAMPTON NURSING HOME","100569"
"Portsmouth City Council","PCC","Adult Social Care","Physical Support Adults (18 - 64)","Adult Services","Third Party Payments","Other establishments","11/09/20","6383743","-6518.68","VENDOR","BEDHAMPTON NURSING HOME","100569"
"Portsmouth City Council","PCC","Adult Social Care","Physical Support Adults (18 - 64)","Adult Services","Third Party Payments","Other establishments","11/09/20","6383743","-4836.44","VENDOR","BEDHAMPTON NURSING HOME","100569"
"Portsmouth City Council","PCC","Adult Social Care","Physical Support Adults (18 - 64)","Adult Services","Third Party Payments","Other establishments","11/09/20","6383743","1671.48","VENDOR","BEDHAMPTON NURSING HOME","100569"
"Portsmouth City Council","PCC","Adult Social Care","Physical Support Adults (18 - 64)","Adult Services","Third Party Payments","Other establishments","11/09/20","6383743","6000","VENDOR","BEDHAMPTON NURSING HOME","100569"
"Portsmouth City Council","PCC","Adult Social Care","Physical Support Adults (18 - 64)","Adult Services","Third Party Payments","Other establishments","11/09/20","6383743","5757.32","VENDOR","BEDHAMPTON NURSING HOME","100569"
"Portsmouth City Council","PCC","Adult Social Care","Physical Support Adults (18 - 64)","Adult Services","Third Party Payments","Other establishments","11/09/20","6383743","5571.6","VENDOR","BEDHAMPTON NURSING HOME","100569"
"Portsmouth City Council","PCC","Adult Social Care","Social Care Activities","Adult Services","Third Party Payments","Other establishments","11/09/20","6383743","11307.6","VENDOR","BEDHAMPTON NURSING HOME","100569"
"Portsmouth City Council","PCC","Adult Social Care","Social Care Activities","Adult Services","Third Party Payments","Other establishments","11/09/20","6383743","4523.7","VENDOR","BEDHAMPTON NURSING HOME","100569"
"Portsmouth City Council","PCC","Adult Social Care","Social Care Activities","Adult Services","Third Party Payments","Other establishments","11/09/20","6383743","5682.9","VENDOR","BEDHAMPTON NURSING HOME","100569"
"Portsmouth City Council","PCC","Adult Social Care","Social Care Activities","Adult Services","Third Party Payments","Other establishments","11/09/20","6383743","788.23","VENDOR","BEDHAMPTON NURSING HOME","100569"
"Portsmouth City Council","PCC","Adult Social Care","Physical Support Older People (85+)","Adult Services","Third Party Payments","Other establishments","11/09/20","6383743","5691.6","VENDOR","BEDHAMPTON NURSING HOME","100569"
"Portsmouth City Council","PCC","Adult Social Care","Physical Support Older People (85+)","Adult Services","Third Party Payments","Other establishments","11/09/20","6383743","2794.5","VENDOR","BEDHAMPTON NURSING HOME","100569"
"Portsmouth City Council","PCC","Adult Social Care","Social Care Activities","Adult Services","Third Party Payments","Other establishments","15/09/20","6384066","3107.35","VENDOR","BETHESDA HEALTHCARE","143824"
"Portsmouth City Council","PCC","Adult Social Care","Physical Support Adults (18 - 64)","Adult Services","Third Party Payments","Other establishments","15/09/20","6384066","3214.5","VENDOR","BETHESDA HEALTHCARE","143824"
"Portsmouth City Council","PCC","Adult Social Care","Physical Support Adults (18 - 64)","Adult Services","Third Party Payments","Other establishments","15/09/20","6384066","3216","VENDOR","BETHESDA HEALTHCARE","143824"
"Portsmouth City Council","PCC","Adult Social Care","Physical Support Adults (18 - 64)","Adult Services","Third Party Payments","Other establishments","15/09/20","6384066","3214.5","VENDOR","BETHESDA HEALTHCARE","143824"
"Portsmouth City Council","PCC","Adult Social Care","Physical Support Adults (18 - 64)","Adult Services","Third Party Payments","Other establishments","15/09/20","6384066","485.72","VENDOR","BETHESDA HEALTHCARE","143824"
"Portsmouth City Council","PCC","Adult Social Care","Physical Support Adults (18 - 64)","Adult Services","Third Party Payments","Other establishments","15/09/20","6384066","3642.9","VENDOR","BETHESDA HEALTHCARE","143824"
"Portsmouth City Council","PCC","Highways and Transport Services","Airports, Harbours and Toll Facilities","Portsmouth International Port","Premises-Related Expenditure","Repairs, alterations and maintenance of buildings","24/09/20","6385969","1333.9","VENDOR","REDVISION CCTV LTD","146343"
"Portsmouth City Council","PCC","Housing Services","Homelessness","Housing, Neighbourhood and Building Services","Supplies and Services","Catering","07/09/20","6382791","364.43","VENDOR","BFS GROUP LTD T/A BIDFOOD","100106"
"Portsmouth City Council","PCC","Cultural and Related Services","Recreation and Sport","Culture, Leisure & Regulatory Services","Supplies and Services","Catering","02/09/20","6382052","734.94","VENDOR","BFS GROUP LTD T/A BIDFOOD","100106"
"Portsmouth City Council","PCC","Adult Social Care","Physical Support Adults (18 - 64)","Adult Services","Third Party Payments","Other establishments","15/09/20","6384066","2121.66","VENDOR","BETHESDA HEALTHCARE","143824"
"Portsmouth City Council","PCC","Adult Social Care","Physical Support Adults (18 - 64)","Adult Services","Third Party Payments","Other establishments","15/09/20","6384066","2357.4","VENDOR","BETHESDA HEALTHCARE","143824"
"Portsmouth City Council","PCC","Adult Social Care","Physical Support Adults (18 - 64)","Adult Services","Third Party Payments","Other establishments","15/09/20","6384066","4264.5","VENDOR","BETHESDA HEALTHCARE","143824"
"Portsmouth City Council","PCC","Adult Social Care","Physical Support Adults (18 - 64)","Adult Services","Third Party Payments","Other establishments","15/09/20","6384066","3428.7","VENDOR","BETHESDA HEALTHCARE","143824"
"Portsmouth City Council","PCC","Adult Social Care","Physical Support Adults (18 - 64)","Adult Services","Third Party Payments","Other establishments","15/09/20","6384066","1392.95","VENDOR","BETHESDA HEALTHCARE","143824"
"Portsmouth City Council","PCC","Adult Social Care","Physical Support Adults (18 - 64)","Adult Services","Third Party Payments","Other establishments","15/09/20","6384066","107.15","VENDOR","BETHESDA HEALTHCARE","143824"
"Portsmouth City Council","PCC","Adult Social Care","Physical Support Adults (18 - 64)","Adult Services","Third Party Payments","Other establishments","15/09/20","6384066","3216","VENDOR","BETHESDA HEALTHCARE","143824"
"Portsmouth City Council","PCC","Adult Social Care","Support with Memory and Cognition Older People (85+)","Adult Services","Third Party Payments","Other establishments","15/09/20","6384066","1885.8","VENDOR","BETHESDA HEALTHCARE","143824"
"Portsmouth City Council","PCC","Adult Social Care","Support with Memory and Cognition Older People (85+)","Adult Services","Third Party Payments","Other establishments","15/09/20","6384066","3017.1","VENDOR","BETHESDA HEALTHCARE","143824"
"Portsmouth City Council","PCC","Adult Social Care","Support with Memory and Cognition Older People (85+)","Adult Services","Third Party Payments","Other establishments","15/09/20","6384066","2622.9","VENDOR","BETHESDA HEALTHCARE","143824"
"Portsmouth City Council","PCC","Adult Social Care","Support with Memory and Cognition Older People (85+)","Adult Services","Third Party Payments","Other establishments","15/09/20","6384066","1285.2","VENDOR","BETHESDA HEALTHCARE","143824"
"Portsmouth City Council","PCC","Adult Social Care","Support with Memory and Cognition Older People (85+)","Adult Services","Third Party Payments","Other establishments","15/09/20","6384066","3857.1","VENDOR","BETHESDA HEALTHCARE","143824"
"Portsmouth City Council","PCC","Adult Social Care","Physical Support Adults (18 - 64)","Adult Services","Third Party Payments","Other establishments","11/09/20","6383744","3672","VENDOR","BETHESDA HEALTHCARE","143824"
"Portsmouth City Council","PCC","Adult Social Care","Physical Support Adults (18 - 64)","Adult Services","Third Party Payments","Other establishments","11/09/20","6383746","135","VENDOR","BLUEBELL NURSING HOME","100112"
"Portsmouth City Council","PCC","Adult Social Care","Physical Support Adults (18 - 64)","Adult Services","Third Party Payments","Other establishments","11/09/20","6383746","1085","VENDOR","BLUEBELL NURSING HOME","100112"
"Portsmouth City Council","PCC","Adult Social Care","Physical Support Adults (18 - 64)","Adult Services","Third Party Payments","Other establishments","11/09/20","6383746","657.08","VENDOR","BLUEBELL NURSING HOME","100112"
"Portsmouth City Council","PCC","Adult Social Care","Physical Support Adults (18 - 64)","Adult Services","Third Party Payments","Other establishments","11/09/20","6383746","4650","VENDOR","BLUEBELL NURSING HOME","100112"
"Portsmouth City Council","PCC","Adult Social Care","Physical Support Adults (18 - 64)","Adult Services","Third Party Payments","Other establishments","11/09/20","6383746","4880.12","VENDOR","BLUEBELL NURSING HOME","100112"
"Portsmouth City Council","PCC","Adult Social Care","Physical Support Adults (18 - 64)","Adult Services","Third Party Payments","Other establishments","11/09/20","6383746","5048.4","VENDOR","BLUEBELL NURSING HOME","100112"
"Portsmouth City Council","PCC","Adult Social Care","Physical Support Adults (18 - 64)","Adult Services","Third Party Payments","Other establishments","11/09/20","6383746","4710","VENDOR","BLUEBELL NURSING HOME","100112"
"Portsmouth City Council","PCC","Adult Social Care","Social Care Activities","Adult Services","Third Party Payments","Other establishments","11/09/20","6383746","4920","VENDOR","BLUEBELL NURSING HOME","100112"
"Portsmouth City Council","PCC","Adult Social Care","Social Care Activities","Adult Services","Third Party Payments","Other establishments","11/09/20","6383746","5093.4","VENDOR","BLUEBELL NURSING HOME","100112"
"Portsmouth City Council","PCC","Adult Social Care","Social Care Activities","Adult Services","Third Party Payments","Other establishments","11/09/20","6383746","-2589.78","VENDOR","BLUEBELL NURSING HOME","100112"
"Portsmouth City Council","PCC","Adult Social Care","Social Care Activities","Adult Services","Third Party Payments","Other establishments","11/09/20","6383746","3947.4","VENDOR","BLUEBELL NURSING HOME","100112"
"Portsmouth City Council","PCC","Adult Social Care","Social Care Activities","Adult Services","Third Party Payments","Other establishments","11/09/20","6383746","4314.6","VENDOR","BLUEBELL NURSING HOME","100112"
"Portsmouth City Council","PCC","Adult Social Care","Social Care Activities","Adult Services","Third Party Payments","Other establishments","11/09/20","6383746","-1842.12","VENDOR","BLUEBELL NURSING HOME","100112"
"Portsmouth City Council","PCC","Adult Social Care","Social Care Activities","Adult Services","Third Party Payments","Other establishments","11/09/20","6383746","4268.7","VENDOR","BLUEBELL NURSING HOME","100112"
"Portsmouth City Council","PCC","Adult Social Care","Social Care Activities","Adult Services","Third Party Payments","Other establishments","11/09/20","6383746","5515.8","VENDOR","BLUEBELL NURSING HOME","100112"
"Portsmouth City Council","PCC","Adult Social Care","Social Care Activities","Adult Services","Third Party Payments","Other establishments","11/09/20","6383746","-1827.1","VENDOR","BLUEBELL NURSING HOME","100112"
"Portsmouth City Council","PCC","Adult Social Care","Social Care Activities","Adult Services","Third Party Payments","Other establishments","11/09/20","6383746","5358","VENDOR","BLUEBELL NURSING HOME","100112"
"Portsmouth City Council","PCC","Adult Social Care","Social Care Activities","Adult Services","Third Party Payments","Other establishments","11/09/20","6383746","5202","VENDOR","BLUEBELL NURSING HOME","100112"
"Portsmouth City Council","PCC","Adult Social Care","Social Care Activities","Adult Services","Third Party Payments","Other establishments","11/09/20","6383746","788.23","VENDOR","BLUEBELL NURSING HOME","100112"
"Portsmouth City Council","PCC","Adult Social Care","Social Care Activities","Adult Services","Third Party Payments","Other establishments","11/09/20","6383746","788.23","VENDOR","BLUEBELL NURSING HOME","100112"
"Portsmouth City Council","PCC","Adult Social Care","Social Care Activities","Adult Services","Third Party Payments","Other establishments","11/09/20","6383746","788.23","VENDOR","BLUEBELL NURSING HOME","100112"
"Portsmouth City Council","PCC","Adult Social Care","Social Care Activities","Adult Services","Third Party Payments","Other establishments","11/09/20","6383746","814.5","VENDOR","BLUEBELL NURSING HOME","100112"
"Portsmouth City Council","PCC","Adult Social Care","Social Care Activities","Adult Services","Third Party Payments","Other establishments","11/09/20","6383746","78.82","VENDOR","BLUEBELL NURSING HOME","100112"
"Portsmouth City Council","PCC","Adult Social Care","Social Care Activities","Adult Services","Third Party Payments","Other establishments","11/09/20","6383746","788.23","VENDOR","BLUEBELL NURSING HOME","100112"
"Portsmouth City Council","PCC","Adult Social Care","Social Care Activities","Adult Services","Third Party Payments","Other establishments","11/09/20","6383746","788.23","VENDOR","BLUEBELL NURSING HOME","100112"
"Portsmouth City Council","PCC","Adult Social Care","Social Care Activities","Adult Services","Third Party Payments","Other establishments","11/09/20","6383746","788.23","VENDOR","BLUEBELL NURSING HOME","100112"
"Portsmouth City Council","PCC","Adult Social Care","Physical Support Older People (85+)","Adult Services","Third Party Payments","Other establishments","11/09/20","6383740","1096.2","VENDOR","B S CARE LTD","100114"
"Portsmouth City Council","PCC","Housing Services","Homelessness","Housing, Neighbourhood and Building Services","Supplies and Services","Catering","24/09/20","6385907","131.11","VENDOR","BFS GROUP LTD T/A BIDFOOD","100106"
"Portsmouth City Council","PCC","Housing Services","Homelessness","Housing, Neighbourhood and Building Services","Supplies and Services","Catering","24/09/20","6385907","332.16","VENDOR","BFS GROUP LTD T/A BIDFOOD","100106"
"Portsmouth City Council","PCC","Adult Social Care","Physical Support Older People (85+)","Adult Services","Third Party Payments","Other establishments","11/09/20","6383740","1218","VENDOR","B S CARE LTD","100114"
"Portsmouth City Council","PCC","Housing Services","Homelessness","Housing, Neighbourhood and Building Services","Premises-Related Expenditure","Rents","25/09/20","6386020","1380","SOLETRADER","Classified as 'personal data' (under the Data Protection Act 2018)","146402"
"Portsmouth City Council","PCC","Housing Services","Homelessness","Housing, Neighbourhood and Building Services","Supplies and Services","Catering","07/09/20","6382791","239.28","VENDOR","BFS GROUP LTD T/A BIDFOOD","100106"
"Portsmouth City Council","PCC","Adult Social Care","Physical Support Older People (85+)","Adult Services","Third Party Payments","Other establishments","11/09/20","6383740","1218","VENDOR","B S CARE LTD","100114"
"Portsmouth City Council","PCC","Cultural and Related Services","Recreation and Sport","Culture, Leisure & Regulatory Services","Supplies and Services","Catering","17/09/20","6384672","11.22","VENDOR","BFS GROUP LTD T/A BIDFOOD","100106"
"Portsmouth City Council","PCC","Adult Social Care","Physical Support Older People (85+)","Adult Services","Third Party Payments","Other establishments","11/09/20","6383740","269.7","VENDOR","B S CARE LTD","100114"
"Portsmouth City Council","PCC","Cultural and Related Services","Recreation and Sport","Culture, Leisure & Regulatory Services","Supplies and Services","Catering","23/09/20","6385428","231.23","VENDOR","BFS GROUP LTD T/A BIDFOOD","100106"
"Portsmouth City Council","PCC","Housing Services","Homelessness","Housing, Neighbourhood and Building Services","Premises-Related Expenditure","Rents","28/09/20","6386569","2220","SOLETRADER","Classified as 'personal data' (under the Data Protection Act 2018)","147154"
"Portsmouth City Council","PCC","Adult Social Care","Physical Support Older People (85+)","Adult Services","Third Party Payments","Other establishments","11/09/20","6383740","139.2","VENDOR","B S CARE LTD","100114"
"Portsmouth City Council","PCC","Cultural and Related Services","Recreation and Sport","Culture, Leisure & Regulatory Services","Supplies and Services","Catering","25/09/20","6386019","101.69","VENDOR","BFS GROUP LTD T/A BIDFOOD","100106"
"Portsmouth City Council","PCC","Adult Social Care","Physical Support Older People (85+)","Adult Services","Third Party Payments","Other establishments","11/09/20","6383740","587.25","VENDOR","B S CARE LTD","100114"
"Portsmouth City Council","PCC","Adult Social Care","Physical Support Older People (85+)","Adult Services","Third Party Payments","Other establishments","11/09/20","6383740","243.6","VENDOR","B S CARE LTD","100114"
"Portsmouth City Council","PCC","Housing Services","Homelessness","Housing, Neighbourhood and Building Services","Supplies and Services","Catering","11/09/20","6383745","230.53","VENDOR","BFS GROUP LTD T/A BIDFOOD","100106"
"Portsmouth City Council","PCC","Adult Social Care","Physical Support Older People (85+)","Adult Services","Third Party Payments","Other establishments","11/09/20","6383740","739.5","VENDOR","B S CARE LTD","100114"
"Portsmouth City Council","PCC","Adult Social Care","Physical Support Older People (85+)","Adult Services","Third Party Payments","Other establishments","11/09/20","6383740","208.8","VENDOR","B S CARE LTD","100114"
"Portsmouth City Council","PCC","Housing Services","Homelessness","Housing, Neighbourhood and Building Services","Premises-Related Expenditure","Rents","25/09/20","6386011","1950","SOLETRADER","Classified as 'personal data' (under the Data Protection Act 2018)","114289"
"Portsmouth City Council","PCC","Adult Social Care","Physical Support Older People (85+)","Adult Services","Third Party Payments","Other establishments","11/09/20","6383740","626.4","VENDOR","B S CARE LTD","100114"
"Portsmouth City Council","PCC","Adult Social Care","Physical Support Older People (85+)","Adult Services","Third Party Payments","Other establishments","11/09/20","6383740","635.1","VENDOR","B S CARE LTD","100114"
"Portsmouth City Council","PCC","Adult Social Care","Physical Support Older People (85+)","Adult Services","Third Party Payments","Other establishments","11/09/20","6383740","295.8","VENDOR","B S CARE LTD","100114"
"Portsmouth City Council","PCC","Adult Social Care","Physical Support Older People (85+)","Adult Services","Third Party Payments","Other establishments","11/09/20","6383740","243.6","VENDOR","B S CARE LTD","100114"
"Portsmouth City Council","PCC","Adult Social Care","Physical Support Older People (85+)","Adult Services","Third Party Payments","Other establishments","11/09/20","6383740","365.4","VENDOR","B S CARE LTD","100114"
"Portsmouth City Council","PCC","Adult Social Care","Physical Support Older People (85+)","Adult Services","Third Party Payments","Other establishments","11/09/20","6383740","487.2","VENDOR","B S CARE LTD","100114"
"Portsmouth City Council","PCC","Adult Social Care","Physical Support Older People (85+)","Adult Services","Third Party Payments","Other establishments","11/09/20","6383740","974.4","VENDOR","B S CARE LTD","100114"
"Portsmouth City Council","PCC","Adult Social Care","Physical Support Older People (85+)","Adult Services","Third Party Payments","Other establishments","11/09/20","6383740","974.4","VENDOR","B S CARE LTD","100114"
"Portsmouth City Council","PCC","Adult Social Care","Physical Support Older People (85+)","Adult Services","Third Party Payments","Other establishments","11/09/20","6383740","156.6","VENDOR","B S CARE LTD","100114"
"Portsmouth City Council","PCC","Adult Social Care","Physical Support Older People (85+)","Adult Services","Third Party Payments","Other establishments","11/09/20","6383740","800.4","VENDOR","B S CARE LTD","100114"
"Portsmouth City Council","PCC","Adult Social Care","Physical Support Older People (85+)","Adult Services","Third Party Payments","Other establishments","11/09/20","6383740","208.8","VENDOR","B S CARE LTD","100114"
"Portsmouth City Council","PCC","Adult Social Care","Physical Support Older People (85+)","Adult Services","Third Party Payments","Other establishments","11/09/20","6383740","243.6","VENDOR","B S CARE LTD","100114"
"Portsmouth City Council","PCC","Other","Suspense and Capital Schemes","Capital - Environment & Climate Change","Capital Charges","Capital Expenditure (WIP)","09/09/20","6383492","91959.61","PARTNERSHIP","VSBW JOINT VENTURE","146068"
"Portsmouth City Council","PCC","Other","Suspense and Capital Schemes","Capital - Traffic & Transportation","Capital Charges","Capital Expenditure (WIP)","07/09/20","6382825","1927.47","COMPANY","ECO ENVIRONMENTAL SERVICES LIMITED","147062"
"Portsmouth City Council","PCC","Other","Suspense and Capital Schemes","Capital - Leader","Capital Charges","Capital Expenditure (WIP)","23/09/20","6385811","4810","VENDOR","STANTEC UK LTD","146701"
"Portsmouth City Council","PCC","Planning Services","Business support","Regeneration","Premises-Related Expenditure","Repairs, alterations and maintenance of buildings","23/09/20","6385470","2986.55","COMPANY","CLAMEG CONSTRUCTION","118383"
"Portsmouth City Council","PCC","Support Service / Transparency Costs Unallocated","Financial Services","Finance & Resources","Supplies and Services","Communications and computing","07/09/20","6382852","2380.36","VENDOR","ORACLE CORPORATION UK LTD","100470"
"Portsmouth City Council","PCC","Other","Suspense and Capital Schemes","Capital - Housing RA","Capital Charges","Capital Expenditure (WIP)","18/09/20","6384902","4500","VENDOR","RIDGE AND PARTNERS LLP","139659"
"Portsmouth City Council","PCC","Housing Revenue Account","","Housing, Neighbourhood and Building Services","Premises-Related Expenditure","Energy costs","25/09/20","6386160","60","COMPANY","SSE PLC (SCOTTISH AND SOUTHERN ENERGY PLC)","100303"
"Portsmouth City Council","PCC","Housing Revenue Account","","Housing, Neighbourhood and Building Services","Premises-Related Expenditure","Energy costs","25/09/20","6386160","370.12","COMPANY","SSE PLC (SCOTTISH AND SOUTHERN ENERGY PLC)","100303"
"Portsmouth City Council","PCC","Housing Revenue Account","","Housing, Neighbourhood and Building Services","Premises-Related Expenditure","Energy costs","25/09/20","6386160","254.32","COMPANY","SSE PLC (SCOTTISH AND SOUTHERN ENERGY PLC)","100303"
"Portsmouth City Council","PCC","Housing Revenue Account","","Housing, Neighbourhood and Building Services","Premises-Related Expenditure","Energy costs","25/09/20","6386160","487.62","COMPANY","SSE PLC (SCOTTISH AND SOUTHERN ENERGY PLC)","100303"
"Portsmouth City Council","PCC","Housing Revenue Account","","Housing, Neighbourhood and Building Services","Premises-Related Expenditure","Energy costs","25/09/20","6386160","558.71","COMPANY","SSE PLC (SCOTTISH AND SOUTHERN ENERGY PLC)","100303"
"Portsmouth City Council","PCC","Housing Revenue Account","","Housing, Neighbourhood and Building Services","Premises-Related Expenditure","Energy costs","25/09/20","6386160","77.12","COMPANY","SSE PLC (SCOTTISH AND SOUTHERN ENERGY PLC)","100303"
"Portsmouth City Council","PCC","Other","Suspense and Capital Schemes","Capital - Housing RA","Capital Charges","REFCUS","17/09/20","6384758","94","VENDOR","MACKS & SONS","102366"
"Portsmouth City Council","PCC","Adult Social Care","Social Care Activities","Adult Services","Third Party Payments","Other establishments","11/09/20","6383746","788.23","VENDOR","BLUEBELL NURSING HOME","100112"
"Portsmouth City Council","PCC","Adult Social Care","Social Care Activities","Adult Services","Third Party Payments","Other establishments","11/09/20","6383746","788.23","VENDOR","BLUEBELL NURSING HOME","100112"
"Portsmouth City Council","PCC","Adult Social Care","Social Care Activities","Adult Services","Third Party Payments","Other establishments","11/09/20","6383746","788.23","VENDOR","BLUEBELL NURSING HOME","100112"
"Portsmouth City Council","PCC","Other","Suspense and Capital Schemes","Housing, Neighbourhood and Building Services","Supplies and Services","Services","04/09/20","6382654","7413.44","VENDOR","ANY MAINTENANCE LTD","146221"
"Portsmouth City Council","PCC","Housing Services","Housing Strategy","Housing, Neighbourhood and Building Services","Income","Customer and client receipts","04/09/20","6382654","-961.2","VENDOR","ANY MAINTENANCE LTD","146221"
"Portsmouth City Council","PCC","Adult Social Care","Support with Memory and Cognition Older People (65 - 74)","Adult Services","Premises-Related Expenditure","Water Services","03/09/20","6382649","-1307.56","VENDOR","ADVANCED DEMAND SIDE MANAGEMENT LIMITED","143817"
"Portsmouth City Council","PCC","Adult Social Care","Support with Memory and Cognition Older People (65 - 74)","Adult Services","Premises-Related Expenditure","Water Services","03/09/20","6382649","-1608.8","VENDOR","ADVANCED DEMAND SIDE MANAGEMENT LIMITED","143817"
"Portsmouth City Council","PCC","Other","Suspense and Capital Schemes","Capital - Housing General Fund","Capital Charges","REFCUS","22/09/20","6385244","6300","VENDOR","ANY MAINTENANCE LTD","146221"
"Portsmouth City Council","PCC","Housing Services","Private Sector Housing Renewal","Housing, Neighbourhood and Building Services","Income","Other grants reimbursements and contributions","22/09/20","6385244","-562.5","VENDOR","ANY MAINTENANCE LTD","146221"
"Portsmouth City Council","PCC","Adult Social Care","Support with Memory and Cognition Older People (65 - 74)","Adult Services","Premises-Related Expenditure","Water Services","03/09/20","6382649","-669.92","VENDOR","ADVANCED DEMAND SIDE MANAGEMENT LIMITED","143817"
"Portsmouth City Council","PCC","Adult Social Care","Support with Memory and Cognition Older People (65 - 74)","Adult Services","Premises-Related Expenditure","Water Services","03/09/20","6382649","-669.92","VENDOR","ADVANCED DEMAND SIDE MANAGEMENT LIMITED","143817"
"Portsmouth City Council","PCC","Children's and Education Services","Other Education and Community Budget","Children's Services and Education","Transport-Related Expenditure","Car allowances","09/09/20","6383028","34","VENDOR","AQUA CARS LIMITED","100011"
"Portsmouth City Council","PCC","Adult Social Care","Information and Early Intervention","Adult Services","Premises-Related Expenditure","Water Services","03/09/20","6382649","-104.07","VENDOR","ADVANCED DEMAND SIDE MANAGEMENT LIMITED","143817"
"Portsmouth City Council","PCC","Adult Social Care","Learning Disability Support  Adults (18 - 64)","Adult Services","Premises-Related Expenditure","Water Services","03/09/20","6382649","-4276.23","VENDOR","ADVANCED DEMAND SIDE MANAGEMENT LIMITED","143817"
"Portsmouth City Council","PCC","Support Service / Transparency Costs Unallocated","Information Services","Corporate Services","Transport-Related Expenditure","Direct transport costs","29/09/20","6386627","12.6","VENDOR","AQUA CARS LIMITED","100011"
"Portsmouth City Council","PCC","Support Service / Transparency Costs Unallocated","Information Services","Corporate Services","Transport-Related Expenditure","Direct transport costs","29/09/20","6386627","14.6","VENDOR","AQUA CARS LIMITED","100011"
"Portsmouth City Council","PCC","Children's and Education Services","Other Education and Community Budget","Children's Services and Education","Transport-Related Expenditure","Car allowances","09/09/20","6383028","1798","VENDOR","AQUA CARS LIMITED","100011"
"Portsmouth City Council","PCC","Central Services","Registration of Births, Deaths and Marriages","Culture, Leisure & Regulatory Services","Transport-Related Expenditure","Direct transport costs","29/09/20","6386627","41.4","VENDOR","AQUA CARS LIMITED","100011"
"Portsmouth City Council","PCC","Children's and Education Services","Other Education and Community Budget","Children's Services and Education","Transport-Related Expenditure","Car allowances","09/09/20","6383028","3640","VENDOR","AQUA CARS LIMITED","100011"
"Portsmouth City Council","PCC","Adult Social Care","Support with Memory and Cognition Older People (65 - 74)","Adult Services","Premises-Related Expenditure","Water Services","03/09/20","6382649","-627.2","VENDOR","ADVANCED DEMAND SIDE MANAGEMENT LIMITED","143817"
"Portsmouth City Council","PCC","Children's and Education Services","Other Education and Community Budget","Children's Services and Education","Transport-Related Expenditure","Car allowances","09/09/20","6383028","480","VENDOR","AQUA CARS LIMITED","100011"
"Portsmouth City Council","PCC","Children's and Education Services","Other Education and Community Budget","Children's Services and Education","Transport-Related Expenditure","Car allowances","09/09/20","6383028","960","VENDOR","AQUA CARS LIMITED","100011"
"Portsmouth City Council","PCC","Housing Services","Homelessness","Housing, Neighbourhood and Building Services","Premises-Related Expenditure","Rents","25/09/20","6386072","1605","VENDOR","S J EDGE LTD","145252"
"Portsmouth City Council","PCC","Children's and Education Services","Asylum seekers","Children's Services and Education","Third Party Payments","Other establishments","07/09/20","6382828","3659.8","VENDOR","FAIRWAYS CARE (UK) LTD","111915"
"Portsmouth City Council","PCC","Housing Services","Homelessness","Housing, Neighbourhood and Building Services","Premises-Related Expenditure","Rents","25/09/20","6386077","1920","SOLETRADER","Classified as 'personal data' (under the Data Protection Act 2018)","139216"
"Portsmouth City Council","PCC","Adult Social Care","Social Care Activities","Adult Services","Third Party Payments","Other establishments","11/09/20","6383746","-289.02","VENDOR","BLUEBELL NURSING HOME","100112"
"Portsmouth City Council","PCC","Adult Social Care","Social Care Activities","Adult Services","Third Party Payments","Other establishments","11/09/20","6383746","788.23","VENDOR","BLUEBELL NURSING HOME","100112"
"Portsmouth City Council","PCC","Other","Suspense and Capital Schemes","Capital - Housing RA","Capital Charges","REFCUS","17/09/20","6384758","233","VENDOR","MACKS & SONS","102366"
"Portsmouth City Council","PCC","Children's and Education Services","Asylum seekers","Children's Services and Education","Third Party Payments","Other establishments","07/09/20","6382828","-883.4","VENDOR","FAIRWAYS CARE (UK) LTD","111915"
"Portsmouth City Council","PCC","Highways and Transport Services","Airports, Harbours and Toll Facilities","Portsmouth International Port","Supplies and Services","Communications and computing","03/09/20","6382531","1745.8","VENDOR","BUSINESS TECHNOLOGY PARTNERS LTD","106282"
"Portsmouth City Council","PCC","Support Service / Transparency Costs Unallocated","Procurement","Finance & Resources","Supplies and Services","Clothes, uniform and laundry","14/09/20","6384046","230","VENDOR","SJJS SOLUTIONS LTD","146992"
"Portsmouth City Council","PCC","Support Service / Transparency Costs Unallocated","Procurement","Finance & Resources","Supplies and Services","Clothes, uniform and laundry","14/09/20","6384046","1840","VENDOR","SJJS SOLUTIONS LTD","146992"
"Portsmouth City Council","PCC","Support Service / Transparency Costs Unallocated","Procurement","Finance & Resources","Supplies and Services","Clothes, uniform and laundry","14/09/20","6384046","5175","VENDOR","SJJS SOLUTIONS LTD","146992"
